{"text_format":"1","workbook":"xlsx","n_sheets":4,"sheets":["Datos","TD","Menu","INFORME"],"not_rendered":{"charts":0,"images":31,"macros":1,"external_links":0,"defined_names":3,"comments":0,"pivot_tables":2},"unopened":[],"bounds":{"document_bytes":16777216,"sheet_cells":100000,"rows_first":2000,"rows_last":500,"rows_between":2000,"halvings":0,"cell_chars":16384,"cell_head_chars":4096},"cells_cut":0,"cells_raw":0,"read":"whole","date_system":"1900"}

{"sheet":"Datos","index":0,"n_rows":446,"n_cols":36,"rows_kept":446,"cut":false,"hidden":true,"merged":[]}
[]
[]
[]
[]
[]
[]
[]
[]
[null,"ANO",null,"MESES",null,"COD_RED","DESC_RED","RED",null,"COD_RED","COD_MIC","DESC_MICRO","MICROREDES",null,"COD_ESTAB","DESC_ESTAB","COD_RED","COD_MIC","COD_PROV","COD_DIST","REDMIC","CONCATENAR",null,"COD_PROV","DESC_PROV","CONCATENAR",null,"COD_PROV","COD_DIST","DESC_DIST","PROVDIST","CONCATENAR",null,"UE"]
[null,2025,null,"01-Enero",null,"01","CUSCO SUR",{"$f":"CONCATENATE(F10,\" - \",G10)","v":"01 - CUSCO SUR"},null,"00","00","NO PERTENECE A NINGUNA MICRORED                                                                     ",{"$f":"CONCATENATE(J10,K10,\" - \",L10)","v":"0000 - NO PERTENECE A NINGUNA MICRORED                                                                     "},null,"000000000","(All)","07","00",null,null,{"$f":"CONCATENATE(Q10,R10)","v":"0700"},{"$f":"CONCATENATE(O10,\" - \",P10)","v":"000000000 - (All)"},null,"00","(All)",{"$f":"CONCATENATE(X10,\" - \",Y10)","v":"00 - (All)"},null,"01","00","(All)",{"$f":"CONCATENATE(AB10,AC10)","v":"0100"},{"$f":"CONCATENATE(AB10,AC10,\" - \",AD10)","v":"0100 - (All)"},null,"COD_RED","DESC_RED","CONCATENAR"]
[null,null,null,"02-Febrero",null,"02","CUSCO NORTE","02 - CUSCO NORTE",null,"00","99","(All)",{"$f":"CONCATENATE(J11,K11,\" - \",L11)","v":"0099 - (All)"},null,"000002289","HOSPITAL REGIONAL CUSCO","07","00","01","01",{"$f":"CONCATENATE(Q11,R11)","v":"0700"},"000002289 - HOSPITAL REGIONAL CUSCO",null,"01","CUSCO",{"$f":"CONCATENATE(X11,\" - \",Y11)","v":"01 - CUSCO"},null,"01","01","CUSCO",{"$f":"CONCATENATE(AB11,AC11)","v":"0101"},{"$f":"CONCATENATE(AB11,AC11,\" - \",AD11)","v":"0101 - CUSCO"},null,1129,"UE - SALUD CANAS - CANCHIS - ESPINAR",{"$f":"CONCATENATE(AH11,\" - \",AI11)","v":"1129 - UE - SALUD CANAS - CANCHIS - ESPINAR"}]
[null,null,null,"03-Marzo",null,"03","LA CONVENCION","03 - LA CONVENCION",null,"01","00","HOSPITAL","0100 - HOSPITAL",null,"000002305","HOSPITAL ANTONIO LORENA","07","00","01","06",{"$f":"CONCATENATE(Q12,R12)","v":"0700"},"000002305 - HOSPITAL ANTONIO LORENA",null,"02","ACOMAYO",{"$f":"CONCATENATE(X12,\" - \",Y12)","v":"02 - ACOMAYO"},null,"01","02","CCORCA","0102","0102 - CCORCA",null,1130,"UE - HOSPITAL REGIONAL CUSCO",{"$f":"CONCATENATE(AH12,\" - \",AI12)","v":"1130 - UE - HOSPITAL REGIONAL CUSCO"}]
[null,null,null,"04-Abril",null,"04","CANAS-CANCHIS-ESPINAR","04 - CANAS-CANCHIS-ESPINAR",null,"01","03","PARURO                                                                                              ","0103 - PARURO                                                                                              ",null,"999999999","(All)","07","99",null,null,{"$f":"CONCATENATE(Q13,R13)","v":"0799"},"999999999 - (All)",null,"03","ANTA","03 - ANTA",null,"01","03","POROY","0103","0103 - POROY",null,1169,"UE - HOSPITAL ANTONIO LORENA","1169 - UE - HOSPITAL ANTONIO LORENA"]
[null,null,null,"05-Mayo",null,"05","KIMBIRI PICHARI","05 - KIMBIRI PICHARI",null,"01","06","PAUCARTAMBO                                                                                         ","0106 - PAUCARTAMBO                                                                                         ",null,"000025210","TUPAC AMARU","01","00","01","05","0100","000025210 - TUPAC AMARU",null,"04","CALCA","04 - CALCA",null,"01","04","SAN JERONIMO","0104","0104 - SAN JERONIMO",null,1170,"UE - SALUD LA CONVENCION","1170 - UE - SALUD LA CONVENCION"]
[null,null,null,"06-Junio",null,"06","CHUMBIVILCAS","06 - CHUMBIVILCAS",null,"01","12","URCOS                                                                                               ","0112 - URCOS                                                                                               ",null,"000000000","(All)","01","16",null,null,{"$f":"CONCATENATE(Q15,R15)","v":"0116"},"000000000 - (All)",null,"05","CANAS","05 - CANAS",null,"01","05","SAN SEBASTIAN","0105","0105 - SAN SEBASTIAN",null,1322,"UE - SALUD CUSCO SUR","1322 - UE - SALUD CUSCO SUR"]
[null,null,null,"07-Julio",null,"07","HOSPITALES III",{"$f":"CONCATENATE(F16,\" - \",G16)","v":"07 - HOSPITALES III"},null,"01","13","ACOMAYO                                                                                             ","0113 - ACOMAYO                                                                                             ",null,"000002300","SAN JERONIMO                                                                                        ","01","16","01","04","0116","000002300 - SAN JERONIMO                                                                                        ",null,"06","CANCHIS","06 - CANCHIS",null,"01","06","SANTIAGO","0106","0106 - SANTIAGO",null,1347,"UE - SALUD KIMBIRI PICHARI","1347 - UE - SALUD KIMBIRI PICHARI"]
[null,null,null,"08-Agosto",null,"99","(All)",{"$f":"CONCATENATE(F17,\" - \",G17)","v":"99 - (All)"},null,"01","15","OCONGATE                                                                                            ","0115 - OCONGATE                                                                                            ",null,"000002301","SAN SEBASTIAN                                                                                       ","01","16","01","05","0116","000002301 - SAN SEBASTIAN                                                                                       ",null,"07","CHUMBIVILCAS","07 - CHUMBIVILCAS",null,"01","07","SAYLLA","0107","0107 - SAYLLA",null,1348,"UE - SALUD CUSCO NORTE","1348 - UE - SALUD CUSCO NORTE"]
[null,null,null,"09-Setiembre",null,null,null,null,null,"01","16","CUSCO","0116 - CUSCO",null,"000002303","SANTA ROSA                                                                                          ","01","16","01","05","0116","000002303 - SANTA ROSA                                                                                          ",null,"08","ESPINAR","08 - ESPINAR",null,"01","08","WANCHAQ","0108","0108 - WANCHAQ",null,1547,"UE - HOSPITAL ESPINAR","1547 - UE - HOSPITAL ESPINAR"]
[null,null,null,"10-Octubre",null,null,null,null,null,"01","99","(All)","0199 - (All)",null,"000002314","SAYLLA                                                                                              ","01","16","01","07","0116","000002314 - SAYLLA                                                                                              ",null,"09","LA CONVENCION","09 - LA CONVENCION",null,"02","00","(All)","0200","0200 - (All)",null,1625,"UE - HOSPITAL SICUANI","1625 - UE - HOSPITAL SICUANI"]
[null,null,null,"11-Noviembre",null,null,null,null,null,"02","01","BELEMPAMPA                                                                                          ","0201 - BELEMPAMPA                                                                                          ",null,"000002323","RONDOCAN                                                                                            ","01","16","02","06","0116","000002323 - RONDOCAN                                                                                            ",null,"10","PARURO","10 - PARURO",null,"02","01","ACOMAYO","0201","0201 - ACOMAYO",null,1626,"UE - HOSPITAL QUILLABAMBA","1626 - UE - HOSPITAL QUILLABAMBA"]
[null,null,null,"12-Diciembre",null,null,null,null,null,"02","02","WANCHAQ                                                                                             ","0202 - WANCHAQ                                                                                             ",null,"000007699","CONCHACALLE                                                                                         ","01","16","01","04","0116","000007699 - CONCHACALLE                                                                                         ",null,"11","PAUCARTAMBO","11 - PAUCARTAMBO",null,"02","02","ACOPIA","0202","0202 - ACOPIA",null,1666,"UE - SALUD CHUMBIVILCAS","1666 - UE - SALUD CHUMBIVILCAS"]
[null,null,null,null,null,null,null,null,null,"02","03","ANTA                                                                                                ","0203 - ANTA                                                                                                ",null,"000010065","ESSALUD-SAN SEBASTIAN","01","16","01","05","0116","000010065 - ESSALUD-SAN SEBASTIAN",null,"12","QUISPICANCHI","12 - QUISPICANCHI",null,"02","03","ACOS","0203","0203 - ACOS",null,"7777","(All)",{"$f":"CONCATENATE(AH22,\" - \",AI22)","v":"7777 - (All)"}]
[null,null,null,null,null,null,null,null,null,"02","04","LIMATAMBO                                                                                           ","0204 - LIMATAMBO                                                                                           ",null,"000011743","SANIDAD-SANTA ROSA PNP","01","16","01","05","0116","000011743 - SANIDAD-SANTA ROSA PNP",null,"13","URUBAMBA","13 - URUBAMBA",null,"02","04","MOSOC LLACTA","0204","0204 - MOSOC LLACTA"]
[null,null,null,null,null,null,null,null,null,"02","05","PISAC                                                                                               ","0205 - PISAC                                                                                               ",null,"000026181","MENTAL SAN SEBASTIAN","01","16","01","05","0116","000026181 - MENTAL SAN SEBASTIAN",null,null,null,null,null,"02","05","POMACANCHI","0205","0205 - POMACANCHI"]
[null,null,null,null,null,null,null,null,null,"02","06","CALCA                                                                                               ","0206 - CALCA                                                                                               ",null,"000030727","PATRÓN SAN SEBASTIAN","01","16","01","04",{"$f":"CONCATENATE(Q25,R25)","v":"0116"},"000030727 - PATRÓN SAN SEBASTIAN",null,null,null,null,null,"02","06","RONDOCAN","0206","0206 - RONDOCAN"]
[null,null,null,null,null,null,null,null,null,"02","07","URUBAMBA                                                                                            ","0207 - URUBAMBA                                                                                            ",null,"000000000","(All)","01","03",null,null,{"$f":"CONCATENATE(Q26,R26)","v":"0103"},"000000000 - (All)",null,null,null,null,null,"02","07","SANGARARA","0207","0207 - SANGARARA"]
[null,null,null,null,null,null,null,null,null,"02","08","YANATILE                                                                                            ","0208 - YANATILE                                                                                            ",null,"000002499","PARURO                                                                                              ","01","03",10,"01","0103","000002499 - PARURO                                                                                              ",null,null,null,null,null,"03","00","(All)","0300","0300 - (All)"]
[null,null,null,null,null,null,null,null,null,"02","09","SIETE CUARTONES                                                                                     ","0209 - SIETE CUARTONES                                                                                     ",null,"000002500","ACCHA                                                                                               ","01","03",10,"02","0103","000002500 - ACCHA                                                                                               ",null,null,null,null,null,"03","01","ANTA","0301","0301 - ANTA"]
[null,null,null,null,null,null,null,null,null,"02","99","(All)","0299 - (All)",null,"000002501","CCAPI                                                                                               ","01","03",10,"03","0103","000002501 - CCAPI                                                                                               ",null,null,null,null,null,"03","02","ANCAHUASI","0302","0302 - ANCAHUASI"]
[null,null,null,null,null,null,null,null,null,"03","00","HOSPITAL","0300 - HOSPITAL",null,"000002502","CCOYABAMBA                                                                                          ","01","03",10,"03","0103","000002502 - CCOYABAMBA                                                                                          ",null,null,null,null,null,"03","03","CACHIMAYO","0303","0303 - CACHIMAYO"]
[null,null,null,null,null,null,null,null,null,"03","01","SANTA ANA                                                                                           ","0301 - SANTA ANA                                                                                           ",null,"000002503","COLCHA                                                                                              ","01","03",10,"04","0103","000002503 - COLCHA                                                                                              ",null,null,null,null,null,"03","04","CHINCHAYPUJIO","0304","0304 - CHINCHAYPUJIO"]
[null,null,null,null,null,null,null,null,null,"03","02","MARANURA                                                                                            ","0302 - MARANURA                                                                                            ",null,"000002504","HUANOQUITE                                                                                          ","01","03",10,"05","0103","000002504 - HUANOQUITE                                                                                          ",null,null,null,null,null,"03","05","HUAROCONDO","0305","0305 - HUAROCONDO"]
[null,null,null,null,null,null,null,null,null,"03","03","QUELLOUNO                                                                                           ","0303 - QUELLOUNO                                                                                           ",null,"000002505","OMACHA                                                                                              ","01","03",10,"06","0103","000002505 - OMACHA                                                                                              ",null,null,null,null,null,"03","06","LIMATAMBO","0306","0306 - LIMATAMBO"]
[null,null,null,null,null,null,null,null,null,"03","04","KITENI                                                                                              ","0304 - KITENI                                                                                              ",null,"000002506","ANTAPALLPA                                                                                          ","01","03",10,"06","0103","000002506 - ANTAPALLPA                                                                                          ",null,null,null,null,null,"03","07","MOLLEPATA","0307","0307 - MOLLEPATA"]
[null,null,null,null,null,null,null,null,null,"03","05","KAMISEA                                                                                             ","0305 - KAMISEA                                                                                             ",null,"000002507","PACCARECTAMBO                                                                                       ","01","03",10,"07","0103","000002507 - PACCARECTAMBO                                                                                       ",null,null,null,null,null,"03","08","PUCYURA","0308","0308 - PUCYURA"]
[null,null,null,null,null,null,null,null,null,"03","06","PUCYURA                                                                                             ","0306 - PUCYURA                                                                                             ",null,"000002509","YAURISQUE                                                                                           ","01","03",10,"09","0103","000002509 - YAURISQUE                                                                                           ",null,null,null,null,null,"03","09","ZURITE","0309","0309 - ZURITE"]
[null,null,null,null,null,null,null,null,null,"03","99","(All)","0399 - (All)",null,"000006978","CCOCHIRIHUAY                                                                                        ","01","03",10,"04","0103","000006978 - CCOCHIRIHUAY                                                                                        ",null,null,null,null,null,"04","00","(All)","0400","0400 - (All)"]
[null,null,null,null,null,null,null,null,null,"04","00","HOSPITAL","0400 - HOSPITAL",null,"000007147","HUASQUILLAY                                                                                         ","01","03",10,"06","0103","000007147 - HUASQUILLAY                                                                                         ",null,null,null,null,null,"04","01","CALCA","0401","0401 - CALCA"]
[null,null,null,null,null,null,null,null,null,"04","01","YANAOCA                                                                                             ","0401 - YANAOCA                                                                                             ",null,"000012924","SAHUA SAHUA                                                                                         ","01","03",10,"06","0103","000012924 - SAHUA SAHUA                                                                                         ",null,null,null,null,null,"04","02","COYA","0402","0402 - COYA"]
[null,null,null,null,null,null,null,null,null,"04","02","EL DESCANSO                                                                                         ","0402 - EL DESCANSO                                                                                         ",null,"000000000","(All)","01","06",null,null,"0106","000000000 - (All)",null,null,null,null,null,"04","03","LAMAY","0403","0403 - LAMAY"]
[null,null,null,null,null,null,null,null,null,"04","03","COMBAPATA                                                                                           ","0403 - COMBAPATA                                                                                           ",null,"000002510","PAUCARTAMBO                                                                                         ","01","06",11,"01","0106","000002510 - PAUCARTAMBO                                                                                         ",null,null,null,null,null,"04","04","LARES","0404","0404 - LARES"]
[null,null,null,null,null,null,null,null,null,"04","04","TECHO OBRERO                                                                                        ","0404 - TECHO OBRERO                                                                                        ",null,"000002511","MOLLOMARCA                                                                                          ","01","06",11,"01","0106","000002511 - MOLLOMARCA                                                                                          ",null,null,null,null,null,"04","05","PISAC","0405","0405 - PISAC"]
[null,null,null,null,null,null,null,null,null,"04","05","PAMPAPHALLA                                                                                         ","0405 - PAMPAPHALLA                                                                                         ",null,"000002512","CAICAY                                                                                              ","01","06",11,"02","0106","000002512 - CAICAY                                                                                              ",null,null,null,null,null,"04","06","SAN SALVADOR","0406","0406 - SAN SALVADOR"]
[null,null,null,null,null,null,null,null,null,"04","06","YAURI                                                                                               ","0406 - YAURI                                                                                               ",null,"000002513","HUASAC                                                                                              ","01","06",11,"02","0106","000002513 - HUASAC                                                                                              ",null,null,null,null,null,"04","07","TARAY","0407","0407 - TARAY"]
[null,null,null,null,null,null,null,null,null,"04","99","(All)","0499 - (All)",null,"000002514","CHALLABAMBA                                                                                         ","01","06",11,"03","0106","000002514 - CHALLABAMBA                                                                                         ",null,null,null,null,null,"04","08","YANATILE","0408","0408 - YANATILE"]
[null,null,null,null,null,null,null,null,null,"05","00","HOSPITAL","0500 - HOSPITAL",null,"000002516","COLQUEPATA                                                                                          ","01","06",11,"04","0106","000002516 - COLQUEPATA                                                                                          ",null,null,null,null,null,"05","00","(All)","0500","0500 - (All)"]
[null,null,null,null,null,null,null,null,null,"05","01","KIMBIRI                                                                                             ","0501 - KIMBIRI                                                                                             ",null,"000002517","PICHIHUA COLQUEPATA                                                                                 ","01","06",11,"04","0106","000002517 - PICHIHUA COLQUEPATA                                                                                 ",null,null,null,null,null,"05","01","YANAOCA","0501","0501 - YANAOCA"]
[null,null,null,null,null,null,null,null,null,"05","02","PICHARI                                                                                             ","0502 - PICHARI                                                                                             ",null,"000002518","VIZCOCHONI                                                                                          ","01","06",11,"04","0106","000002518 - VIZCOCHONI                                                                                          ",null,null,null,null,null,"05","02","CHECCA","0502","0502 - CHECCA"]
[null,null,null,null,null,null,null,null,null,"05","99","(All)","0599 - (All)",null,"000002519","AYRE                                                                                                ","01","06",11,"04","0106","000002519 - AYRE                                                                                                ",null,null,null,null,null,"05","03","KUNTURKANKI","0503","0503 - KUNTURKANKI"]
[null,null,null,null,null,null,null,null,null,"06","00","HOSPITAL","0600 - HOSPITAL",null,"000002520","HUANCARANI                                                                                          ","01","06",11,"05","0106","000002520 - HUANCARANI                                                                                          ",null,null,null,null,null,"05","04","LANGUI","0504","0504 - LANGUI"]
[null,null,null,null,null,null,null,null,null,"06","09","SANTO TOMAS                                                                                         ","0609 - SANTO TOMAS                                                                                         ",null,"000002521","PILCOPATA                                                                                           ","01","06",11,"06","0106","000002521 - PILCOPATA                                                                                           ",null,null,null,null,null,"05","05","LAYO","0505","0505 - LAYO"]
[null,null,null,null,null,null,null,null,null,"06","01","LIVITACA                                                                                            ","0601 - LIVITACA                                                                                            ",null,"000002522","PATRIA                                                                                              ","01","06",11,"06","0106","000002522 - PATRIA                                                                                              ",null,null,null,null,null,"05","06","PAMPAMARCA","0506","0506 - PAMPAMARCA"]
[null,null,null,null,null,null,null,null,null,"06","99","(All)","0699 - (All)",null,"000006979","TOCRA                                                                                               ","01","06",11,"04","0106","000006979 - TOCRA                                                                                               ",null,null,null,null,null,"05","07","QUEHUE","0507","0507 - QUEHUE"]
[null,null,null,null,null,null,null,null,null,"07","00","HOSPITAL","0700 - HOSPITAL",null,"000010077","ESSALUD-PAUCARTAMBO","01","06",11,"01","0106","000010077 - ESSALUD-PAUCARTAMBO",null,null,null,null,null,"05","08","TUPAC AMARU","0508","0508 - TUPAC AMARU"]
[null,null,null,null,null,null,null,null,null,"99","99","(All)",{"$f":"CONCATENATE(J55,K55,\" - \",L55)","v":"9999 - (All)"},null,"000033777","MENTAL COMUNITARIO VIRGEN DEL ROSARIO","01","06",11,"01","0106","000033777 - MENTAL COMUNITARIO VIRGEN DEL ROSARIO",null,null,null,null,null,"06","00","(All)","0600","0600 - (All)"]
[null,null,null,null,null,null,null,null,null,null,null,null,null,null,"000000000","(All)","01","12",null,null,"0112","000000000 - (All)",null,null,null,null,null,"06","01","SICUANI","0601","0601 - SICUANI"]
[null,null,null,null,null,null,null,null,null,null,null,null,null,null,"000002523","URCOS                                                                                               ","01","12",12,"01","0112","000002523 - URCOS                                                                                               ",null,null,null,null,null,"06","02","CHECACUPE","0602","0602 - CHECACUPE"]
[null,null,null,null,null,null,null,null,null,null,null,null,null,null,"000002525","ANDAHUAYLILLAS                                                                                      ","01","12",12,"02","0112","000002525 - ANDAHUAYLILLAS                                                                                      ",null,null,null,null,null,"06","03","COMBAPATA","0603","0603 - COMBAPATA"]
[null,null,null,null,null,null,null,null,null,null,null,null,null,null,"000002530","CUSIPATA                                                                                            ","01","12",12,"06","0112","000002530 - CUSIPATA                                                                                            ",null,null,null,null,null,"06","04","MARANGANI","0604","0604 - MARANGANI"]
[null,null,null,null,null,null,null,null,null,null,null,null,null,null,"000002532","HUARO                                                                                               ","01","12",12,"07","0112","000002532 - HUARO                                                                                               ",null,null,null,null,null,"06","05","PITUMARCA","0605","0605 - PITUMARCA"]
[null,null,null,null,null,null,null,null,null,null,null,null,null,null,"000002533","URPAY                                                                                               ","01","12",12,"07","0112","000002533 - URPAY                                                                                               ",null,null,null,null,null,"06","06","SAN PABLO","0606","0606 - SAN PABLO"]
[null,null,null,null,null,null,null,null,null,null,null,null,null,null,"000002534","LUCRE                                                                                               ","01","12",12,"08","0112","000002534 - LUCRE                                                                                               ",null,null,null,null,null,"06","07","SAN PEDRO","0607","0607 - SAN PEDRO"]
[null,null,null,null,null,null,null,null,null,null,null,null,null,null,"000002537","OROPESA                                                                                             ","01","12",12,11,"0112","000002537 - OROPESA                                                                                             ",null,null,null,null,null,"06","08","TINTA","0608","0608 - TINTA"]
[null,null,null,null,null,null,null,null,null,null,null,null,null,null,"000002538","QUIQUIJANA                                                                                          ","01","12",12,12,"0112","000002538 - QUIQUIJANA                                                                                          ",null,null,null,null,null,"07","00","(All)","0700","0700 - (All)"]
[null,null,null,null,null,null,null,null,null,null,null,null,null,null,"000002539","CCOLCA","01","12",12,12,"0112","000002539 - CCOLCA",null,null,null,null,null,"07","01","SANTO TOMAS","0701","0701 - SANTO TOMAS"]
[null,null,null,null,null,null,null,null,null,null,null,null,null,null,"000006980","CHILLIHUANI                                                                                         ","01","12",12,"06","0112","000006980 - CHILLIHUANI                                                                                         ",null,null,null,null,null,"07","02","CAPACMARCA","0702","0702 - CAPACMARCA"]
[null,null,null,null,null,null,null,null,null,null,null,null,null,null,"000008911","HUARA HUARA                                                                                         ","01","12",12,"05","0112","000008911 - HUARA HUARA                                                                                         ",null,null,null,null,null,"07","03","CHAMACA","0703","0703 - CHAMACA"]
[null,null,null,null,null,null,null,null,null,null,null,null,null,null,"000011747","SANIDAD-PUCUTO PNP","01","12",12,"07","0112","000011747 - SANIDAD-PUCUTO PNP",null,null,null,null,null,"07","04","COLQUEMARCA","0704","0704 - COLQUEMARCA"]
[null,null,null,null,null,null,null,null,null,null,null,null,null,null,"000026385","ESSALUD-URCOS","01","12",12,"01","0112","000026385 - ESSALUD-URCOS",null,null,null,null,null,"07","05","LIVITACA","0705","0705 - LIVITACA"]
[null,null,null,null,null,null,null,null,null,null,null,null,null,null,"000030708","MENTAL COMUNITARIO HUARO","01","12",12,"07","0112","000030708 - MENTAL COMUNITARIO HUARO",null,null,null,null,null,"07","06","LLUSCO","0706","0706 - LLUSCO"]
[null,null,null,null,null,null,null,null,null,null,null,null,null,null,"000000000","(All)","01","13",null,null,"0113","000000000 - (All)",null,null,null,null,null,"07","07","QUIÑOTA","0707","0707 - QUIÑOTA"]
[null,null,null,null,null,null,null,null,null,null,null,null,null,null,"000002317","ACOMAYO                                                                                             ","01","13","02","01","0113","000002317 - ACOMAYO                                                                                             ",null,null,null,null,null,"07","08","VELILLE","0708","0708 - VELILLE"]
[null,null,null,null,null,null,null,null,null,null,null,null,null,null,"000002318","ACOPIA                                                                                              ","01","13","02","02","0113","000002318 - ACOPIA                                                                                              ",null,null,null,null,null,"08","00","(All)","0800","0800 - (All)"]
[null,null,null,null,null,null,null,null,null,null,null,null,null,null,"000002319","ACOS                                                                                                ","01","13","02","03","0113",{"$f":"CONCATENATE(O74,\" - \",P74)","v":"000002319 - ACOS                                                                                                "},null,null,null,null,null,"08","01","ESPINAR","0801","0801 - ESPINAR"]
[null,null,null,null,null,null,null,null,null,null,null,null,null,null,"000002321","CENTRO DE SALUD POMACANCHI","01","13","02","05","0113","000002321 - CENTRO DE SALUD POMACANCHI",null,null,null,null,null,"08","02","CONDOROMA",{"$f":"CONCATENATE(AB75,AC75)","v":"0802"},{"$f":"CONCATENATE(AB75,AC75,\" - \",AD75)","v":"0802 - CONDOROMA"}]
[null,null,null,null,null,null,null,null,null,null,null,null,null,null,"000002322","SAN JUAN DE POMACANCHI                                                                              ","01","13","02","05","0113","000002322 - SAN JUAN DE POMACANCHI                                                                              ",null,null,null,null,null,"08","03","COPORAQUE","0803","0803 - COPORAQUE"]
[null,null,null,null,null,null,null,null,null,null,null,null,null,null,"000002324","PUESTO DE SALUD SANGARARA","01","13","02","07","0113","000002324 - PUESTO DE SALUD SANGARARA",null,null,null,null,null,"08","04","OCORURO","0804","0804 - OCORURO"]
[null,null,null,null,null,null,null,null,null,null,null,null,null,null,"000002325","PUESTO DE SALUD MARCACONGA","01","13","02","07","0113","000002325 - PUESTO DE SALUD MARCACONGA",null,null,null,null,null,"08","05","PALLPATA","0805","0805 - PALLPATA"]
[null,null,null,null,null,null,null,null,null,null,null,null,null,null,"000002508","PILLPINTO                                                                                           ","01","13",10,"08","0113","000002508 - PILLPINTO                                                                                           ",null,null,null,null,null,"08","06","PICHIGUA","0806","0806 - PICHIGUA"]
[null,null,null,null,null,null,null,null,null,null,null,null,null,null,"000010076","ESSALUD-ACOMAYO","01","13","02","01","0113","000010076 - ESSALUD-ACOMAYO",null,null,null,null,null,"08","07","SUYCKUTAMBO","0807","0807 - SUYCKUTAMBO"]
[null,null,null,null,null,null,null,null,null,null,null,null,null,null,"000012926","SANTA  LUCIA                                                                                        ","01","13","02","05","0113","000012926 - SANTA  LUCIA                                                                                        ",null,null,null,null,null,"08","08","ALTO PICHIGUA","0808","0808 - ALTO PICHIGUA"]
[null,null,null,null,null,null,null,null,null,null,null,null,null,null,"000000000","(All)","01","15",null,null,"0115","000000000 - (All)",null,null,null,null,null,"09","00","(All)","0900","0900 - (All)"]
[null,null,null,null,null,null,null,null,null,null,null,null,null,null,"000002524","PAMPACAMARA                                                                                         ","01","15",12,"05","0115","000002524 - PAMPACAMARA                                                                                         ",null,null,null,null,null,"09","01","SANTA ANA","0901","0901 - SANTA ANA"]
[null,null,null,null,null,null,null,null,null,null,null,null,null,null,"000002526","QUINCE MIL","01","15",12,"03","0115","000002526 - QUINCE MIL",null,null,null,null,null,"09","02","ECHARATE","0902","0902 - ECHARATE"]
[null,null,null,null,null,null,null,null,null,null,null,null,null,null,"000002527","CCARHUAYO","01","15",12,"04","0115","000002527 - CCARHUAYO",null,null,null,null,null,"09","03","HUAYOPATA","0903","0903 - HUAYOPATA"]
[null,null,null,null,null,null,null,null,null,null,null,null,null,null,"000002528","CCATCCA                                                                                             ","01","15",12,"05","0115","000002528 - CCATCCA                                                                                             ",null,null,null,null,null,"09","04","MARANURA","0904","0904 - MARANURA"]
[null,null,null,null,null,null,null,null,null,null,null,null,null,null,"000002529","KCAURY                                                                                              ","01","15",12,"05","0115","000002529 - KCAURY                                                                                              ",null,null,null,null,null,"09","05","OCOBAMBA","0905","0905 - OCOBAMBA"]
[null,null,null,null,null,null,null,null,null,null,null,null,null,null,"000002535","MARCAPATA                                                                                           ","01","15",12,"09","0115","000002535 - MARCAPATA                                                                                           ",null,null,null,null,null,"09","06","QUELLOUNO","0906","0906 - QUELLOUNO"]
[null,null,null,null,null,null,null,null,null,null,null,null,null,null,"000002536","OCONGATE                                                                                            ","01","15",12,10,"0115","000002536 - OCONGATE                                                                                            ",null,null,null,null,null,"09","07","KIMBIRI","0907","0907 - KIMBIRI"]
[null,null,null,null,null,null,null,null,null,null,null,null,null,null,"000006977","TINKI                                                                                               ","01","15",12,10,{"$f":"CONCATENATE(Q90,R90)","v":"0115"},"000006977 - TINKI                                                                                               ",null,null,null,null,null,"09","08","SANTA TERESA","0908","0908 - SANTA TERESA"]
[null,null,null,null,null,null,null,null,null,null,null,null,null,null,"000007110","INCACANCHA                                                                                          ","01","15",12,"09","0115","000007110 - INCACANCHA                                                                                          ",null,null,null,null,null,"09","09","VILCABAMBA","0909","0909 - VILCABAMBA"]
[null,null,null,null,null,null,null,null,null,null,null,null,null,null,"000012931","CHICHINA                                                                                            ","01","15",12,"05","0115","000012931 - CHICHINA                                                                                            ",null,null,null,null,null,"09","10","PICHARI","0910","0910 - PICHARI"]
[null,null,null,null,null,null,null,null,null,null,null,null,null,null,"000016335","CCAPANA                                                                                             ","01","15",12,"05","0115","000016335 - CCAPANA                                                                                             ",null,null,null,null,null,"09","11","INKAWASI                                ","0911","0911 - INKAWASI                                "]
[null,null,null,null,null,null,null,null,null,null,null,null,null,null,"999999999","(All)","01","99",null,null,"0199","999999999 - (All)",null,null,null,null,null,"09","12","VILLA VIRGEN","0912","0912 - VILLA VIRGEN"]
[null,null,null,null,null,null,null,null,null,null,null,null,null,null,"000000000","(All)","02","01",null,null,"0201","000000000 - (All)",null,null,null,null,null,"09","13","VILLA KINTIARINA","0913","0913 - VILLA KINTIARINA"]
[null,null,null,null,null,null,null,null,null,null,null,null,null,null,"000002292","INDEPENDENCIA                                                                                       ","02","01","01","01","0201","000002292 - INDEPENDENCIA                                                                                       ",null,null,null,null,null,"09","14","MEGANTONI","0914","0914 - MEGANTONI"]
[null,null,null,null,null,null,null,null,null,null,null,null,null,null,"000002297","CCORCCA                                                                                             ","02","01","01","02","0201","000002297 - CCORCCA                                                                                             ",null,null,null,null,null,"09","15","KUMPIRUSHIATO","0915","0915 - KUMPIRUSHIATO"]
[null,null,null,null,null,null,null,null,null,null,null,null,null,null,"000002306","BELEMPAMPA                                                                                          ","02","01","01","06","0201","000002306 - BELEMPAMPA                                                                                          ",null,null,null,null,null,"09","16","CIELO PUNCO","0916","0916 - CIELO PUNCO"]
[null,null,null,null,null,null,null,null,null,null,null,null,null,null,"000002308","ZARZUELA ALTA                                                                                       ","02","01","01","06","0201","000002308 - ZARZUELA ALTA                                                                                       ",null,null,null,null,null,"09","17","MANITEA","0917","0917 - MANITEA"]
[null,null,null,null,null,null,null,null,null,null,null,null,null,null,"000002309","DIGNIDAD NACIONAL                                                                                   ","02","01","01","06","0201","000002309 - DIGNIDAD NACIONAL                                                                                   ",null,null,null,null,null,"09","18","UNION ASHANINKA","0918","0918 - UNION ASHANINKA"]
[null,null,null,null,null,null,null,null,null,null,null,null,null,null,"000002313","OCCOPATA                                                                                            ","02","01","01","06","0201","000002313 - OCCOPATA                                                                                            ",null,null,null,null,null,"10","00","(All)","1000","1000 - (All)"]
[null,null,null,null,null,null,null,null,null,null,null,null,null,null,"000010920","EJERCITO-QUINTA BRIGADA DE MONTAÑA","02","01","01","06","0201","000010920 - EJERCITO-QUINTA BRIGADA DE MONTAÑA",null,null,null,null,null,"10","01","PARURO","1001","1001 - PARURO"]
[null,null,null,null,null,null,null,null,null,null,null,null,null,null,"000026182","MENTAL SANTIAGO","02","01","01","06","0201","000026182 - MENTAL SANTIAGO",null,null,null,null,null,"10","02","ACCHA","1002","1002 - ACCHA"]
[null,null,null,null,null,null,null,null,null,null,null,null,null,null,"000034933","ESSALUD-SANTIAGO","02","01","01","06","0201","000034933 - ESSALUD-SANTIAGO",null,null,null,null,null,"10","03","CCAPI","1003","1003 - CCAPI"]
[null,null,null,null,null,null,null,null,null,null,null,null,null,null,"000000000","(All)","02","02",null,null,{"$f":"CONCATENATE(Q105,R105)","v":"0202"},"000000000 - (All)",null,null,null,null,null,"10","04","COLCHA","1004","1004 - COLCHA"]
[null,null,null,null,null,null,null,null,null,null,null,null,null,null,"000002302","CCORAO                                                                                              ","02","02","01","05","0202","000002302 - CCORAO                                                                                              ",null,null,null,null,null,"10","05","HUANOQUITE","1005","1005 - HUANOQUITE"]
[null,null,null,null,null,null,null,null,null,null,null,null,null,null,"000002307","MANCO CAPAC","02","02","01","06","0202","000002307 - MANCO CAPAC",null,null,null,null,null,"10","06","OMACHA","1006","1006 - OMACHA"]
[null,null,null,null,null,null,null,null,null,null,null,null,null,null,"000002310","CHOCCO                                                                                              ","02","02","01","06","0202","000002310 - CHOCCO                                                                                              ",null,null,null,null,null,"10","07","PACCARITAMBO","1007","1007 - PACCARITAMBO"]
[null,null,null,null,null,null,null,null,null,null,null,null,null,null,"000002315","WANCHAQ                                                                                             ","02","02","01","08","0202","000002315 - WANCHAQ                                                                                             ",null,null,null,null,null,"10","08","PILLPINTO","1008","1008 - PILLPINTO"]
[null,null,null,null,null,null,null,null,null,null,null,null,null,null,"000002316","TTIO                                                                                                ","02","02","01","08","0202","000002316 - TTIO                                                                                                ",null,null,null,null,null,"10","09","YAURISQUE","1009","1009 - YAURISQUE"]
[null,null,null,null,null,null,null,null,null,null,null,null,null,null,"000010041","ESSALUD-ADOLFO GUEVARA V.","02","02","01","08","0202","000010041 - ESSALUD-ADOLFO GUEVARA V.",null,null,null,null,null,"11","00","(All)","1100","1100 - (All)"]
[null,null,null,null,null,null,null,null,null,null,null,null,null,null,"000026183","ESSALUD-METROPOLITANO","02","02","01","08","0202","000026183 - ESSALUD-METROPOLITANO",null,null,null,null,null,"11","01","PAUCARTAMBO","1101","1101 - PAUCARTAMBO"]
[null,null,null,null,null,null,null,null,null,null,null,null,null,null,"000030730","PATRON SANTIAGO","02","02","01","08","0202","000030730 - PATRON SANTIAGO",null,null,null,null,null,"11","02","CAICAY","1102","1102 - CAICAY"]
[null,null,null,null,null,null,null,null,null,null,null,null,null,null,"000034419","MENTAL COMUNITARIO CUSCO","02","02","01","08","0202","000034419 - MENTAL COMUNITARIO CUSCO",null,null,null,null,null,"11","03","CHALLABAMBA","1103","1103 - CHALLABAMBA"]
[null,null,null,null,null,null,null,null,null,null,null,null,null,null,"000000000","(All)","02","03",null,null,{"$f":"CONCATENATE(Q115,R115)","v":"0203"},"000000000 - (All)",null,null,null,null,null,"11","04","COLQUEPATA","1104","1104 - COLQUEPATA"]
[null,null,null,null,null,null,null,null,null,null,null,null,null,null,"000002326","ANTA                                                                                                ","02","03","03","01","0203","000002326 - ANTA                                                                                                ",null,null,null,null,null,"11","05","HUANCARANI","1105","1105 - HUANCARANI"]
[null,null,null,null,null,null,null,null,null,null,null,null,null,null,"000002327","CHACAN                                                                                              ","02","03","03","01","0203","000002327 - CHACAN                                                                                              ",null,null,null,null,null,"11","06","KOSÑIPATA","1106","1106 - KOSÑIPATA"]
[null,null,null,null,null,null,null,null,null,null,null,null,null,null,"000002328","COMPONE                                                                                             ","02","03","03","01","0203","000002328 - COMPONE                                                                                             ",null,null,null,null,null,"12","00","(All)","1200","1200 - (All)"]
[null,null,null,null,null,null,null,null,null,null,null,null,null,null,"000002329","CONCHACALLA                                                                                         ","02","03","03","01","0203","000002329 - CONCHACALLA                                                                                         ",null,null,null,null,null,"12","01","URCOS","1201","1201 - URCOS"]
[null,null,null,null,null,null,null,null,null,null,null,null,null,null,"000002330","ANCAHUASI                                                                                           ","02","03","03","02","0203","000002330 - ANCAHUASI                                                                                           ",null,null,null,null,null,"12","02","ANDAHUAYLILLAS","1202","1202 - ANDAHUAYLILLAS"]
[null,null,null,null,null,null,null,null,null,null,null,null,null,null,"000002331","CACHIMAYO                                                                                           ","02","03","03","03","0203","000002331 - CACHIMAYO                                                                                           ",null,null,null,null,null,"12","03","CAMANTI","1203","1203 - CAMANTI"]
[null,null,null,null,null,null,null,null,null,null,null,null,null,null,"000002333","HUAROCONDO                                                                                          ","02","03","03","05","0203","000002333 - HUAROCONDO                                                                                          ",null,null,null,null,null,"12","04","CCARHUAYO","1204","1204 - CCARHUAYO"]
[null,null,null,null,null,null,null,null,null,null,null,null,null,null,"000002334","HUAYLLACOCHA                                                                                        ","02","03","03","05","0203","000002334 - HUAYLLACOCHA                                                                                        ",null,null,null,null,null,"12","05","CCATCA","1205","1205 - CCATCA"]
[null,null,null,null,null,null,null,null,null,null,null,null,null,null,"000002339","PUCYURA ANTA                                                                                        ","02","03","03","08","0203","000002339 - PUCYURA ANTA                                                                                        ",null,null,null,null,null,"12","06","CUSIPATA","1206","1206 - CUSIPATA"]
[null,null,null,null,null,null,null,null,null,null,null,null,null,null,"000002340","ZURITE                                                                                              ","02","03","03","09","0203","000002340 - ZURITE                                                                                              ",null,null,null,null,null,"12","07","HUARO","1207","1207 - HUARO"]
[null,null,null,null,null,null,null,null,null,null,null,null,null,null,"000006972","PANTIPATA                                                                                           ","02","03","03","04","0203","000006972 - PANTIPATA                                                                                           ",null,null,null,null,null,"12","08","LUCRE","1208","1208 - LUCRE"]
[null,null,null,null,null,null,null,null,null,null,null,null,null,null,"000027790","MENTAL COMUNITARIO ANTA","02","03","03","01","0203","000027790 - MENTAL COMUNITARIO ANTA",null,null,null,null,null,"12","09","MARCAPATA","1209","1209 - MARCAPATA"]
[null,null,null,null,null,null,null,null,null,null,null,null,null,null,"000029514","ESSALUD-ANTA","02","03","03","01","0203","000029514 - ESSALUD-ANTA",null,null,null,null,null,"12","10","OCONGATE","1210","1210 - OCONGATE"]
[null,null,null,null,null,null,null,null,null,null,null,null,null,null,"000035838","PARCCOTICA","02","03","03","04","0203","000035838 - PARCCOTICA",null,null,null,null,null,"12","11","OROPESA","1211","1211 - OROPESA"]
[null,null,null,null,null,null,null,null,null,null,null,null,null,null,"000036240","CHINCHAYPUJIO                                                                                       ","02","03","03","04","0203","000036240 - CHINCHAYPUJIO                                                                                       ",null,null,null,null,null,"12","12","QUIQUIJANA","1212","1212 - QUIQUIJANA"]
[null,null,null,null,null,null,null,null,null,null,null,null,null,null,"000000000","(All)","02","04",null,null,{"$f":"CONCATENATE(Q131,R131)","v":"0204"},"000000000 - (All)",null,null,null,null,null,"13","00","(All)","1300","1300 - (All)"]
[null,null,null,null,null,null,null,null,null,null,null,null,null,null,"000002336","LIMATAMBO                                                                                           ","02","04","03","06","0204","000002336 - LIMATAMBO                                                                                           ",null,null,null,null,null,"13","01","URUBAMBA","1301","1301 - URUBAMBA"]
[null,null,null,null,null,null,null,null,null,null,null,null,null,null,"000002337","PAMPACONGA                                                                                          ","02","04","03","06","0204","000002337 - PAMPACONGA                                                                                          ",null,null,null,null,null,"13","02","CHINCHERO","1302","1302 - CHINCHERO"]
[null,null,null,null,null,null,null,null,null,null,null,null,null,null,"000002338","MOLLEPATA                                                                                           ","02","04","03","07","0204","000002338 - MOLLEPATA                                                                                           ",null,null,null,null,null,"13","03","HUAYLLABAMBA","1303","1303 - HUAYLLABAMBA"]
[null,null,null,null,null,null,null,null,null,null,null,null,null,null,"000010761","URATARI                                                                                             ","02","04","03","06","0204","000010761 - URATARI                                                                                             ",null,null,null,null,null,"13","04","MACHUPICCHU","1304","1304 - MACHUPICCHU"]
[null,null,null,null,null,null,null,null,null,null,null,null,null,null,"000021061","HUAMANPATA                                                                                          ","02","04","03","07","0204","000021061 - HUAMANPATA                                                                                          ",null,null,null,null,null,"13","05","MARAS","1305","1305 - MARAS"]
[null,null,null,null,null,null,null,null,null,null,null,null,null,null,"000000000","(All)","02","05",null,null,"0205","000000000 - (All)",null,null,null,null,null,"13","06","OLLANTAYTAMBO","1306","1306 - OLLANTAYTAMBO"]
[null,null,null,null,null,null,null,null,null,null,null,null,null,null,"000002343","COYA                                                                                                ","02","05","04","02","0205",{"$f":"CONCATENATE(O138,\" - \",P138)","v":"000002343 - COYA                                                                                                "},null,null,null,null,null,"13","07","YUCAY","1307","1307 - YUCAY"]
[null,null,null,null,null,null,null,null,null,null,null,null,null,null,"000002344","LAMAY                                                                                               ","02","05","04","03","0205","000002344 - LAMAY                                                                                               ",null,null,null,null,null,"00","00","(All)",{"$f":"CONCATENATE(AB139,AC139)","v":"0000"},{"$f":"CONCATENATE(AB139,AC139,\" - \",AD139)","v":"0000 - (All)"}]
[null,null,null,null,null,null,null,null,null,null,null,null,null,null,"000002348","PISAC                                                                                               ","02","05","04","05","0205","000002348 - PISAC                                                                                               "]
[null,null,null,null,null,null,null,null,null,null,null,null,null,null,"000002349","CUYO CHICO                                                                                          ","02","05","04","05","0205","000002349 - CUYO CHICO                                                                                          "]
[null,null,null,null,null,null,null,null,null,null,null,null,null,null,"000002350","CUYO GRANDE                                                                                         ","02","05","04","05","0205","000002350 - CUYO GRANDE                                                                                         "]
[null,null,null,null,null,null,null,null,null,null,null,null,null,null,"000002351","QUELLO QUELLO                                                                                       ","02","05","04","05","0205","000002351 - QUELLO QUELLO                                                                                       "]
[null,null,null,null,null,null,null,null,null,null,null,null,null,null,"000002352","SAN SALVADOR                                                                                        ","02","05","04","06","0205","000002352 - SAN SALVADOR                                                                                        "]
[null,null,null,null,null,null,null,null,null,null,null,null,null,null,"000002353","TARAY                                                                                               ","02","05","04","07","0205","000002353 - TARAY                                                                                               "]
[null,null,null,null,null,null,null,null,null,null,null,null,null,null,"000002354","HUANCALLE                                                                                           ","02","05","04","07","0205","000002354 - HUANCALLE                                                                                           "]
[null,null,null,null,null,null,null,null,null,null,null,null,null,null,"000006975","SAYLLAFAYA                                                                                          ","02","05","04","03","0205","000006975 - SAYLLAFAYA                                                                                          "]
[null,null,null,null,null,null,null,null,null,null,null,null,null,null,"000007145","HUAMA                                                                                               ","02","05","04","03","0205","000007145 - HUAMA                                                                                               "]
[null,null,null,null,null,null,null,null,null,null,null,null,null,null,"000007146","POQUES                                                                                              ","02","05","04","03","0205","000007146 - POQUES                                                                                              "]
[null,null,null,null,null,null,null,null,null,null,null,null,null,null,"000036012","HUARQUI","02","05","04","03","0205","000036012 - HUARQUI"]
[null,null,null,null,null,null,null,null,null,null,null,null,null,null,"000036087","TIRACANCHA                                                                                          ","02","05","04","06","0205","000036087 - TIRACANCHA                                                                                          "]
[null,null,null,null,null,null,null,null,null,null,null,null,null,null,"000000000","(All)","02","06",null,null,{"$f":"CONCATENATE(Q152,R152)","v":"0206"},"000000000 - (All)"]
[null,null,null,null,null,null,null,null,null,null,null,null,null,null,"000002341","CALCA                                                                                               ","02","06","04","01","0206","000002341 - CALCA                                                                                               "]
[null,null,null,null,null,null,null,null,null,null,null,null,null,null,"000002342","AMPARAES                                                                                            ","02","06","04","04","0206","000002342 - AMPARAES                                                                                            "]
[null,null,null,null,null,null,null,null,null,null,null,null,null,null,"000002345","CCACHIN                                                                                             ","02","06","04","04","0206","000002345 - CCACHIN                                                                                             "]
[null,null,null,null,null,null,null,null,null,null,null,null,null,null,"000002346","CHOQUECANCHA                                                                                        ","02","06","04","04","0206","000002346 - CHOQUECANCHA                                                                                        "]
[null,null,null,null,null,null,null,null,null,null,null,null,null,null,"000002347","LARES                                                                                               ","02","06","04","04","0206","000002347 - LARES                                                                                               "]
[null,null,null,null,null,null,null,null,null,null,null,null,null,null,"000002361","SUYO                                                                                                ","02","06","04","04","0206","000002361 - SUYO                                                                                                "]
[null,null,null,null,null,null,null,null,null,null,null,null,null,null,"000002515","PAROBAMBA                                                                                           ","02","06",11,"03","0206","000002515 - PAROBAMBA                                                                                           "]
[null,null,null,null,null,null,null,null,null,null,null,null,null,null,"000007143","OTOCANI                                                                                             ","02","06",11,"03","0206","000007143 - OTOCANI                                                                                             "]
[null,null,null,null,null,null,null,null,null,null,null,null,null,null,"000007144","PATABAMBA                                                                                           ","02","06","04","07","0206","000007144 - PATABAMBA                                                                                           "]
[null,null,null,null,null,null,null,null,null,null,null,null,null,null,"000010069","ESSALUD-CALCA","02","06","04","01","0206","000010069 - ESSALUD-CALCA"]
[null,null,null,null,null,null,null,null,null,null,null,null,null,null,"000010759","HUARAN                                                                                              ","02","06","04","01","0206","000010759 - HUARAN                                                                                              "]
[null,null,null,null,null,null,null,null,null,null,null,null,null,null,"000010762","ACCHA ALTA - PAMPALLACTA                                                                            ","02","06","04","01","0206","000010762 - ACCHA ALTA - PAMPALLACTA                                                                            "]
[null,null,null,null,null,null,null,null,null,null,null,null,null,null,"000026273","MENTAL COMUNITARIO CALCA","02","06","04","01","0206","000026273 - MENTAL COMUNITARIO CALCA"]
[null,null,null,null,null,null,null,null,null,null,null,null,null,null,"000000000","(All)","02","07",null,null,"0207","000000000 - (All)"]
[null,null,null,null,null,null,null,null,null,null,null,null,null,null,"000002540","URUBAMBA                                                                                            ","02","07",13,"01","0207","000002540 - URUBAMBA                                                                                            "]
[null,null,null,null,null,null,null,null,null,null,null,null,null,null,"000002541","YANAHUARA                                                                                           ","02","07",13,"01","0207","000002541 - YANAHUARA                                                                                           "]
[null,null,null,null,null,null,null,null,null,null,null,null,null,null,"000002543","CHINCHERO                                                                                           ","02","07",13,"02","0207","000002543 - CHINCHERO                                                                                           "]
[null,null,null,null,null,null,null,null,null,null,null,null,null,null,"000002544","OCCOTUAN                                                                                            ","02","07",13,"02","0207","000002544 - OCCOTUAN                                                                                            "]
[null,null,null,null,null,null,null,null,null,null,null,null,null,null,"000002545","HUAYLLABAMBA                                                                                        ","02","07",13,"03","0207","000002545 - HUAYLLABAMBA                                                                                        "]
[null,null,null,null,null,null,null,null,null,null,null,null,null,null,"000002546","MACHUPICCHU                                                                                         ","02","07",13,"04","0207","000002546 - MACHUPICCHU                                                                                         "]
[null,null,null,null,null,null,null,null,null,null,null,null,null,null,"000002547","COLLPANI                                                                                            ","02","07",13,"04","0207","000002547 - COLLPANI                                                                                            "]
[null,null,null,null,null,null,null,null,null,null,null,null,null,null,"000002548","MARAS                                                                                               ","02","07",13,"05","0207","000002548 - MARAS                                                                                               "]
[null,null,null,null,null,null,null,null,null,null,null,null,null,null,"000002549","OLLANTAYTAMBO                                                                                       ","02","07",13,"06","0207","000002549 - OLLANTAYTAMBO                                                                                       "]
[null,null,null,null,null,null,null,null,null,null,null,null,null,null,"000002550","CHILLCA                                                                                            ","02","07",13,"06","0207","000002550 - CHILLCA                                                                                            "]
[null,null,null,null,null,null,null,null,null,null,null,null,null,null,"000002551","YUCAY                                                                                               ","02","07",13,"07","0207","000002551 - YUCAY                                                                                               "]
[null,null,null,null,null,null,null,null,null,null,null,null,null,null,"000006974","CAMINO INCA HUAYLLABAMBA                                                                            ","02","07",13,"04","0207","000006974 - CAMINO INCA HUAYLLABAMBA                                                                            "]
[null,null,null,null,null,null,null,null,null,null,null,null,null,null,"000010073","ESSALUD-MACHU PICCHU","02","07",13,"04","0207","000010073 - ESSALUD-MACHU PICCHU"]
[null,null,null,null,null,null,null,null,null,null,null,null,null,null,"000010758","CRUZPATA                                                                                            ","02","07",13,"05","0207","000010758 - CRUZPATA                                                                                            "]
[null,null,null,null,null,null,null,null,null,null,null,null,null,null,"000010760","PATACANCHA                                                                                          ","02","07",13,"06","0207","000010760 - PATACANCHA                                                                                          "]
[null,null,null,null,null,null,null,null,null,null,null,null,null,null,"000030666","MENTAL COMUNITARIO URUBAMBA","02","07",13,"01","0207","000030666 - MENTAL COMUNITARIO URUBAMBA"]
[null,null,null,null,null,null,null,null,null,null,null,null,null,null,"000035851","ESSALUD-URUBAMBA","02","07",13,"01","0207","000035851 - ESSALUD-URUBAMBA"]
[null,null,null,null,null,null,null,null,null,null,null,null,null,null,"000000000","(All)","02","08",null,null,{"$f":"CONCATENATE(Q184,R184)","v":"0208"},"000000000 - (All)"]
[null,null,null,null,null,null,null,null,null,null,null,null,null,null,"000002355","LA QUEBRADA                                                                                         ","02","08","04","08","0208","000002355 - LA QUEBRADA                                                                                         "]
[null,null,null,null,null,null,null,null,null,null,null,null,null,null,"000002356","CCORIMAYO                                                                                           ","02","08","04","08","0208","000002356 - CCORIMAYO                                                                                           "]
[null,null,null,null,null,null,null,null,null,null,null,null,null,null,"000002357","COLCCA YANATILE                                                                                     ","02","08","04","08","0208","000002357 - COLCCA YANATILE                                                                                     "]
[null,null,null,null,null,null,null,null,null,null,null,null,null,null,"000002358","MUYUPAY                                                                                             ","02","08","04","08","0208","000002358 - MUYUPAY                                                                                             "]
[null,null,null,null,null,null,null,null,null,null,null,null,null,null,"000002359","PUTUCUSI                                                                                            ","02","08","04","08","0208","000002359 - PUTUCUSI                                                                                            "]
[null,null,null,null,null,null,null,null,null,null,null,null,null,null,"000002360","QUESQUENTO                                                                                          ","02","08","04","08","0208","000002360 - QUESQUENTO                                                                                          "]
[null,null,null,null,null,null,null,null,null,null,null,null,null,null,"000002362","HUACHIBAMBA                                                                                         ","02","08","04","08","0208","000002362 - HUACHIBAMBA                                                                                         "]
[null,null,null,null,null,null,null,null,null,null,null,null,null,null,"000002464","VERSALLES                                                                                           ","02","08","09","05","0208","000002464 - VERSALLES                                                                                           "]
[null,null,null,null,null,null,null,null,null,null,null,null,null,null,"000002467","PUENTE SANTIAGO                                                                                     ","02","08","09","06","0208","000002467 - PUENTE SANTIAGO                                                                                     "]
[null,null,null,null,null,null,null,null,null,null,null,null,null,null,"000006971","COMBAPATA YANATILE                                                                                  ","02","08","04","08","0208","000006971 - COMBAPATA YANATILE                                                                                  "]
[null,null,null,null,null,null,null,null,null,null,null,null,null,null,"000006973","BELLAVISTA                                                                                          ","02","08","04","08","0208","000006973 - BELLAVISTA                                                                                          "]
[null,null,null,null,null,null,null,null,null,null,null,null,null,null,"000007142","CHANCAMAYO                                                                                          ","02","08","04","08","0208","000007142 - CHANCAMAYO                                                                                          "]
[null,null,null,null,null,null,null,null,null,null,null,null,null,null,"000000000","(All)","02","09",null,null,"0209","000000000 - (All)"]
[null,null,null,null,null,null,null,null,null,null,null,null,null,null,"000002290","SAN PEDRO CUSCO                                                                                     ","02","09","01","01","0209","000002290 - SAN PEDRO CUSCO                                                                                     "]
[null,null,null,null,null,null,null,null,null,null,null,null,null,null,"000002291","SIETE CUARTONES                                                                                     ","02","09","01","01","0209","000002291 - SIETE CUARTONES                                                                                     "]
[null,null,null,null,null,null,null,null,null,null,null,null,null,null,"000002293","MIRAFLORES                                                                                          ","02","09","01","01","0209","000002293 - MIRAFLORES                                                                                          "]
[null,null,null,null,null,null,null,null,null,null,null,null,null,null,"000002294","PICCHU LA RINCONADA                                                                                 ","02","09","01","01","0209","000002294 - PICCHU LA RINCONADA                                                                                 "]
[null,null,null,null,null,null,null,null,null,null,null,null,null,null,"000002295","BUENA VISTA                                                                                         ","02","09","01","01","0209",{"$f":"CONCATENATE(O202,\" - \",P202)","v":"000002295 - BUENA VISTA                                                                                         "}]
[null,null,null,null,null,null,null,null,null,null,null,null,null,null,"000002299","POROY                                                                                               ","02","09","01","03","0209","000002299 - POROY                                                                                               "]
[null,null,null,null,null,null,null,null,null,null,null,null,null,null,"999999999","(All)","02","99",null,null,"0299","999999999 - (All)"]
[null,null,null,null,null,null,null,null,null,null,null,null,null,null,"000002421","HOSPITAL QUILLABAMBA","03","00","09","01","0300","000002421 - HOSPITAL QUILLABAMBA"]
[null,null,null,null,null,null,null,null,null,null,null,null,null,null,"000000000","(All)","03","01",null,null,"0301","000000000 - (All)"]
[null,null,null,null,null,null,null,null,null,null,null,null,null,null,"000002422","HUAYANAY                                                                                            ","03","01","09","01","0301","000002422 - HUAYANAY                                                                                            "]
[null,null,null,null,null,null,null,null,null,null,null,null,null,null,"000002423","IDMA                                                                                                ","03","01","09","01","0301","000002423 - IDMA                                                                                                "]
[null,null,null,null,null,null,null,null,null,null,null,null,null,null,"000002424","POTRERO                                                                                             ","03","01","09","01","0301","000002424 - POTRERO                                                                                             "]
[null,null,null,null,null,null,null,null,null,null,null,null,null,null,"000002425","ECHARATE                                                                                            ","03","01","09","02","0301","000002425 - ECHARATE                                                                                            "]
[null,null,null,null,null,null,null,null,null,null,null,null,null,null,"000002429","CIRIALO                                                                                             ","03","01","09","02","0301","000002429 - CIRIALO                                                                                             "]
[null,null,null,null,null,null,null,null,null,null,null,null,null,null,"000002430","PAMPA CONCEPCION                                                                                    ","03","01","09","02","0301","000002430 - PAMPA CONCEPCION                                                                                    "]
[null,null,null,null,null,null,null,null,null,null,null,null,null,null,"000002433","KORIBENI                                                                                            ","03","01","09","02","0301","000002433 - KORIBENI                                                                                            "]
[null,null,null,null,null,null,null,null,null,null,null,null,null,null,"000002439","PALMA REAL                                                                                          ","03","01","09","02","0301","000002439 - PALMA REAL                                                                                          "]
[null,null,null,null,null,null,null,null,null,null,null,null,null,null,"000002446","CHACCO                                                                                              ","03","01","09","02","0301","000002446 - CHACCO                                                                                              "]
[null,null,null,null,null,null,null,null,null,null,null,null,null,null,"000002449","ICHIQUIATO                                                                                          ","03","01","09","02","0301","000002449 - ICHIQUIATO                                                                                          "]
[null,null,null,null,null,null,null,null,null,null,null,null,null,null,"000002450","SAN ANTONIO                                                                                         ","03","01","09","02","0301","000002450 - SAN ANTONIO                                                                                         "]
[null,null,null,null,null,null,null,null,null,null,null,null,null,null,"000002451","CHAHUARES                                                                                           ","03","01","09","02","0301","000002451 - CHAHUARES                                                                                           "]
[null,null,null,null,null,null,null,null,null,null,null,null,null,null,"000008910","SANTA ANA                                                                                           ","03","01","09","01","0301","000008910 - SANTA ANA                                                                                           "]
[null,null,null,null,null,null,null,null,null,null,null,null,null,null,"000010062","ESSALUD-QUILLABAMBA","03","01","09","01","0301","000010062 - ESSALUD-QUILLABAMBA"]
[null,null,null,null,null,null,null,null,null,null,null,null,null,null,"000011744","SANIDAD-QUILLABAMBA PNP","03","01","09","01","0301","000011744 - SANIDAD-QUILLABAMBA PNP"]
[null,null,null,null,null,null,null,null,null,null,null,null,null,null,"000015842","PAVAYOC                                                                                             ","03","01","09","01","0301","000015842 - PAVAYOC                                                                                             "]
[null,null,null,null,null,null,null,null,null,null,null,null,null,null,"000023721","EJERCITO-PERUANO","03","01","09","01","0301","000023721 - EJERCITO-PERUANO"]
[null,null,null,null,null,null,null,null,null,null,null,null,null,null,"000026386","MENTAL QUILLABAMBA","03","01","09","01","0301","000026386 - MENTAL QUILLABAMBA"]
[null,null,null,null,null,null,null,null,null,null,null,null,null,null,"000033273","SAN ISIDRO LABRADOR - ECHARATI","03","01","09","02","0301","000033273 - SAN ISIDRO LABRADOR - ECHARATI"]
[null,null,null,null,null,null,null,null,null,null,null,null,null,null,"000000000","(All)","03","02",null,null,"0302","000000000 - (All)"]
[null,null,null,null,null,null,null,null,null,null,null,null,null,null,"000002453","HUYRO                                                                                               ","03","02","09","03","0302","000002453 - HUYRO                                                                                               "]
[null,null,null,null,null,null,null,null,null,null,null,null,null,null,"000002454","ALFAMAYO                                                                                            ","03","02","09","03","0302","000002454 - ALFAMAYO                                                                                            "]
[null,null,null,null,null,null,null,null,null,null,null,null,null,null,"000002455","HUAYOPATA                                                                                           ","03","02","09","03","0302","000002455 - HUAYOPATA                                                                                           "]
[null,null,null,null,null,null,null,null,null,null,null,null,null,null,"000002456","AMAYBAMBA                                                                                           ","03","02","09","03","0302","000002456 - AMAYBAMBA                                                                                           "]
[null,null,null,null,null,null,null,null,null,null,null,null,null,null,"000002457","SAN PABLO HUAYOPATA                                                                                 ","03","02","09","03","0302","000002457 - SAN PABLO HUAYOPATA                                                                                 "]
[null,null,null,null,null,null,null,null,null,null,null,null,null,null,"000002458","MARANURA                                                                                            ","03","02","09","04","0302","000002458 - MARANURA                                                                                            "]
[null,null,null,null,null,null,null,null,null,null,null,null,null,null,"000002460","SANTA MARIA                                                                                         ","03","02","09","04","0302","000002460 - SANTA MARIA                                                                                         "]
[null,null,null,null,null,null,null,null,null,null,null,null,null,null,"000002461","UCHUMAYO                                                                                            ","03","02","09","04","0302","000002461 - UCHUMAYO                                                                                            "]
[null,null,null,null,null,null,null,null,null,null,null,null,null,null,"000002476","SANTA TERESA                                                                                        ","03","02","09","08","0302","000002476 - SANTA TERESA                                                                                        "]
[null,null,null,null,null,null,null,null,null,null,null,null,null,null,"000002477","SULLUCUYOC                                                                                          ","03","02","09","08","0302","000002477 - SULLUCUYOC                                                                                          "]
[null,null,null,null,null,null,null,null,null,null,null,null,null,null,"000002478","TOTORA                                                                                              ","03","02","09","08","0302","000002478 - TOTORA                                                                                              "]
[null,null,null,null,null,null,null,null,null,null,null,null,null,null,"000010075","ESSALUD-HUYRO","03","02","09","03","0302","000010075 - ESSALUD-HUYRO"]
[null,null,null,null,null,null,null,null,null,null,null,null,null,null,"000000000","(All)","03","03",null,null,"0303","000000000 - (All)"]
[null,null,null,null,null,null,null,null,null,null,null,null,null,null,"000002363","TUPAC AMARU QUELLOUNO                                                                               ","03","03","04","08","0303","000002363 - TUPAC AMARU QUELLOUNO                                                                               "]
[null,null,null,null,null,null,null,null,null,null,null,null,null,null,"000002462","OCCOBAMBA LACONVENCION                                                                              ","03","03","09","05","0303","000002462 - OCCOBAMBA LACONVENCION                                                                              "]
[null,null,null,null,null,null,null,null,null,null,null,null,null,null,"000002463","CHINGANILLA                                                                                         ","03","03","09","05","0303","000002463 - CHINGANILLA                                                                                         "]
[null,null,null,null,null,null,null,null,null,null,null,null,null,null,"000002465","QUELLOUNO                                                                                           ","03","03","09","06","0303","000002465 - QUELLOUNO                                                                                           "]
[null,null,null,null,null,null,null,null,null,null,null,null,null,null,"000002466","HUILLCAPAMPA                                                                                        ","03","03","09","06","0303","000002466 - HUILLCAPAMPA                                                                                        "]
[null,null,null,null,null,null,null,null,null,null,null,null,null,null,"000002468","SAN MARTIN                                                                                          ","03","03","09","06","0303","000002468 - SAN MARTIN                                                                                          "]
[null,null,null,null,null,null,null,null,null,null,null,null,null,null,"000008906","ESTRELLA                                                                                            ","03","03","09","06","0303","000008906 - ESTRELLA                                                                                            "]
[null,null,null,null,null,null,null,null,null,null,null,null,null,null,"000008907","MATORIATO                                                                                           ","03","03","09","06","0303","000008907 - MATORIATO                                                                                           "]
[null,null,null,null,null,null,null,null,null,null,null,null,null,null,"000008908","CHIRUMBIA                                                                                           ","03","03","09","06",{"$f":"CONCATENATE(Q248,R248)","v":"0303"},"000008908 - CHIRUMBIA                                                                                           "]
[null,null,null,null,null,null,null,null,null,null,null,null,null,null,"000008909","CHAPO BOYERO                                                                                        ","03","03","09","06","0303","000008909 - CHAPO BOYERO                                                                                        "]
[null,null,null,null,null,null,null,null,null,null,null,null,null,null,"000000000","(All)","03","04",null,null,"0304","000000000 - (All)"]
[null,null,null,null,null,null,null,null,null,null,null,null,null,null,"000002427","KITENI                                                                                              ","03","04","09","02","0304","000002427 - KITENI                                                                                              "]
[null,null,null,null,null,null,null,null,null,null,null,null,null,null,"000002431","IVOCHOTE                                                                                            ","03","04","09","02","0304","000002431 - IVOCHOTE                                                                                            "]
[null,null,null,null,null,null,null,null,null,null,null,null,null,null,"000002432","KEPASHIATO                                                                                          ","03","04","09","15","0304","000002432 - KEPASHIATO                                                                                          "]
[null,null,null,null,null,null,null,null,null,null,null,null,null,null,"000002434","MATERIATO                                                                                           ","03","04","09","15","0304","000002434 - MATERIATO                                                                                           "]
[null,null,null,null,null,null,null,null,null,null,null,null,null,null,"000002438","PACHIRI                                                                                             ","03","04","09","02","0304","000002438 - PACHIRI                                                                                             "]
[null,null,null,null,null,null,null,null,null,null,null,null,null,null,"000002440","PANGOA                                                                                              ","03","04","09","02","0304","000002440 - PANGOA                                                                                              "]
[null,null,null,null,null,null,null,null,null,null,null,null,null,null,"000002443","SANIRIATO                                                                                           ","03","04","09","02","0304","000002443 - SANIRIATO                                                                                           "]
[null,null,null,null,null,null,null,null,null,null,null,null,null,null,"000002447","KAMANQUIRIATO                                                                                       ","03","04","09","02","0304","000002447 - KAMANQUIRIATO                                                                                       "]
[null,null,null,null,null,null,null,null,null,null,null,null,null,null,"000002489","YUVENI                                                                                              ","03","04","09","09","0304","000002489 - YUVENI                                                                                              "]
[null,null,null,null,null,null,null,null,null,null,null,null,null,null,"000002493","SELVA ALEGRE                                                                                        ","03","04","09","09","0304","000002493 - SELVA ALEGRE                                                                                        "]
[null,null,null,null,null,null,null,null,null,null,null,null,null,null,"000006976","CHONTABAMBA                                                                                         ","03","04","09","09","0304","000006976 - CHONTABAMBA                                                                                         "]
[null,null,null,null,null,null,null,null,null,null,null,null,null,null,"000013068","TRIO RIO                                                                                            ","03","04","09","15","0304","000013068 - TRIO RIO                                                                                            "]
[null,null,null,null,null,null,null,null,null,null,null,null,null,null,"000013069","PUGUIENTIMARI                                                                                       ","03","04","09","15","0304","000013069 - PUGUIENTIMARI                                                                                       "]
[null,null,null,null,null,null,null,null,null,null,null,null,null,null,"000014531","ESSALUD-ECHARATE/KITENI","03","04","09","02","0304","000014531 - ESSALUD-ECHARATE/KITENI"]
[null,null,null,null,null,null,null,null,null,null,null,null,null,null,"000024296","EJERCITO-MIARIA 334","03","04","09","02",{"$f":"CONCATENATE(Q265,R265)","v":"0304"},"000024296 - EJERCITO-MIARIA 334"]
[null,null,null,null,null,null,null,null,null,null,null,null,null,null,"000024583","EJERCITO-KEPASHIATO 314","03","04","09","02",{"$f":"CONCATENATE(Q266,R266)","v":"0304"},{"$f":"CONCATENATE(O266,\" - \",P266)","v":"000024583 - EJERCITO-KEPASHIATO 314"}]
[null,null,null,null,null,null,null,null,null,null,null,null,null,null,"000000000","(All)","03","05",null,null,{"$f":"CONCATENATE(Q267,R267)","v":"0305"},"000000000 - (All)"]
[null,null,null,null,null,null,null,null,null,null,null,null,null,null,"000002426","KIRIGUETI                                                                                           ","03","05","09","14","0305","000002426 - KIRIGUETI                                                                                           "]
[null,null,null,null,null,null,null,null,null,null,null,null,null,null,"000002428","CHOCORIARI                                                                                          ","03","05","09","14","0305","000002428 - CHOCORIARI                                                                                          "]
[null,null,null,null,null,null,null,null,null,null,null,null,null,null,"000002435","MIARIA                                                                                              ","03","05","09","14","0305","000002435 - MIARIA                                                                                              "]
[null,null,null,null,null,null,null,null,null,null,null,null,null,null,"000002436","NUEVA LUZ                                                                                           ","03","05","09","14","0305","000002436 - NUEVA LUZ                                                                                           "]
[null,null,null,null,null,null,null,null,null,null,null,null,null,null,"000002437","NUEVO MUNDO                                                                                         ","03","05","09","14","0305","000002437 - NUEVO MUNDO                                                                                         "]
[null,null,null,null,null,null,null,null,null,null,null,null,null,null,"000002441","PUERTO HUALLANA                                                                                     ","03","05","09","14","0305","000002441 - PUERTO HUALLANA                                                                                     "]
[null,null,null,null,null,null,null,null,null,null,null,null,null,null,"000002442","PUERTO RICO                                                                                         ","03","05","09","14","0305","000002442 - PUERTO RICO                                                                                         "]
[null,null,null,null,null,null,null,null,null,null,null,null,null,null,"000002444","SENSA                                                                                               ","03","05","09","14","0305","000002444 - SENSA                                                                                               "]
[null,null,null,null,null,null,null,null,null,null,null,null,null,null,"000002445","TIMPIA                                                                                              ","03","05","09","14","0305","000002445 - TIMPIA                                                                                              "]
[null,null,null,null,null,null,null,null,null,null,null,null,null,null,"000002448","KAMISEA                                                                                             ","03","05","09","14","0305","000002448 - KAMISEA                                                                                             "]
[null,null,null,null,null,null,null,null,null,null,null,null,null,null,"000002452","SHIVANKORENI                                                                                        ","03","05","09","14","0305","000002452 - SHIVANKORENI                                                                                        "]
[null,null,null,null,null,null,null,null,null,null,null,null,null,null,"000013066","MONTETONI                                                                                           ","03","05","09","14","0305","000013066 - MONTETONI                                                                                           "]
[null,null,null,null,null,null,null,null,null,null,null,null,null,null,"000013067","TANGOSHIARI                                                                                         ","03","05","09","14","0305","000013067 - TANGOSHIARI                                                                                         "]
[null,null,null,null,null,null,null,null,null,null,null,null,null,null,"000015235","NUEVA VIDA                                                                                          ","03","05","09","14","0305","000015235 - NUEVA VIDA                                                                                          "]
[null,null,null,null,null,null,null,null,null,null,null,null,null,null,"000015843","CASHIRIARI                                                                                          ","03","05","09","14","0305","000015843 - CASHIRIARI                                                                                          "]
[null,null,null,null,null,null,null,null,null,null,null,null,null,null,"000015844","CAMANA                                                                                              ","03","05","09","14","0305","000015844 - CAMANA                                                                                              "]
[null,null,null,null,null,null,null,null,null,null,null,null,null,null,"000000000","(All)","03","06",null,null,"0306","000000000 - (All)"]
[null,null,null,null,null,null,null,null,null,null,null,null,null,null,"000002480","PUCYURA                                                                                             ","03","06","09","09","0306","000002480 - PUCYURA                                                                                             "]
[null,null,null,null,null,null,null,null,null,null,null,null,null,null,"000002481","CCARCCO                                                                                             ","03","06","09",11,"0306","000002481 - CCARCCO                                                                                             "]
[null,null,null,null,null,null,null,null,null,null,null,null,null,null,"000002482","INCAHUASI                                                                                           ","03","06","09",11,"0306","000002482 - INCAHUASI                                                                                           "]
[null,null,null,null,null,null,null,null,null,null,null,null,null,null,"000002484","OYARA                                                                                               ","03","06","09","09","0306","000002484 - OYARA                                                                                               "]
[null,null,null,null,null,null,null,null,null,null,null,null,null,null,"000002485","PACCAYBAMBA                                                                                         ","03","06","09",11,"0306","000002485 - PACCAYBAMBA                                                                                         "]
[null,null,null,null,null,null,null,null,null,null,null,null,null,null,"000002486","PAMPACONAS                                                                                          ","03","06","09","09","0306","000002486 - PAMPACONAS                                                                                          "]
[null,null,null,null,null,null,null,null,null,null,null,null,null,null,"000002487","CHOQUETIRA                                                                                          ","03","06","09",11,"0306","000002487 - CHOQUETIRA                                                                                          "]
[null,null,null,null,null,null,null,null,null,null,null,null,null,null,"000002490","ARMA                                                                                                ","03","06","09","09","0306","000002490 - ARMA                                                                                                "]
[null,null,null,null,null,null,null,null,null,null,null,null,null,null,"000002491","LUCMAHUAYCO                                                                                         ","03","06","09",11,"0306","000002491 - LUCMAHUAYCO                                                                                         "]
[null,null,null,null,null,null,null,null,null,null,null,null,null,null,"000002492","PALTAYBAMBA                                                                                         ","03","06","09","09","0306","000002492 - PALTAYBAMBA                                                                                         "]
[null,null,null,null,null,null,null,null,null,null,null,null,null,null,"000024637","EJERCITO-INCAHUASI 331                                                                                       ","03","06","09",11,"0306","000024637 - EJERCITO-INCAHUASI 331                                                                                       "]
[null,null,null,null,null,null,null,null,null,null,null,null,null,null,"000035520","CHANCAVINE                                                                                          ","03","06","09",12,"0306","000035520 - CHANCAVINE                                                                                          "]
[null,null,null,null,null,null,null,null,null,null,null,null,null,null,"999999999","(All)","03","99",null,null,{"$f":"CONCATENATE(Q297,R297)","v":"0399"},"999999999 - (All)"]
[null,null,null,null,null,null,null,null,null,null,null,null,null,null,"000002378","HOSPITAL SICUANI","04","00","06","01","0400","000002378 - HOSPITAL SICUANI"]
[null,null,null,null,null,null,null,null,null,null,null,null,null,null,"000007135","HOSPITAL ESPINAR","04","00","08","01","0400","000007135 - HOSPITAL ESPINAR"]
[null,null,null,null,null,null,null,null,null,null,null,null,null,null,"000000000","(All)","04","01",null,null,"0401","000000000 - (All)"]
[null,null,null,null,null,null,null,null,null,null,null,null,null,null,"000002364","YANAOCA                                                                                             ","04","01","05","01","0401","000002364 - YANAOCA                                                                                             "]
[null,null,null,null,null,null,null,null,null,null,null,null,null,null,"000002365","PONGOÑA                                                                                             ","04","01","05","01","0401","000002365 - PONGOÑA                                                                                             "]
[null,null,null,null,null,null,null,null,null,null,null,null,null,null,"000002372","PAMPAMARCA                                                                                          ","04","01","05","06","0401","000002372 - PAMPAMARCA                                                                                          "]
[null,null,null,null,null,null,null,null,null,null,null,null,null,null,"000002373","QUEHUE                                                                                              ","04","01","05","07","0401","000002373 - QUEHUE                                                                                              "]
[null,null,null,null,null,null,null,null,null,null,null,null,null,null,"000002374","HUINCHIRI                                                                                           ","04","01","05","07","0401","000002374 - HUINCHIRI                                                                                           "]
[null,null,null,null,null,null,null,null,null,null,null,null,null,null,"000002375","SURIMANA                                                                                            ","04","01","05","08","0401","000002375 - SURIMANA                                                                                            "]
[null,null,null,null,null,null,null,null,null,null,null,null,null,null,"000002376","TUNGASUCA                                                                                           ","04","01","05","08","0401","000002376 - TUNGASUCA                                                                                           "]
[null,null,null,null,null,null,null,null,null,null,null,null,null,null,"000002377","TOCCOCCORI                                                                                          ","04","01","05","08","0401","000002377 - TOCCOCCORI                                                                                          "]
[null,null,null,null,null,null,null,null,null,null,null,null,null,null,"000018241","HAMPATURA                                                                                           ","04","01","05","01","0401","000018241 - HAMPATURA                                                                                           "]
[null,null,null,null,null,null,null,null,null,null,null,null,null,null,"000032339","CCOCHAPATA                                                                                     ","04","01","05","08","0401","000032339 - CCOCHAPATA                                                                                     "]
[null,null,null,null,null,null,null,null,null,null,null,null,null,null,"000034449","CHAUPIBANDA","04","01","05","08","0401","000034449 - CHAUPIBANDA"]
[null,null,null,null,null,null,null,null,null,null,null,null,null,null,"000000000","(All)","04","02",null,null,"0402","000000000 - (All)"]
[null,null,null,null,null,null,null,null,null,null,null,null,null,null,"000002366","CHECCA                                                                                              ","04","02","05","02","0402","000002366 - CHECCA                                                                                              "]
[null,null,null,null,null,null,null,null,null,null,null,null,null,null,"000002367","CHITIBAMBA                                                                                          ","04","02","05","02","0402","000002367 - CHITIBAMBA                                                                                          "]
[null,null,null,null,null,null,null,null,null,null,null,null,null,null,"000007700","EL DESCANSO                                                                                         ","04","02","05","03","0402","000007700 - EL DESCANSO                                                                                         "]
[null,null,null,null,null,null,null,null,null,null,null,null,null,null,"000000000","(All)","04","03",null,null,"0403","000000000 - (All)"]
[null,null,null,null,null,null,null,null,null,null,null,null,null,null,"000002320","MOSOCLLACTA                                                                                         ","04","03","02","04","0403","000002320 - MOSOCLLACTA                                                                                         "]
[null,null,null,null,null,null,null,null,null,null,null,null,null,null,"000002386","COMBAPATA CANCHIS                                                                                   ","04","03","06","03","0403","000002386 - COMBAPATA CANCHIS                                                                                   "]
[null,null,null,null,null,null,null,null,null,null,null,null,null,null,"000002397","TINTA                                                                                               ","04","03","06","08","0403","000002397 - TINTA                                                                                               "]
[null,null,null,null,null,null,null,null,null,null,null,null,null,null,"000034448","CHIARA                                                                                              ","04","03","06","03","0403","000034448 - CHIARA                                                                                              "]
[null,null,null,null,null,null,null,null,null,null,null,null,null,null,"000034887","PITUMARCA                                                                                           ","04","03","06","05","0403","000034887 - PITUMARCA                                                                                           "]
[null,null,null,null,null,null,null,null,null,null,null,null,null,null,"000034929","CHECACUPE                                                                                           ","04","03","06","02","0403","000034929 - CHECACUPE                                                                                           "]
[null,null,null,null,null,null,null,null,null,null,null,null,null,null,"000000000","(All)","04","04",null,null,"0404","000000000 - (All)"]
[null,null,null,null,null,null,null,null,null,null,null,null,null,null,"000002369","LANGUI                                                                                              ","04","04","05","04","0404","000002369 - LANGUI                                                                                              "]
[null,null,null,null,null,null,null,null,null,null,null,null,null,null,"000002370","CONDEVILUYO                                                                                         ","04","04","05","04","0404","000002370 - CONDEVILUYO                                                                                         "]
[null,null,null,null,null,null,null,null,null,null,null,null,null,null,"000002371","LAYO                                                                                                ","04","04","05","05","0404","000002371 - LAYO                                                                                                "]
[null,null,null,null,null,null,null,null,null,null,null,null,null,null,"000002379","HERCCA                                                                                              ","04","04","06","01","0404","000002379 - HERCCA                                                                                              "]
[null,null,null,null,null,null,null,null,null,null,null,null,null,null,"000002380","TECHO OBRERO                                                                                        ","04","04","06","01","0404","000002380 - TECHO OBRERO                                                                                        "]
[null,null,null,null,null,null,null,null,null,null,null,null,null,null,"000002388","MARANGANI                                                                                           ","04","04","06","04","0404","000002388 - MARANGANI                                                                                           "]
[null,null,null,null,null,null,null,null,null,null,null,null,null,null,"000002389","CHECTUYOC                                                                                           ","04","04","06","04","0404",{"$f":"CONCATENATE(O330,\" - \",P330)","v":"000002389 - CHECTUYOC                                                                                           "}]
[null,null,null,null,null,null,null,null,null,null,null,null,null,null,"000002390","CCUYO                                                                                               ","04","04","06","04","0404","000002390 - CCUYO                                                                                               "]
[null,null,null,null,null,null,null,null,null,null,null,null,null,null,"000002391","OCCOBAMBA MARANGANI                                                                                 ","04","04","06","04","0404","000002391 - OCCOBAMBA MARANGANI                                                                                 "]
[null,null,null,null,null,null,null,null,null,null,null,null,null,null,"000010063","ESSALUD-SICUANI","04","04","06","01","0404","000010063 - ESSALUD-SICUANI"]
[null,null,null,null,null,null,null,null,null,null,null,null,null,null,"000024663","SANIDAD-SICUANI PNP","04","04","06","01","0404","000024663 - SANIDAD-SICUANI PNP"]
[null,null,null,null,null,null,null,null,null,null,null,null,null,null,"000000000","(All)","04","05",null,null,"0405","000000000 - (All)"]
[null,null,null,null,null,null,null,null,null,null,null,null,null,null,"000002381","QUEHUAR                                                                                             ","04","05","06","01","0405","000002381 - QUEHUAR                                                                                             "]
[null,null,null,null,null,null,null,null,null,null,null,null,null,null,"000002382","UZCUPATA                                                                                            ","04","05","06","01","0405","000002382 - UZCUPATA                                                                                            "]
[null,null,null,null,null,null,null,null,null,null,null,null,null,null,"000002383","LA FLORIDA                                                                                          ","04","05","06","01","0405","000002383 - LA FLORIDA                                                                                          "]
[null,null,null,null,null,null,null,null,null,null,null,null,null,null,"000002393","PHINAYA                                                                                             ","04","05","06","05","0405","000002393 - PHINAYA                                                                                             "]
[null,null,null,null,null,null,null,null,null,null,null,null,null,null,"000002394","SAN PABLO CANCHIS                                                                                   ","04","05","06","06","0405","000002394 - SAN PABLO CANCHIS                                                                                   "]
[null,null,null,null,null,null,null,null,null,null,null,null,null,null,"000002395","SANTA BARBARA                                                                                       ","04","05","06","06","0405","000002395 - SANTA BARBARA                                                                                       "]
[null,null,null,null,null,null,null,null,null,null,null,null,null,null,"000002396","SAN PEDRO CANCHIS                                                                                   ","04","05","06","07","0405","000002396 - SAN PEDRO CANCHIS                                                                                   "]
[null,null,null,null,null,null,null,null,null,null,null,null,null,null,"000032923","SR DE PAMPACUCHO-SICUANI","04","05","06","01","0405","000032923 - SR DE PAMPACUCHO-SICUANI"]
[null,null,null,null,null,null,null,null,null,null,null,null,null,null,"000035845","PAMPAPHALLA                                                                                         ","04","05","06","01","0405","000035845 - PAMPAPHALLA                                                                                         "]
[null,null,null,null,null,null,null,null,null,null,null,null,null,null,"000035848","MENTAL COMUNITARIO SICUANI","04","05","06","01","0405","000035848 - MENTAL COMUNITARIO SICUANI"]
[null,null,null,null,null,null,null,null,null,null,null,null,null,null,"000000000","(All)","04","06",null,null,"0406","000000000 - (All)"]
[null,null,null,null,null,null,null,null,null,null,null,null,null,null,"000002410","YAURI                                                                                               ","04","06","08","01","0406","000002410 - YAURI                                                                                               "]
[null,null,null,null,null,null,null,null,null,null,null,null,null,null,"000002411","CONDOROMA                                                                                           ","04","06","08","02","0406","000002411 - CONDOROMA                                                                                           "]
[null,null,null,null,null,null,null,null,null,null,null,null,null,null,"000002412","COPORAQUE                                                                                           ","04","06","08","03","0406","000002412 - COPORAQUE                                                                                           "]
[null,null,null,null,null,null,null,null,null,null,null,null,null,null,"000002413","URINSAYA                                                                                            ","04","06","08","03","0406","000002413 - URINSAYA                                                                                            "]
[null,null,null,null,null,null,null,null,null,null,null,null,null,null,"000002414","HUAYHUAHUASI                                                                                        ","04","06","08","03","0406","000002414 - HUAYHUAHUASI                                                                                        "]
[null,null,null,null,null,null,null,null,null,null,null,null,null,null,"000002415","OCCORURO                                                                                            ","04","06","08","04","0406","000002415 - OCCORURO                                                                                            "]
[null,null,null,null,null,null,null,null,null,null,null,null,null,null,"000002416","PALLPATA                                                                                            ","04","06","08","05","0406","000002416 - PALLPATA                                                                                            "]
[null,null,null,null,null,null,null,null,null,null,null,null,null,null,"000002418","SAN MIGUEL                                                                                          ","04","06","08","06","0406","000002418 - SAN MIGUEL                                                                                          "]
[null,null,null,null,null,null,null,null,null,null,null,null,null,null,"000002419","SUYKUTAMBO                                                                                          ","04","06","08","07","0406","000002419 - SUYKUTAMBO                                                                                          "]
[null,null,null,null,null,null,null,null,null,null,null,null,null,null,"000002420","ACCOCUNCA                                                                                           ","04","06","08","08","0406","000002420 - ACCOCUNCA                                                                                           "]
[null,null,null,null,null,null,null,null,null,null,null,null,null,null,"000006745","TINTAYA MARQUIRI                                                                                    ","04","06","08","01","0406","000006745 - TINTAYA MARQUIRI                                                                                    "]
[null,null,null,null,null,null,null,null,null,null,null,null,null,null,"000010061","ESSALUD-ESPINAR","04","06","08","01","0406","000010061 - ESSALUD-ESPINAR"]
[null,null,null,null,null,null,null,null,null,null,null,null,null,null,"000030366","MENTAL COMUNITARIO ESPINAR","04","06","08","01","0406","000030366 - MENTAL COMUNITARIO ESPINAR"]
[null,null,null,null,null,null,null,null,null,null,null,null,null,null,"000034450","PICHIGUA ESPINAR                                                                                    ","04","06","08","06","0406","000034450 - PICHIGUA ESPINAR                                                                                    "]
[null,null,null,null,null,null,null,null,null,null,null,null,null,null,"999999999","(All)","04","99",null,null,{"$f":"CONCATENATE(Q361,R361)","v":"0499"},"999999999 - (All)"]
[null,null,null,null,null,null,null,null,null,null,null,null,null,null,"000002469","SAN JUAN DE KIMBIRI-VRAEM                                                                           ","05","00","09","07","0500","000002469 - SAN JUAN DE KIMBIRI-VRAEM                                                                           "]
[null,null,null,null,null,null,null,null,null,null,null,null,null,null,"000000000","(All)","05","01",null,null,"0501","000000000 - (All)"]
[null,null,null,null,null,null,null,null,null,null,null,null,null,null,"000002470","CHIRUMPIARI                                                                                         ","05","01","09","16","0501","000002470 - CHIRUMPIARI                                                                                         "]
[null,null,null,null,null,null,null,null,null,null,null,null,null,null,"000002471","LOBO TAHUANTINSUYO                                                                                  ","05","01","09","17","0501","000002471 - LOBO TAHUANTINSUYO                                                                                  "]
[null,null,null,null,null,null,null,null,null,null,null,null,null,null,"000002472","MAPITUNARI                                                                                          ","05","01","09","07","0501","000002472 - MAPITUNARI                                                                                          "]
[null,null,null,null,null,null,null,null,null,null,null,null,null,null,"000002473","UNION ROSALES                                                                                       ","05","01","09","17","0501","000002473 - UNION ROSALES                                                                                       "]
[null,null,null,null,null,null,null,null,null,null,null,null,null,null,"000002474","SAMANIATO                                                                                           ","05","01","09","07","0501","000002474 - SAMANIATO                                                                                           "]
[null,null,null,null,null,null,null,null,null,null,null,null,null,null,"000002475","KIMBIRI ALTO                                                                                        ","05","01","09","07","0501","000002475 - KIMBIRI ALTO                                                                                        "]
[null,null,null,null,null,null,null,null,null,null,null,null,null,null,"000002479","VILLA VIRGEN                                                                                        ","05","01","09",12,"0501","000002479 - VILLA VIRGEN                                                                                        "]
[null,null,null,null,null,null,null,null,null,null,null,null,null,null,"000002488","VILLA QUINTIARINA                                                                                   ","05","01","09",13,"0501","000002488 - VILLA QUINTIARINA                                                                                   "]
[null,null,null,null,null,null,null,null,null,null,null,null,null,null,"000008283","PUEBLO LIBRE                                                                                        ","05","01","09","07","0501","000008283 - PUEBLO LIBRE                                                                                        "]
[null,null,null,null,null,null,null,null,null,null,null,null,null,null,"000008284","MANITEA ALTA                                                                                        ","05","01","09","17","0501","000008284 - MANITEA ALTA                                                                                        "]
[null,null,null,null,null,null,null,null,null,null,null,null,null,null,"000008285","ANGELES                                                                                             ","05","01","09","07","0501","000008285 - ANGELES                                                                                             "]
[null,null,null,null,null,null,null,null,null,null,null,null,null,null,"000024957","EJERCITO-LA OROYA 34                                                                                 ","05","01","09",12,"0501","000024957 - EJERCITO-LA OROYA 34                                                                                 "]
[null,null,null,null,null,null,null,null,null,null,null,null,null,null,"000000000","(All)","05","02",null,null,"0502","000000000 - (All)"]
[null,null,null,null,null,null,null,null,null,null,null,null,null,null,"000002495","MANTARO                                                                                             ","05","02","09","18","0502","000002495 - MANTARO                                                                                             "]
[null,null,null,null,null,null,null,null,null,null,null,null,null,null,"000002496","OMAYA                                                                                               ","05","02","09","10","0502","000002496 - OMAYA                                                                                               "]
[null,null,null,null,null,null,null,null,null,null,null,null,null,null,"000002497","OTARI                                                                                               ","05","02","09","10","0502","000002497 - OTARI                                                                                               "]
[null,null,null,null,null,null,null,null,null,null,null,null,null,null,"000002498","PUERTO MAYO                                                                                         ","05","02","09","10","0502","000002498 - PUERTO MAYO                                                                                         "]
[null,null,null,null,null,null,null,null,null,null,null,null,null,null,"000007113","NATIVIDAD                                                                                           ","05","02","09","10","0502","000007113 - NATIVIDAD                                                                                           "]
[null,null,null,null,null,null,null,null,null,null,null,null,null,null,"000007114","QUISTO CENTRAL                                                                                      ","05","02","09","10","0502","000007114 - QUISTO CENTRAL                                                                                      "]
[null,null,null,null,null,null,null,null,null,null,null,null,null,null,"000015104","TAMBO DEL ENE                                                                                       ","05","02","09","10","0502","000015104 - TAMBO DEL ENE                                                                                       "]
[null,null,null,null,null,null,null,null,null,null,null,null,null,null,"000015169","PITIRINQUINI                                                                                        ","05","02","09","10","0502","000015169 - PITIRINQUINI                                                                                        "]
[null,null,null,null,null,null,null,null,null,null,null,null,null,null,"000015170","PICHARI BAJA                                                                                        ","05","02","09","10","0502","000015170 - PICHARI BAJA                                                                                        "]
[null,null,null,null,null,null,null,null,null,null,null,null,null,null,"000024638","EJERCITO-MILITAR PICHARI                                                                    ","05","02","09","10","0502","000024638 - EJERCITO-MILITAR PICHARI                                                                    "]
[null,null,null,null,null,null,null,null,null,null,null,null,null,null,"000027230","SANIDAD-PICHARI PNP                                                                            ","05","02","09","10","0502","000027230 - SANIDAD-PICHARI PNP                                                                            "]
[null,null,null,null,null,null,null,null,null,null,null,null,null,null,"000027948","ESSALUD-PICHARI                                                                       ","05","02","09","10","0502","000027948 - ESSALUD-PICHARI                                                                       "]
[null,null,null,null,null,null,null,null,null,null,null,null,null,null,"000032211","NUEVO PROGRESO                                                          ","05","02","09","10","0502","000032211 - NUEVO PROGRESO                                                          "]
[null,null,null,null,null,null,null,null,null,null,null,null,null,null,"000033988","MENTAL COMUNITARIO PICHARI","05","02","09","10","0502","000033988 - MENTAL COMUNITARIO PICHARI"]
[null,null,null,null,null,null,null,null,null,null,null,null,null,null,"000034418","PICHARI VRAEM                                                                                           ","05","02","09","10","0502","000034418 - PICHARI VRAEM                                                                                           "]
[null,null,null,null,null,null,null,null,null,null,null,null,null,null,"999999999","(All)","05","99",null,null,"0599","999999999 - (All)"]
[null,null,null,null,null,null,null,null,null,null,null,null,null,null,"000002398","HOSPITAL SANTO TOMAS","06","00","07","01","0600","000002398 - HOSPITAL SANTO TOMAS"]
[null,null,null,null,null,null,null,null,null,null,null,null,null,null,"000000000","(All)","06","09",null,null,"0609",{"$f":"CONCATENATE(O394,\" - \",P394)","v":"000000000 - (All)"}]
[null,null,null,null,null,null,null,null,null,null,null,null,null,null,"000002399","PULPERA                                                                                             ","06","09","07","01","0609","000002399 - PULPERA                                                                                             "]
[null,null,null,null,null,null,null,null,null,null,null,null,null,null,"000002400","ALHUACCHULLO                                                                                        ","06","09","07","01","0609","000002400 - ALHUACCHULLO                                                                                        "]
[null,null,null,null,null,null,null,null,null,null,null,null,null,null,"000002401","CCAPACMARCA                                                                                         ","06","09","07","02","0609","000002401 - CCAPACMARCA                                                                                         "]
[null,null,null,null,null,null,null,null,null,null,null,null,null,null,"000002404","COLQUEMARCA                                                                                         ","06","09","07","04","0609","000002404 - COLQUEMARCA                                                                                         "]
[null,null,null,null,null,null,null,null,null,null,null,null,null,null,"000002405","CHARAMURAY                                                                                          ","06","09","07","04","0609","000002405 - CHARAMURAY                                                                                          "]
[null,null,null,null,null,null,null,null,null,null,null,null,null,null,"000002407","LLUSCO                                                                                              ","06","09","07","06","0609","000002407 - LLUSCO                                                                                              "]
[null,null,null,null,null,null,null,null,null,null,null,null,null,null,"000002408","QUIÑOTA                                                                                             ","06","09","07","07","0609","000002408 - QUIÑOTA                                                                                             "]
[null,null,null,null,null,null,null,null,null,null,null,null,null,null,"000002409","VELILLE                                                                                             ","06","09","07","08","0609","000002409 - VELILLE                                                                                             "]
[null,null,null,null,null,null,null,null,null,null,null,null,null,null,"000006746","LLIQUE                                                                                              ","06","09","07","01","0609","000006746 - LLIQUE                                                                                              "]
[null,null,null,null,null,null,null,null,null,null,null,null,null,null,"000006747","LUTTO                                                                                               ","06","09","07","06","0609","000006747 - LUTTO                                                                                               "]
[null,null,null,null,null,null,null,null,null,null,null,null,null,null,"000006748","COLLPA                                                                                              ","06","09","07","06","0609","000006748 - COLLPA                                                                                              "]
[null,null,null,null,null,null,null,null,null,null,null,null,null,null,"000006981","CCOYO                                                                                               ","06","09","07","01","0609","000006981 - CCOYO                                                                                               "]
[null,null,null,null,null,null,null,null,null,null,null,null,null,null,"000006982","MELLOTOTORA                                                                                         ","06","09","07","01","0609","000006982 - MELLOTOTORA                                                                                         "]
[null,null,null,null,null,null,null,null,null,null,null,null,null,null,"000006983","ORCCOMA                                                                                             ","06","09","07","01","0609","000006983 - ORCCOMA                                                                                             "]
[null,null,null,null,null,null,null,null,null,null,null,null,null,null,"000006984","CCOLLANA                                                                                            ","06","09","07","07","0609","000006984 - CCOLLANA                                                                                            "]
[null,null,null,null,null,null,null,null,null,null,null,null,null,null,"000006985","TOTORAPALLCA                                                                                        ","06","09","07","06","0609","000006985 - TOTORAPALLCA                                                                                        "]
[null,null,null,null,null,null,null,null,null,null,null,null,null,null,"000007111","YAVINA                                                                                              ","06","09","07","01","0609","000007111 - YAVINA                                                                                              "]
[null,null,null,null,null,null,null,null,null,null,null,null,null,null,"000007112","YORENCCA                                                                                            ","06","09","07","07","0609","000007112 - YORENCCA                                                                                            "]
[null,null,null,null,null,null,null,null,null,null,null,null,null,null,"000008912","ALCCA VICTORIA                                                                                      ","06","09","07","08","0609","000008912 - ALCCA VICTORIA                                                                                      "]
[null,null,null,null,null,null,null,null,null,null,null,null,null,null,"000008913","HUARACO                                                                                             ","06","09","07","04","0609","000008913 - HUARACO                                                                                             "]
[null,null,null,null,null,null,null,null,null,null,null,null,null,null,"000008914","HUAYLLANI                                                                                           ","06","09","07","04","0609","000008914 - HUAYLLANI                                                                                           "]
[null,null,null,null,null,null,null,null,null,null,null,null,null,null,"000008915","PFULLPURI CONDEPAMPA                                                                                ","06","09","07","01","0609","000008915 - PFULLPURI CONDEPAMPA                                                                                "]
[null,null,null,null,null,null,null,null,null,null,null,null,null,null,"000009963","CANCAHUANI                                                                                          ","06","09","07","02","0609","000009963 - CANCAHUANI                                                                                          "]
[null,null,null,null,null,null,null,null,null,null,null,null,null,null,"000012932","YANQUE                                                                                              ","06","09","07","04","0609","000012932 - YANQUE                                                                                              "]
[null,null,null,null,null,null,null,null,null,null,null,null,null,null,"000013185","ESSALUD-SANTO TOMAS","06","09","07","01","0609","000013185 - ESSALUD-SANTO TOMAS"]
[null,null,null,null,null,null,null,null,null,null,null,null,null,null,"000025369","PUMALLACTA","06","09","07","07","0609","000025369 - PUMALLACTA"]
[null,null,null,null,null,null,null,null,null,null,null,null,null,null,"000025371","TUNTUMA","06","09","07","08","0609","000025371 - TUNTUMA"]
[null,null,null,null,null,null,null,null,null,null,null,null,null,null,"000027008","ANTUYO","06","09","07","06","0609","000027008 - ANTUYO"]
[null,null,null,null,null,null,null,null,null,null,null,null,null,null,"000027009","TAHUAY","06","09","07","02","0609","000027009 - TAHUAY"]
[null,null,null,null,null,null,null,null,null,null,null,null,null,null,"000027011","AYACCASI","06","09","07","08","0609","000027011 - AYACCASI"]
[null,null,null,null,null,null,null,null,null,null,null,null,null,null,"000027016","HUAYCUÑUTA - URCURUTA","06","09","07","08",{"$f":"CONCATENATE(Q425,R425)","v":"0609"},"000027016 - HUAYCUÑUTA - URCURUTA"]
[null,null,null,null,null,null,null,null,null,null,null,null,null,null,"000030940","ARCANGEL SAN MIGUEL DE ESQUINA CONGUNYA","06","09","07","01","0609","000030940 - ARCANGEL SAN MIGUEL DE ESQUINA CONGUNYA"]
[null,null,null,null,null,null,null,null,null,null,null,null,null,null,"000000000","(All)","06","01",null,null,"0601","000000000 - (All)"]
[null,null,null,null,null,null,null,null,null,null,null,null,null,null,"000002402","CHAMACA                                                                                             ","06","01","07","03","0601","000002402 - CHAMACA                                                                                             "]
[null,null,null,null,null,null,null,null,null,null,null,null,null,null,"000002403","AÑAHUICHI                                                                                           ","06","01","07","03","0601","000002403 - AÑAHUICHI                                                                                           "]
[null,null,null,null,null,null,null,null,null,null,null,null,null,null,"000002406","LIVITACA                                                                                            ","06","01","07","05","0601","000002406 - LIVITACA                                                                                            "]
[null,null,null,null,null,null,null,null,null,null,null,null,null,null,"000016325","CHILLOROYA - LIVITACA                                                                               ","06","01","07","05","0601","000016325 - CHILLOROYA - LIVITACA                                                                               "]
[null,null,null,null,null,null,null,null,null,null,null,null,null,null,"000016327","AUSANTA                                                                                             ","06","01","07","05","0601","000016327 - AUSANTA                                                                                             "]
[null,null,null,null,null,null,null,null,null,null,null,null,null,null,"000016328","UCCHUCCARCCO                                                                                        ","06","01","07","03","0601","000016328 - UCCHUCCARCCO                                                                                        "]
[null,null,null,null,null,null,null,null,null,null,null,null,null,null,"000016329","INGATA                                                                                              ","06","01","07","03","0601","000016329 - INGATA                                                                                              "]
[null,null,null,null,null,null,null,null,null,null,null,null,null,null,"000016330","CCONCHACCOLLO                                                                                       ","06","01","07","03","0601","000016330 - CCONCHACCOLLO                                                                                       "]
[null,null,null,null,null,null,null,null,null,null,null,null,null,null,"000016332","PATAQUEÑA - LIVITACA","06","01","07","05","0601","000016332 - PATAQUEÑA - LIVITACA"]
[null,null,null,null,null,null,null,null,null,null,null,null,null,null,"000016334","KISIO                                                                                               ","06","01","07","05","0601","000016334 - KISIO                                                                                               "]
[null,null,null,null,null,null,null,null,null,null,null,null,null,null,"000025739","PISQUICOCHA","06","01","07","05","0601","000025739 - PISQUICOCHA"]
[null,null,null,null,null,null,null,null,null,null,null,null,null,null,"000025740","TOTORA - REYNA DE LOS ANGELES","06","01","07","05","0601","000025740 - TOTORA - REYNA DE LOS ANGELES"]
[null,null,null,null,null,null,null,null,null,null,null,null,null,null,"000035860","KAYNO","06","01","07","05","0601","000035860 - KAYNO"]
[null,null,null,null,null,null,null,null,null,null,null,null,null,null,"000035861","CCACHO","06","01","07","03","0601","000035861 - CCACHO"]
[null,null,null,null,null,null,null,null,null,null,null,null,null,null,"000035862","SANTA ISABEL JALCCO","06","01","07","05","0601","000035862 - SANTA ISABEL JALCCO"]
[null,null,null,null,null,null,null,null,null,null,null,null,null,null,"000035863","TINCURCA","06","01","07","03","0601","000035863 - TINCURCA"]
[null,null,null,null,null,null,null,null,null,null,null,null,null,null,"000035864","CANGALLE","06","01","07","01","0601","000035864 - CANGALLE"]
[null,null,null,null,null,null,null,null,null,null,null,null,null,null,"999999999","(All)","06","99",null,null,{"$f":"CONCATENATE(Q445,R445)","v":"0699"},{"$f":"CONCATENATE(O445,\" - \",P445)","v":"999999999 - (All)"}]
[null,null,null,null,null,null,null,null,null,null,null,null,null,null,"999999999","(All)","99","99",null,null,{"$f":"CONCATENATE(Q446,R446)","v":"9999"},{"$f":"CONCATENATE(O446,\" - \",P446)","v":"999999999 - (All)"}]

{"sheet":"TD","index":1,"n_rows":68,"n_cols":240,"rows_kept":68,"cut":false,"hidden":true,"merged":[[1,1,1,3]]}
[]
[null,"Datos",null,null,null,"Tabla",{"$f":"IF(F3=\"(Todas)\",\"CUSCO \",\"\")","v":""}]
[null,"RED","99 - (All)",null,null,{"$f":"TRIM(MID(C3,5,90))","v":"(All)"},{"$f":"IF(F3=\"(All)\",\" \",F3)","v":" "}]
[null,"Micro Red","9999 - (All)",null,null,{"$f":"TRIM(MID(C4,7,90))","v":"(All)"}," "]
[null,"Establecimiento","999999999 - (All)",null,null,{"$f":"TRIM(MID(C5,12,90))","v":"(All)"}," "]
[null,"Provincia","00 - (All)",null,null,{"$f":"TRIM(MID(C6,6,90))","v":"(All)"}," "]
[null,"Distrito","0000 - (All)",null,null,{"$f":"TRIM(MID(C7,8,90))","v":"(All)"}," "]
[null,"UE","7777 - (All)",null,null,{"$f":"TRIM(MID(C8,8,90))","v":"(All)"}," "]
[]
[null,"AÑO","2025"]
[null,"MESES",1,2,3,4,5,0,0,0,0,0,0,0]
[null,"Mes_desc",{"$f":"IF(C11=1,\"ENERO\",\"\")","v":"ENERO"},{"$f":"IF(D11=2,\"FEBRERO\",\"\")","v":"FEBRERO"},{"$f":"IF(E11=3,\"MARZO\",\"\")","v":"MARZO"},{"$f":"IF(F11=4,\"ABRIL\",\"\")","v":"ABRIL"},{"$f":"IF(G11=5,\"MAYO\",\"\")","v":"MAYO"},{"$f":"IF(H11=6,\"JUNIO\",\"\")","v":""},{"$f":"IF(I11=7,\"JULIO\",\"\")","v":""},{"$f":"IF(J11=8,\"AGOSTO\",\"\")","v":""},{"$f":"IF(K11=9,\"SETIEMBRE\",\"\")","v":""},{"$f":"IF(L11=10,\"OCTUBRE\",\"\")","v":""},{"$f":"IF(M11=11,\"NOVIEMBRE\",\"\")","v":""},{"$f":"IF(N11=12,\"DICIEMBRE\",\"\")","v":""},{"$f":"IF(C11=1,C12,IF(D11=2,D12,IF(E11=3,E12,IF(F11=4,F12,IF(G11=5,G12,IF(H11=6,H12,IF(I11=7,I12,IF(J11=8,J12,IF(K11=9,K12,IF(L11=10,L12,IF(M11=11,M12,IF(N11=12,N12,\"\"))))))))))))","v":"ENERO"}]
[]
[null,"ACUMULADO",20,22,24,26,28,null,null,null,null,null,null,null,{"$f":"MIN(C14:N14)","v":20},{"$f":"MAX(C14:N14)","v":28}]
[null,"Mes_desc_Acu",{"$f":"IF(C14=20,\"ENERO\",\"\")","v":"ENERO"},{"$f":"IF(D14=22,\"FEBRERO\",\"\")","v":"FEBRERO"},{"$f":"IF(E14=24,\"MARZO\",\"\")","v":"MARZO"},{"$f":"IF(F14=26,\"ABRIL\",\"\")","v":"ABRIL"},{"$f":"IF(G14=28,\"MAYO\",\"\")","v":"MAYO"},{"$f":"IF(H14=30,\"JUNIO\",\"\")","v":""},{"$f":"IF(I14=32,\"JULIO\",\"\")","v":""},{"$f":"IF(J14=34,\"AGOSTO\",\"\")","v":""},{"$f":"IF(K14=36,\"SETIEMBRE\",\"\")","v":""},{"$f":"IF(L14=38,\"OCTUBRE\",\"\")","v":""},{"$f":"IF(M14=40,\"NOVIEMBRE\",\"\")","v":""},{"$f":"IF(N14=42,\"DICIEMBRE\",\"\")","v":""},{"$f":"IF(O14=C14,C15,IF(O14=D14,D15,IF(O14=E14,E15,IF(O14=F14,F15,IF(O14=G14,G15,IF(O14=H14,H15,IF(O14=I14,I15,IF(O14=J14,J15,IF(O14=K14,K15,IF(O14=L14,L15,IF(O14=M14,M15,IF(O14=N14,N15,\"\"))))))))))))","v":"ENERO"},{"$f":"IF(P14=D14,D15,IF(P14=E14,E15,IF(P14=F14,F15,IF(P14=G14,G15,IF(P14=H14,H15,IF(P14=I14,I15,IF(P14=J14,J15,IF(P14=K14,K15,IF(P14=L14,L15,IF(P14=M14,M15,IF(P14=N14,N15,IF(P14=O14,O15,\"\"))))))))))))","v":"MAYO"}]
[null,null,null,null,null,null,null,null,null,null,null,null,null,null,{"$f":"CONCATENATE(O15,\" - \",P15)","v":"ENERO - MAYO"}]
[null,null,null,null,null,null,null,null,null,null,null,null,null,null,{"$f":"IF(O14=P14,O12,O16)","v":"ENERO - MAYO"}]
[]
[]
[]
[]
[]
[]
[]
[]
[]
[]
["Salud Ocular 1"]
[]
["Anio",2025]
["UE","(Todas)"]
["Red","CUSCO NORTE"]
["MicroRed","ANTA"]
["EESS","CHINCHAYPUJIO"]
["Provincia","(Todas)"]
["Distrito","(Todas)"]
[]
["Etiquetas de fila","Suma de O_TamRN_FR_N_0_29d","Suma de O_TamRN_FR_N_Total","Suma de O_Dx_retinoPrema_C_0_29d","Suma de O_Dx_retinoPrema_C_Total","Suma de O_ctrl_PosOpe_0_29d","Suma de O_ctrl_PosOpe_Total","Suma de O_Ex_Ojo_Vis_N_0_11m","Suma de O_Ex_Ojo_Vis_N_1a","Suma de O_Ex_Ojo_Vis_N_2a","Suma de O_Ex_Ojo_Vis_N_0_2a_Total","Suma de O_Ex_Ojo_Vis_A_0_11m","Suma de O_Ex_Ojo_Vis_A_1a","Suma de O_Ex_Ojo_Vis_A_2a","Suma de O_Ex_Ojo_Vis_A_0_2a_Total","Suma de O_Ex_Ojo_Vis_RF_0_11m","Suma de O_Ex_Ojo_Vis_RF_1a","Suma de O_Ex_Ojo_Vis_RF_2a","Suma de O_Ex_Ojo_Vis_RF_0_2a_Total","Suma de O_Determ_Agudeza_Visual_3a","Suma de O_Determ_Agudeza_Visual_4a","Suma de O_Determ_Agudeza_Visual_5_11a","Suma de O_Determ_Agudeza_Visual_Total","Suma de O_Determ_Agudeza_Visual_eva_3a","Suma de O_Determ_Agudeza_Visual_eva_4a","Suma de O_Determ_Agudeza_Visual_eva_5_11a","Suma de O_Determ_Agudeza_Visual_eva_Total","Suma de O_Determ_Agudeza_Visual_consej_3a","Suma de O_Determ_Agudeza_Visual_consej_4a","Suma de O_Determ_Agudeza_Visual_consej_5_11a","Suma de O_Determ_Agudeza_Visual_consej_Total","Suma de O_Determ_Agudeza_Visual_ref_3a","Suma de O_Determ_Agudeza_Visual_ref_4a","Suma de O_Determ_Agudeza_Visual_ref_5_11a","Suma de O_Determ_Agudeza_Visual_ref_Total","Suma de O_Dx_ErrR_Ast_3a","Suma de O_Dx_ErrR_Ast_4a","Suma de O_Dx_ErrR_Ast_5_11a","Suma de O_Dx_ErrR_Ast_Total","Suma de O_Dx_ErrR_Hip_3a","Suma de O_Dx_ErrR_Hip_4a","Suma de O_Dx_ErrR_Hip_5_11a","Suma de O_Dx_ErrR_Hip_Total","Suma de O_Dx_ErrR_Mio_3a","Suma de O_Dx_ErrR_Mio_4a","Suma de O_Dx_ErrR_Mio_5_11a","Suma de O_Dx_ErrR_Mio_Total","Suma de O_tto_Prov_anteo_3a","Suma de O_tto_Prov_anteo_4a","Suma de O_tto_Prov_anteo_5_11a","Suma de O_tto_Prov_anteo_Total","Suma de O_Prueb_aju_anteo_3a","Suma de O_Prueb_aju_anteo_4a","Suma de O_Prueb_aju_anteo_5_11a","Suma de O_Prueb_aju_anteo_Total","Suma de O_Det_Pres_Into_N_40_49a","Suma de O_Det_Pres_Into_N_50_59a","Suma de O_Det_Pres_Into_N_60a","Suma de O_Det_Pres_Into_N_40a_Total","Suma de O_Eva_glaucoma_consej_40_49a","Suma de O_Eva_glaucoma_consej_50_59a","Suma de O_Eva_glaucoma_consej_60a","Suma de O_Eva_glaucoma_consej_40a_Total","Suma de O_Eva_glaucoma_rf_40_49a","Suma de O_Eva_glaucoma_rf_50_59a","Suma de O_Eva_glaucoma_rf_60a","Suma de O_Eva_glaucoma_rf_40a_Total","Suma de O_Dx_glaucoma_40_49a","Suma de O_Dx_glaucoma_50_59a","Suma de O_Dx_glaucoma_60a","Suma de O_Dx_glaucoma_40a_Total","Suma de O_R_tto_laser_40_49a","Suma de O_R_tto_laser_50_59a","Suma de O_R_tto_laser_60a","Suma de O_R_tto_laser_40a_Total","Suma de O_R_tto_quiru_40_49a","Suma de O_R_tto_quiru_50_59a","Suma de O_R_tto_quiru_60a","Suma de O_R_tto_quiru_40a_Total","Suma de O_atc_ctrl_40_49a","Suma de O_atc_ctrl_50_59a","Suma de O_atc_ctrl_60a","Suma de O_atc_ctrl_40a_Total","Suma de O_Det_Agud_Visual_Cat_50_59a","Suma de O_Det_Agud_Visual_Cat_60a","Suma de O_Det_Agud_Visual_Cat_50a_Total","Suma de O_Evalua_Cat_50_59a","Suma de O_Evalua_Cat_60a","Suma de O_Evalua_Cat_50a_Total","Suma de O_Evalua_Cat_consej_50_59a","Suma de O_Evalua_Cat_consej_60a","Suma de O_Evalua_Cat_consej_50a_Total","Suma de O_Evalua_Cat_rf_50_59a","Suma de O_Evalua_Cat_rf_60a","Suma de O_Evalua_Cat_rf_50a_Total","Suma de O_dx_c_catarata_50_59a","Suma de O_dx_c_catarata_60a","Suma de O_dx_c_catarata_50a_Total","Suma de O_TamRN_FR_N_6m","Suma de O_Dx_retinoPrema_C_6m","Suma de O_ctrl_PosOpe_6m","Suma de O_TamRN_FR_N_7m11m","Suma de O_TamRN_FR_N_1_3a","Suma de O_TamRN_FR_S_0_29d","Suma de O_TamRN_FR_S_6m","Suma de O_TamRN_FR_S_7m11m","Suma de O_TamRN_FR_S_1_3a","Suma de O_TamRN_FR_S_Total","Suma de O_TamRN_FR_R_0_29d","Suma de O_TamRN_FR_R_6m","Suma de O_TamRN_FR_R_7m11m","Suma de O_TamRN_FR_R_1_3a","Suma de O_TamRN_FR_R_Total","Suma de O_Dx_retinoPrema_C_7m11m","Suma de O_Dx_retinoPrema_C_1_3a","Suma de O_Dx_retinoPrema_R_0_29d","Suma de O_Dx_retinoPrema_R_6m","Suma de O_Dx_retinoPrema_R_7m11m","Suma de O_Dx_retinoPrema_R_1_3a","Suma de O_Dx_retinoPrema_R_Total","Suma de O_Dx_retinoPrema_T_0_29d","Suma de O_Dx_retinoPrema_T_6m","Suma de O_Dx_retinoPrema_T_7m11m","Suma de O_Dx_retinoPrema_T_1_3a","Suma de O_Dx_retinoPrema_T_Total","Suma de O_tto_retinoPrema_CT_l_0_29d","Suma de O_tto_retinoPrema_CT_l_6m","Suma de O_tto_retinoPrema_CT_l_7m11m","Suma de O_tto_retinoPrema_CT_l_1_3a","Suma de O_tto_retinoPrema_CT_l_Total","Suma de O_tto_retinoPrema_CT_A_0_29d","Suma de O_tto_retinoPrema_CT_A_6m","Suma de O_tto_retinoPrema_CT_A_7m11m","Suma de O_tto_retinoPrema_CT_A_1_3a","Suma de O_tto_retinoPrema_CT_A_Total","Suma de O_tto_retinoPrema_CT_LA_0_29d","Suma de O_tto_retinoPrema_CT_LA_6m","Suma de O_tto_retinoPrema_CT_LA_7m11m","Suma de O_tto_retinoPrema_CT_LA_1_3a","Suma de O_tto_retinoPrema_CT_LA_Total","Suma de O_tto_retinoPrema_CT_I_0_29d","Suma de O_tto_retinoPrema_CT_I_6m","Suma de O_tto_retinoPrema_CT_I_7m11m","Suma de O_tto_retinoPrema_CT_I_1_3a","Suma de O_tto_retinoPrema_CT_I_Total","Suma de O_tto_retinoPrema_CT_R_0_29d","Suma de O_tto_retinoPrema_CT_R_6m","Suma de O_tto_retinoPrema_CT_R_7m11m","Suma de O_tto_retinoPrema_CT_R_1_3a","Suma de O_tto_retinoPrema_CT_R_Total","Suma de O_ctrl_PosOpe_7m11m","Suma de O_ctrl_PosOpe_1_3a","Suma de O_ctto_RP_ER_C_0_29d","Suma de O_ctto_RP_ER_C_6m","Suma de O_ctto_RP_ER_C_7m11m","Suma de O_ctto_RP_ER_C_1_3a","Suma de O_ctto_RP_ER_C_Total","Suma de O_ctto_RP_NI_C_0_29d","Suma de O_ctto_RP_NI_C_6m","Suma de O_ctto_RP_NI_C_7m11m","Suma de O_ctto_RP_NI_C_1_3a","Suma de O_ctto_RP_NI_C_Total","Suma de O_ctto_RP_ES_C_0_29d","Suma de O_ctto_RP_ES_C_6m","Suma de O_ctto_RP_ES_C_7m11m","Suma de O_ctto_RP_ES_C_1_3a","Suma de O_ctto_RP_ES_C_Total","Suma de O_ctto_RP_GL_C_0_29d","Suma de O_ctto_RP_GL_C_6m","Suma de O_ctto_RP_GL_C_7m11m","Suma de O_ctto_RP_GL_C_1_3a","Suma de O_ctto_RP_GL_C_Total","Suma de O_ctto_RP_CA_C_0_29d","Suma de O_ctto_RP_CA_C_6m","Suma de O_ctto_RP_CA_C_7m11m","Suma de O_ctto_RP_CA_C_1_3a","Suma de O_ctto_RP_CA_C_Total","Suma de O_ctto_RP_RE_C_0_29d","Suma de O_ctto_RP_RE_C_6m","Suma de O_ctto_RP_RE_C_7m11m","Suma de O_ctto_RP_RE_C_1_3a","Suma de O_ctto_RP_RE_C_Total","Suma de O_Eva_Ojo_Vis_N_0_11m","Suma de O_Eva_Ojo_Vis_N_1a","Suma de O_Eva_Ojo_Vis_N_2a","Suma de O_Eva_Ojo_Vis_N_0_2a_Total","Suma de O_Dx_ErrR_Ani_3a","Suma de O_Dx_ErrR_Ani_4a","Suma de O_Dx_ErrR_Ani_5_11a","Suma de O_Dx_ErrR_Ani_Total","Suma de O_tto_Prov_anteo_cons_3a","Suma de O_tto_Prov_anteo_cons_4a","Suma de O_tto_Prov_anteo_cons_5_11a","Suma de O_tto_Prov_anteo_cons_Total","Suma de O_Prueb_aju_anteo_cons_3a","Suma de O_Prueb_aju_anteo_cons_4a","Suma de O_Prueb_aju_anteo_cons_5_11a","Suma de O_Prueb_aju_anteo_cons_Total","Suma de O_Det_Pres_Into_N_Niño","Suma de O_Eva_glaucoma_Niño","Suma de O_Eva_glaucoma_40_49a","Suma de O_Eva_glaucoma_50_59a","Suma de O_Eva_glaucoma_60a","Suma de O_Eva_glaucoma_40a_Total","Suma de O_Eva_glaucoma_rf_Niño","Suma de O_Eva_glaucoma_consej_Niño","Suma de O_Dx_glaucoma_Niño","Suma de O_Dx_glaucoma_c_Niño","Suma de O_Dx_glaucoma_c_40_49a","Suma de O_Dx_glaucoma_c_50_59a","Suma de O_Dx_glaucoma_c_60a","Suma de O_Dx_glaucoma_c_40a_Total","Suma de O_Dx_glaucoma_r_Niño","Suma de O_Dx_glaucoma_r_40_49a","Suma de O_Dx_glaucoma_r_50_59a","Suma de O_Dx_glaucoma_r_60a","Suma de O_Dx_glaucoma_r_40a_Total","Suma de O_R_tto_far_Niño","Suma de O_R_tto_far_40_49a","Suma de O_R_tto_far_50_59a","Suma de O_R_tto_far_60a","Suma de O_R_tto_far_40a_Total","Suma de O_R_tto_laser_Niño","Suma de O_R_tto_quiru_Niño","Suma de O_R_tto_quiru_ci_Niño","Suma de O_R_tto_quiru_ci_40_49a","Suma de O_R_tto_quiru_ci_50_59a","Suma de O_R_tto_quiru_ci_60a","Suma de O_R_tto_quiru_ci_40a_Total","Suma de O_atc_ctrl_Niño","Suma de O_atc_ctrl_post_Niño","Suma de O_atc_ctrl_post_40_49a","Suma de O_atc_ctrl_post_50_59a","Suma de O_atc_ctrl_post_60a","Suma de O_atc_ctrl_post_40a_Total","Suma de O_Det_Agud_Visual_Cat_Niño","Suma de O_Evalua_Cat_Niño","Suma de O_Evalua_Cat_rf_Niño","Suma de O_Evalua_Cat_consej_Niño","Suma de O_dx_c_catarata_Niño"]
[1,0,0,0,0,0,0,0,0,0,0,0,0,0,0,0,0,0,0,0,0,0,0,0,0,0,0,0,0,0,0,0,0,0,0,0,0,0,0,0,0,0,0,0,0,0,0,0,0,0,0,0,0,0,0,0,0,0,0,0,0,0,0,0,0,0,0,0,0,0,0,0,0,0,0,0,0,0,0,0,0,0,0,0,0,0,0,0,0,0,0,0,0,0,0,0,0,0,0,0,0,0,0,0,0,0,0,0,0,0,0,0,0,0,0,0,0,0,0,0,0,0,0,0,0,0,0,0,0,0,0,0,0,0,0,0,0,0,0,0,0,0,0,0,0,0,0,0,0,0,0,0,0,0,0,0,0,0,0,0,0,0,0,0,0,0,0,0,0,0,0,0,0,0,0,0,0,0,0,0,0,0,0,0,0,0,0,0,0,0,0,0,0,0,0,0,0,0,0,0,0,0,0,0,0,0,0,0,0,0,0,0,0,0,0,0,0,0,0,0,0,0,0,0,0,0,0,0,0,0,0,0,0,0,0,0,0,0,0,0]
[2,0,0,0,0,0,0,0,0,0,0,0,0,0,0,0,0,0,0,0,0,0,0,0,0,0,0,0,0,0,0,0,0,0,0,0,0,0,0,0,0,0,0,0,0,0,0,0,0,0,0,0,0,0,0,0,0,0,0,0,0,0,0,0,0,0,0,0,0,0,0,0,0,0,0,0,0,0,0,0,0,0,0,0,0,0,0,0,0,0,0,0,0,0,0,0,0,0,0,0,0,0,0,0,0,0,0,0,0,0,0,0,0,0,0,0,0,0,0,0,0,0,0,0,0,0,0,0,0,0,0,0,0,0,0,0,0,0,0,0,0,0,0,0,0,0,0,0,0,0,0,0,0,0,0,0,0,0,0,0,0,0,0,0,0,0,0,0,0,0,0,0,0,0,0,0,0,0,0,0,0,0,0,0,0,0,0,0,0,0,0,0,0,0,0,0,0,0,0,0,0,0,0,0,0,0,0,0,0,0,0,0,0,0,0,0,0,0,0,0,0,0,0,0,0,0,0,0,0,0,0,0,0,0,0,0,0,0,0,0]
[3,0,0,0,0,0,0,0,0,0,0,0,0,0,0,0,0,0,0,0,0,0,0,0,0,0,0,0,0,0,0,0,0,0,0,0,0,0,0,0,0,0,0,0,0,0,0,0,0,0,0,0,0,0,0,0,0,0,0,0,0,0,0,0,0,0,0,0,0,0,0,0,0,0,0,0,0,0,0,0,0,0,0,0,0,0,0,0,0,0,0,0,0,0,0,0,0,0,0,0,0,0,0,0,0,0,0,0,0,0,0,0,0,0,0,0,0,0,0,0,0,0,0,0,0,0,0,0,0,0,0,0,0,0,0,0,0,0,0,0,0,0,0,0,0,0,0,0,0,0,0,0,0,0,0,0,0,0,0,0,0,0,0,0,0,0,0,0,0,0,0,0,0,0,0,0,0,0,0,0,0,0,0,0,0,0,0,0,0,0,0,0,0,0,0,0,0,0,0,0,0,0,0,0,0,0,0,0,0,0,0,0,0,0,0,0,0,0,0,0,0,0,0,0,0,0,0,0,0,0,0,0,0,0,0,0,0,0,0,0]
[4,0,0,0,0,0,0,0,0,0,0,0,0,0,0,0,0,0,0,0,0,0,0,0,0,0,0,0,0,0,0,0,0,0,0,0,0,0,0,0,0,0,0,0,0,0,0,0,0,0,0,0,0,0,0,0,0,0,0,0,0,0,0,0,0,0,0,0,0,0,0,0,0,0,0,0,0,0,0,0,0,0,0,0,0,0,0,0,0,0,0,0,0,0,0,0,0,0,0,0,0,0,0,0,0,0,0,0,0,0,0,0,0,0,0,0,0,0,0,0,0,0,0,0,0,0,0,0,0,0,0,0,0,0,0,0,0,0,0,0,0,0,0,0,0,0,0,0,0,0,0,0,0,0,0,0,0,0,0,0,0,0,0,0,0,0,0,0,0,0,0,0,0,0,0,0,0,0,0,0,0,0,0,0,0,0,0,0,0,0,0,0,0,0,0,0,0,0,0,0,0,0,0,0,0,0,0,0,0,0,0,0,0,0,0,0,0,0,0,0,0,0,0,0,0,0,0,0,0,0,0,0,0,0,0,0,0,0,0,0]
[5,0,0,0,0,0,0,0,0,0,0,0,0,0,0,0,0,0,0,0,0,0,0,0,0,0,0,0,0,0,0,0,0,0,0,0,0,0,0,0,0,0,0,0,0,0,0,0,0,0,0,0,0,0,0,0,0,0,0,0,0,0,0,0,0,0,0,0,0,0,0,0,0,0,0,0,0,0,0,0,0,0,0,0,0,0,0,0,0,0,0,0,0,0,0,0,0,0,0,0,0,0,0,0,0,0,0,0,0,0,0,0,0,0,0,0,0,0,0,0,0,0,0,0,0,0,0,0,0,0,0,0,0,0,0,0,0,0,0,0,0,0,0,0,0,0,0,0,0,0,0,0,0,0,0,0,0,0,0,0,0,0,0,0,0,0,0,0,0,0,0,0,0,0,0,0,0,0,0,0,0,0,0,0,0,0,0,0,0,0,0,0,0,0,0,0,0,0,0,0,0,0,0,0,0,0,0,0,0,0,0,0,0,0,0,0,0,0,0,0,0,0,0,0,0,0,0,0,0,0,0,0,0,0,0,0,0,0,0,0]
["Total general",0,0,0,0,0,0,0,0,0,0,0,0,0,0,0,0,0,0,0,0,0,0,0,0,0,0,0,0,0,0,0,0,0,0,0,0,0,0,0,0,0,0,0,0,0,0,0,0,0,0,0,0,0,0,0,0,0,0,0,0,0,0,0,0,0,0,0,0,0,0,0,0,0,0,0,0,0,0,0,0,0,0,0,0,0,0,0,0,0,0,0,0,0,0,0,0,0,0,0,0,0,0,0,0,0,0,0,0,0,0,0,0,0,0,0,0,0,0,0,0,0,0,0,0,0,0,0,0,0,0,0,0,0,0,0,0,0,0,0,0,0,0,0,0,0,0,0,0,0,0,0,0,0,0,0,0,0,0,0,0,0,0,0,0,0,0,0,0,0,0,0,0,0,0,0,0,0,0,0,0,0,0,0,0,0,0,0,0,0,0,0,0,0,0,0,0,0,0,0,0,0,0,0,0,0,0,0,0,0,0,0,0,0,0,0,0,0,0,0,0,0,0,0,0,0,0,0,0,0,0,0,0,0,0,0,0,0,0,0]
[]
[]
[]
[]
[]
[]
[]
[]
["Salud Ocular 2"]
["Anio",2025]
["UE","(Todas)"]
["Red","CUSCO NORTE"]
["MicroRed","ANTA"]
["EESS","CHINCHAYPUJIO"]
["Provincia","(Todas)"]
["Distrito","(Todas)"]
[]
["Etiquetas de fila","Suma de O_Det_AgudVisual_Diab_18_29a","Suma de O_Det_AgudVisual_Diab_30_59a","Suma de O_Det_AgudVisual_Diab_60a","Suma de O_Det_AgudVisual_Diab_18a_Total","Suma de O_Ref_AgudVisual_Diab_18_29a","Suma de O_Ref_AgudVisual_Diab_30_59a","Suma de O_Ref_AgudVisual_Diab_60a","Suma de O_Ref_AgudVisual_Diab_18a_Total","Suma de O_Retinografia_N_18_29a","Suma de O_Retinografia_N_30_59a","Suma de O_Retinografia_N_60a","Suma de O_Retinografia_N_Total","Suma de O_c_retinopatiaD_18_29a","Suma de O_c_retinopatiaD_30_59a","Suma de O_c_retinopatiaD_60a","Suma de O_c_retinopatiaD_Total","Suma de O_tto_Terap_LaserD_18_29a","Suma de O_tto_Terap_LaserD_30_59a","Suma de O_tto_Terap_LaserD_60a","Suma de O_tto_Terap_LaserD_Total","Suma de O_tto_Terap_intravD_18_29a","Suma de O_tto_Terap_intravD_30_59a","Suma de O_tto_Terap_intravD_60a","Suma de O_tto_Terap_intravD_Total","Suma de O_tto_Cirugia_vitreaD_18_29a","Suma de O_tto_Cirugia_vitreaD_30_59a","Suma de O_tto_Cirugia_vitreaD_60a","Suma de O_tto_Cirugia_vitreaD_Total","Suma de O_ctrl_atc_diab_18_29a","Suma de O_ctrl_atc_diab_30_59a","Suma de O_ctrl_atc_diab_60a","Suma de O_ctrl_atc_diab_Total","Suma de O_Eva_tracoma_1_11a","Suma de O_Eva_tracoma_12_17a","Suma de O_Eva_tracoma_18_29a","Suma de O_Eva_tracoma_Total","Suma de O_c_tracoma_1_11a","Suma de O_c_tracoma_12_17a","Suma de O_c_tracoma_18_29a","Suma de O_c_tracoma_Total","Suma de O_tto_quiru_tracoma_1_11a","Suma de O_tto_quiru_tracoma_12_17a","Suma de O_tto_quiru_tracoma_18_29a","Suma de O_tto_quiru_tracoma_Total","Suma de O_f_tracoma_1_11a","Suma de O_f_tracoma_12_17a","Suma de O_f_tracoma_18_29a","Suma de O_f_tracoma_Total","Suma de O_atc_c_tracoma_1_11a","Suma de O_atc_c_tracoma_12_17a","Suma de O_atc_c_tracoma_18_29a","Suma de O_atc_c_tracoma_Total","Suma de O_ee_orzuelo_1_11a","Suma de O_ee_orzuelo_12_17a","Suma de O_ee_orzuelo_18_29a","Suma de O_ee_orzuelo_Total","Suma de O_ee_Conjuntivitis_1_11a","Suma de O_ee_Conjuntivitis_12_17a","Suma de O_ee_Conjuntivitis_18_29a","Suma de O_ee_Conjuntivitis_Total","Suma de O_Eva_tracoma_30_59a","Suma de O_Eva_tracoma_60a","Suma de O_c_tracoma_30_59a","Suma de O_c_tracoma_60a","Suma de O_tto_quiru_tracoma_30_59a","Suma de O_tto_quiru_tracoma_60a","Suma de O_f_tracoma_30_59a","Suma de O_f_tracoma_60a","Suma de O_atc_c_tracoma_30_59a","Suma de O_atc_c_tracoma_60a","Suma de O_ee_orzuelo_30_59a","Suma de O_ee_orzuelo_60a","Suma de O_ee_Conjuntivitis_30_59a","Suma de O_ee_Conjuntivitis_60a","Suma de O_ee_Consejeria_tto_1_11a","Suma de O_ee_Consejeria_tto_12_17a","Suma de O_ee_Consejeria_tto_18_29a","Suma de O_ee_Consejeria_tto_30_59a","Suma de O_ee_Consejeria_tto_60a","Suma de O_ee_Consejeria_tto_Total","Suma de O_dx_c_catarata_conge_Niño","Suma de O_dx_c_catarata_conge_50_59a","Suma de O_dx_c_catarata_conge_60a","Suma de O_dx_c_catarata_conge_50a_Total","Suma de O_dx_c_o_catarata_Niño","Suma de O_dx_c_o_catarata_50_59a","Suma de O_dx_c_o_catarata_60a","Suma de O_dx_c_o_catarata_50a_Total","Suma de O_dx_c_catarata_ref_Niño","Suma de O_dx_c_catarata_ref_50_59a","Suma de O_dx_c_catarata_ref_60a","Suma de O_dx_c_catarata_ref_50a_Total","Suma de O_tto_cata_faco_Niño","Suma de O_tto_cata_faco_50_59a","Suma de O_tto_cata_faco_60a","Suma de O_tto_cata_faco_50a_Total","Suma de O_tto_cata_extra_il_niño","Suma de O_tto_cata_extra_il_50_59a","Suma de O_tto_cata_extra_il_60a","Suma de O_tto_cata_extra_il_50a_Total","Suma de O_tto_cata_mininuc_Niño","Suma de O_tto_cata_mininuc_50_59a","Suma de O_tto_cata_mininuc_60a","Suma de O_tto_cata_mininuc_50a_Total","Suma de O_ctrl_cata_pp1_Niño","Suma de O_ctrl_cata_pp1_50_59a","Suma de O_ctrl_cata_pp1_60a","Suma de O_ctrl_cata_pp1_Total","Suma de O_ctrl_cata_pp2_Niño","Suma de O_ctrl_cata_pp2_50_59a","Suma de O_ctrl_cata_pp2_60a","Suma de O_ctrl_cata_pp2_Total","Suma de O_ctrl_cata_pp3_Niño","Suma de O_ctrl_cata_pp3_50_59a","Suma de O_ctrl_cata_pp3_60a","Suma de O_ctrl_cata_pp3_Total","Suma de O_ctrl_cata_pp4_Niño","Suma de O_ctrl_cata_pp4_50_59a","Suma de O_ctrl_cata_pp4_60a","Suma de O_ctrl_cata_pp4_Total","Suma de O_comp_cata_pp_Niño","Suma de O_comp_cata_pp_50_59a","Suma de O_comp_cata_pp_60a","Suma de O_comp_cata_pp_50a_Total","Suma de O_Evaluacion_RD_18_29a","Suma de O_Evaluacion_RD_30_59a","Suma de O_Evaluacion_RD_60a","Suma de O_Evaluacion_RD_18a_Total","Suma de O_Retinografia_A_18_29a","Suma de O_Retinografia_A_30_59a","Suma de O_Retinografia_A_60a","Suma de O_Retinografia_A_Total","Suma de O_TeleIn_AgudVisual_Diab_18_29a","Suma de O_TeleIn_AgudVisual_Diab_30_59a","Suma de O_TeleIn_AgudVisual_Diab_60a","Suma de O_TeleIn_AgudVisual_Diab_18a_Total","Suma de O_ref_tracoma_1_11a","Suma de O_ref_tracoma_12_17a","Suma de O_ref_tracoma_18_29a","Suma de O_ref_tracoma_30_59a","Suma de O_ref_tracoma_60a","Suma de O_ref_tracoma_Total","Suma de O_Consej_tracoma_s_1_11a","Suma de O_Consej_tracoma_s_12_17a","Suma de O_Consej_tracoma_s_18_29a","Suma de O_Consej_tracoma_s_30_59a","Suma de O_Consej_tracoma_s_60a","Suma de O_Consej_tracoma_s_Total","Suma de O_consejeria_tracoma_1_11a","Suma de O_consejeria_tracoma_12_17a","Suma de O_consejeria_tracoma_18_29a","Suma de O_consejeria_tracoma_30_59a","Suma de O_consejeria_tracoma_60a","Suma de O_consejeria_tracoma_Total","Suma de O_ee_cornea_1_11a","Suma de O_ee_cornea_12_17a","Suma de O_ee_cornea_18_29a","Suma de O_ee_cornea_30_59a","Suma de O_ee_cornea_60a","Suma de O_ee_cornea_Total","Suma de O_ee_ref_1_11a","Suma de O_ee_ref_12_17a","Suma de O_ee_ref_18_29a","Suma de O_ee_ref_30_59a","Suma de O_ee_ref_60a","Suma de O_ee_ref_Total","Suma de O_ee_tto_farma_1_11a","Suma de O_ee_tto_farma_12_17a","Suma de O_ee_tto_farma_18_29a","Suma de O_ee_tto_farma_30_59a","Suma de O_ee_tto_farma_60a","Suma de O_ee_tto_farma_Total","Suma de O_ee_tto_quiru_1_11a","Suma de O_ee_tto_quiru_12_17a","Suma de O_ee_tto_quiru_18_29a","Suma de O_ee_tto_quiru_30_59a","Suma de O_ee_tto_quiru_60a","Suma de O_ee_tto_quiru_Total","Suma de O_ee_ctrl_farma_1_11a","Suma de O_ee_ctrl_farma_12_17a","Suma de O_ee_ctrl_farma_18_29a","Suma de O_ee_ctrl_farma_30_59a","Suma de O_ee_ctrl_farma_60a","Suma de O_ee_ctrl_farma_Total","Suma de O_ee_ctrl_pquiru_1_11a","Suma de O_ee_ctrl_pquiru_12_17a","Suma de O_ee_ctrl_pquiru_18_29a","Suma de O_ee_ctrl_pquiru_30_59a","Suma de O_ee_ctrl_pquiru_60a","Suma de O_ee_ctrl_pquiru_Total"]
[1,0,0,0,0,0,0,0,0,0,0,0,0,0,0,0,0,0,0,0,0,0,0,0,0,0,0,0,0,0,0,0,0,0,0,0,0,0,0,0,0,0,0,0,0,0,0,0,0,0,0,0,0,0,0,0,0,0,0,0,0,0,0,0,0,0,0,0,0,0,0,0,0,0,0,0,0,0,0,0,0,0,0,0,0,0,0,0,0,0,0,0,0,0,0,0,0,0,0,0,0,0,0,0,0,0,0,0,0,0,0,0,0,0,0,0,0,0,0,0,0,0,0,0,0,0,0,0,0,0,0,0,0,0,0,0,0,0,0,0,0,0,0,0,0,0,0,0,0,0,0,0,0,0,0,0,0,0,0,0,0,0,0,0,0,0,0,0,0,0,0,0,0,0,0,0,0,0,0,0,0,0,0,0,0,0,0,0,0,0,0]
[2,0,0,0,0,0,0,0,0,0,0,0,0,0,0,0,0,0,0,0,0,0,0,0,0,0,0,0,0,0,0,0,0,0,0,0,0,0,0,0,0,0,0,0,0,0,0,0,0,0,0,0,0,0,0,0,0,0,0,0,0,0,0,0,0,0,0,0,0,0,0,0,0,0,0,0,0,0,0,0,0,0,0,0,0,0,0,0,0,0,0,0,0,0,0,0,0,0,0,0,0,0,0,0,0,0,0,0,0,0,0,0,0,0,0,0,0,0,0,0,0,0,0,0,0,0,0,0,0,0,0,0,0,0,0,0,0,0,0,0,0,0,0,0,0,0,0,0,0,0,0,0,0,0,0,0,0,0,0,0,0,0,0,0,0,0,0,0,0,0,0,0,0,0,0,0,0,0,0,0,0,0,0,0,0,0,0,0,0,0,0]
[3,0,0,0,0,0,0,0,0,0,0,0,0,0,0,0,0,0,0,0,0,0,0,0,0,0,0,0,0,0,0,0,0,0,0,0,0,0,0,0,0,0,0,0,0,0,0,0,0,0,0,0,0,0,0,0,0,0,0,0,0,0,0,0,0,0,0,0,0,0,0,0,0,0,0,0,0,0,0,0,0,0,0,0,0,0,0,0,0,0,0,0,0,0,0,0,0,0,0,0,0,0,0,0,0,0,0,0,0,0,0,0,0,0,0,0,0,0,0,0,0,0,0,0,0,0,0,0,0,0,0,0,0,0,0,0,0,0,0,0,0,0,0,0,0,0,0,0,0,0,0,0,0,0,0,0,0,0,0,0,0,0,0,0,0,0,0,0,0,0,0,0,0,0,0,0,0,0,0,0,0,0,0,0,0,0,0,0,0,0,0]
[4,0,0,0,0,0,0,0,0,0,0,0,0,0,0,0,0,0,0,0,0,0,0,0,0,0,0,0,0,0,0,0,0,0,0,0,0,0,0,0,0,0,0,0,0,0,0,0,0,0,0,0,0,0,0,0,0,0,0,0,0,0,0,0,0,0,0,0,0,0,0,0,0,0,0,0,0,0,0,0,0,0,0,0,0,0,0,0,0,0,0,0,0,0,0,0,0,0,0,0,0,0,0,0,0,0,0,0,0,0,0,0,0,0,0,0,0,0,0,0,0,0,0,0,0,0,0,0,0,0,0,0,0,0,0,0,0,0,0,0,0,0,0,0,0,0,0,0,0,0,0,0,0,0,0,0,0,0,0,0,0,0,0,0,0,0,0,0,0,0,0,0,0,0,0,0,0,0,0,0,0,0,0,0,0,0,0,0,0,0,0]
[5,0,0,0,0,0,0,0,0,0,0,0,0,0,0,0,0,0,0,0,0,0,0,0,0,0,0,0,0,0,0,0,0,0,0,0,0,0,0,0,0,0,0,0,0,0,0,0,0,0,0,0,0,0,0,0,0,0,0,0,0,0,0,0,0,0,0,0,0,0,0,0,0,0,0,0,0,0,0,0,0,0,0,0,0,0,0,0,0,0,0,0,0,0,0,0,0,0,0,0,0,0,0,0,0,0,0,0,0,0,0,0,0,0,0,0,0,0,0,0,0,0,0,0,0,0,0,0,0,0,0,0,0,0,0,0,0,0,0,0,0,0,0,0,0,0,0,0,0,0,0,0,0,0,0,0,0,0,0,0,0,0,0,0,0,0,0,0,0,0,0,0,0,0,0,0,0,0,0,0,0,0,0,0,0,0,0,0,0,0,0]
["Total general",0,0,0,0,0,0,0,0,0,0,0,0,0,0,0,0,0,0,0,0,0,0,0,0,0,0,0,0,0,0,0,0,0,0,0,0,0,0,0,0,0,0,0,0,0,0,0,0,0,0,0,0,0,0,0,0,0,0,0,0,0,0,0,0,0,0,0,0,0,0,0,0,0,0,0,0,0,0,0,0,0,0,0,0,0,0,0,0,0,0,0,0,0,0,0,0,0,0,0,0,0,0,0,0,0,0,0,0,0,0,0,0,0,0,0,0,0,0,0,0,0,0,0,0,0,0,0,0,0,0,0,0,0,0,0,0,0,0,0,0,0,0,0,0,0,0,0,0,0,0,0,0,0,0,0,0,0,0,0,0,0,0,0,0,0,0,0,0,0,0,0,0,0,0,0,0,0,0,0,0,0,0,0,0,0,0,0,0,0,0]

{"sheet":"Menu","index":2,"n_rows":31,"n_cols":9,"rows_kept":31,"cut":false,"hidden":false,"merged":[[30,8,30,9],[30,5,30,7],[1,7,1,16],[2,7,2,16],[3,7,3,16]]}
[]
[null,null,null,null,null,null,null,"GERESA CUSCO"]
[null,null,null,null,null,null,null,"REPORTE HISMINSA 2025"]
[null,null,null,null,null,null,null,"SALUD OCULAR"]
[]
[]
[]
[]
[]
[]
[]
[]
[]
[]
[]
[]
[]
[]
[]
[]
[]
[]
[]
[]
[]
[]
[]
[]
[]
[]
[null,null,null,null,null,"Fecha Actualización DATA",null,null,"31/05/2025"]

{"sheet":"INFORME","index":3,"n_rows":227,"n_cols":19,"rows_kept":227,"cut":false,"hidden":false,"merged":[[165,2,165,7],[155,2,155,7],[167,2,167,7],[168,2,168,7],[169,2,170,7],[131,11,131,12],[133,2,133,7],[135,11,135,12],[134,2,134,7],[135,2,135,7],[136,2,136,7],[138,2,138,7],[142,2,142,7],[144,2,144,7],[143,2,143,12],[148,2,148,12],[154,2,154,12],[164,8,164,12],[167,8,167,12],[35,19,35,20],[16,17,16,18],[17,17,17,18],[23,17,23,18],[28,17,28,18],[35,17,35,18],[38,19,38,20],[18,2,18,7],[201,2,201,7],[130,2,130,7],[139,2,139,7],[111,2,111,7],[112,2,112,7],[114,2,114,7],[115,2,115,7],[120,2,120,7],[121,2,121,7],[131,2,131,7],[174,2,174,7],[177,2,177,7],[147,2,147,7],[150,2,150,7],[149,2,149,7],[151,2,151,7],[18,13,18,14],[18,17,18,18],[18,19,18,20],[17,2,17,7],[16,19,16,20],[17,13,17,14],[23,13,23,14],[28,13,28,14],[17,19,17,20],[23,19,23,20],[28,19,28,20],[26,2,26,7],[27,2,27,7],[19,13,19,14],[20,13,20,14],[19,2,19,7],[20,2,20,7],[0,0,0,20],[1,0,1,20],[2,0,2,20],[3,0,3,20],[4,0,4,20],[8,4,8,7],[6,4,6,7],[76,2,76,7],[16,2,16,7],[64,2,64,7],[47,2,47,12],[51,2,51,7],[10,10,10,14],[16,13,16,14],[35,13,35,14],[10,4,10,7],[6,18,6,20],[8,18,8,20],[6,10,6,14],[8,10,8,14],[58,2,58,7],[23,2,23,7],[28,2,28,7],[35,2,35,7],[204,8,204,16],[213,2,213,7],[139,11,139,12],[145,2,145,7],[140,11,140,12],[141,11,141,12],[145,11,145,12],[146,2,146,7],[212,2,212,7],[183,2,183,7],[190,2,190,7],[191,2,191,7],[197,2,197,7],[202,2,202,7],[204,2,204,7],[205,2,205,7],[175,2,175,7],[178,2,178,7],[140,2,140,7],[141,2,141,7],[147,11,147,12],[152,2,152,7],[153,2,153,7],[156,2,156,7],[216,13,216,14],[216,15,216,16],[218,13,218,14],[218,15,218,16],[215,13,215,14],[215,15,215,16],[156,11,156,12],[151,11,151,12],[152,11,152,12],[153,11,153,12],[212,13,212,14],[212,15,212,16],[205,13,205,14],[205,15,205,16],[194,13,194,14],[194,15,194,16],[197,13,197,14],[197,15,197,16],[202,13,202,14],[202,15,202,16],[195,8,195,16],[201,13,201,14],[201,15,201,16],[203,2,203,16],[34,2,34,7],[38,2,38,7],[38,13,38,14],[38,17,38,18],[37,2,37,7],[43,2,43,7],[32,13,32,14],[33,13,33,14],[34,8,34,14],[39,13,39,14],[40,13,40,14],[41,13,41,14],[42,13,42,14],[43,13,43,14],[37,8,37,14],[29,2,29,7],[30,2,30,7],[32,2,32,7],[21,8,21,14],[26,8,26,14],[55,8,55,12],[67,2,67,7],[67,8,67,12],[72,2,72,12],[24,13,24,14],[25,13,25,14],[27,13,27,14],[29,13,29,14],[30,13,30,14],[31,13,31,14],[22,2,22,7],[24,2,24,7],[25,2,25,7],[39,2,39,7],[40,2,40,7],[41,2,41,7],[42,2,42,7],[31,2,31,7],[68,8,68,12],[73,8,73,12],[79,8,79,12],[83,8,83,12],[52,8,52,12],[56,8,56,12],[65,2,65,7],[68,2,68,7],[73,2,73,7],[53,2,54,7],[52,2,52,7],[56,2,56,7],[57,2,57,7],[66,2,66,7],[74,2,74,7],[75,2,75,7],[79,2,79,7],[81,2,81,7],[80,2,80,7],[173,2,173,12],[132,2,132,12],[137,2,137,12],[78,8,78,12],[134,11,134,12],[136,11,136,12],[118,2,118,7],[122,2,122,7],[110,2,110,7],[116,2,116,7],[107,2,107,7],[129,11,129,12],[101,2,101,7],[102,2,102,7],[103,2,103,7],[104,2,104,7],[106,2,106,7],[105,2,105,7],[109,2,109,7],[150,11,150,12],[146,11,146,12],[129,2,129,7],[100,2,100,7],[163,2,163,7],[193,15,193,16],[199,2,199,16],[198,13,198,14],[198,15,198,16],[200,2,200,7],[196,8,196,16],[200,8,200,16],[174,8,174,12],[176,2,176,12],[177,8,177,12],[181,2,181,12],[182,2,182,7],[182,8,182,12],[192,2,192,7],[192,13,192,14],[192,15,192,16],[191,8,191,16],[190,13,190,14],[190,15,190,16],[179,2,179,7],[180,2,180,7],[193,2,193,7],[196,2,196,7],[141,13,141,14],[142,13,142,14],[145,13,145,14],[146,13,146,14],[147,13,147,14],[214,13,214,14],[214,15,214,16],[100,13,100,14],[102,13,102,14],[106,13,106,14],[107,13,107,14],[105,13,105,14],[110,13,110,14],[111,13,111,14],[112,13,112,14],[115,13,115,14],[116,13,116,14],[118,13,118,14],[121,13,121,14],[122,13,122,14],[129,13,129,14],[131,13,131,14],[134,13,134,14],[193,13,193,14],[225,13,225,14],[226,13,226,14],[225,15,225,16],[226,15,226,16],[117,2,117,7],[117,13,117,14],[221,13,221,14],[221,15,221,16],[217,13,217,14],[217,15,217,16],[220,2,220,7],[222,13,222,14],[222,15,222,16],[150,13,150,14],[151,13,151,14],[152,13,152,14],[153,13,153,14],[156,13,156,14],[142,11,142,12],[149,8,149,14],[135,13,135,14],[136,13,136,14],[139,13,139,14],[140,13,140,14]]}
["DIRECCION REGIONAL DE SALUD CUSCO"]
["DIRECCION EJECUTIVA DE INTELIGENCIA SANITARIA"]
["DIRECCION DE ESTADISTICA Y TELECOMUNICACIONES"]
["SALUD OCULAR"]
["INFORME OPERACIONAL MENSUAL"]
[]
[null,null,"RED DE SALUD",null,{"$f":"TD!F3","v":"(All)"},null,null,null,null,"PROVINCIA",{"$f":"TD!F6","v":"(All)"},null,null,null,null,null,"AÑO :",null,{"$f":"TD!C10","v":"2025"}]
[]
[null,null,"MICRO RED",null,{"$f":"TD!F4","v":"(All)"},null,null,null,null,"DISTRITO",{"$f":"TD!F7","v":"(All)"},null,null,null,null,null,"MES :",null,{"$f":"TD!O17","v":"ENERO - MAYO"}]
[]
[null,null,"ESTABLECIMIENTO",null,{"$f":"TD!F5","v":"(All)"},null,null,null,null,"U.E.",{"$f":"TD!F8","v":"(All)"}]
[]
[null,null,"RETINOPATÍA DE LA PREMATURIDAD - ROP"]
[null,null,"Hospitales 2°- 3° Nivel Atc"]
[]
[]
[null,null,"Actividad",null,null,null,null,null,"UM","TOTAL","< 1m","1m - 6m","7m - 11m","1a - 3a"]
[null,null,"Tamizaje y seguimiento de RN con sospecha de  ROP"]
[null,null,"Tamizaje de recien nacidos con factores de riesgo",null,null,null,null,null,"Número",{"$f":"SUM(K19:O19)","v":0},{"$f":"SUM(GETPIVOTDATA(\"Suma de O_TamRN_FR_N_0_29d\",TD!$A$38))","v":0},{"$f":"SUM(GETPIVOTDATA(\"Suma de O_TamRN_FR_N_6m\",TD!$A$38))","v":0},{"$f":"SUM(GETPIVOTDATA(\"Suma de O_TamRN_FR_N_7m11m\",TD!$A$38))","v":0},{"$f":"SUM(GETPIVOTDATA(\"Suma de O_TamRN_FR_N_1_3a\",TD!$A$38))","v":0}]
[null,null,"Seguimiento de recien nacidos con factores de riesgo",null,null,null,null,null,"Número",{"$f":"SUM(K20:O20)","v":0},{"$f":"SUM(GETPIVOTDATA(\"Suma de O_TamRN_FR_s_0_29d\",TD!$A$38))","v":0},{"$f":"SUM(GETPIVOTDATA(\"Suma de O_TamRN_FR_s_6m\",TD!$A$38))","v":0},{"$f":"SUM(GETPIVOTDATA(\"Suma de O_TamRN_FR_s_7m11m\",TD!$A$38))","v":0},{"$f":"SUM(GETPIVOTDATA(\"Suma de O_TamRN_FR_s_1_3a\",TD!$A$38))","v":0}]
[null,null,"Referencia de recien nacidos con factores de riesgo de ROP",null,null,null,null,null,"Número",{"$f":"SUM(K21:O21)","v":0},{"$f":"SUM(GETPIVOTDATA(\"Suma de O_TamRN_FR_r_0_29d\",TD!$A$38))","v":0},{"$f":"SUM(GETPIVOTDATA(\"Suma de O_TamRN_FR_r_6m\",TD!$A$38))","v":0},{"$f":"SUM(GETPIVOTDATA(\"Suma de O_TamRN_FR_r_7m11m\",TD!$A$38))","v":0},{"$f":"SUM(GETPIVOTDATA(\"Suma de O_TamRN_FR_r_1_3a\",TD!$A$38))","v":0}]
[]
[null,null,"Diagnostico de RN con ROP"]
[null,null,"Casos de recien nacidos con ROP",null,null,null,null,null,"Caso",{"$f":"SUM(K24:O24)","v":0},{"$f":"SUM(GETPIVOTDATA(\"Suma de O_Dx_retinoPrema_C_0_29d\",TD!$A$38))","v":0},{"$f":"SUM(GETPIVOTDATA(\"Suma de O_Dx_retinoPrema_C_6m\",TD!$A$38))","v":0},{"$f":"SUM(GETPIVOTDATA(\"Suma de O_Dx_retinoPrema_C_7m11m\",TD!$A$38))","v":0},{"$f":"SUM(GETPIVOTDATA(\"Suma de O_Dx_retinoPrema_C_1_3a\",TD!$A$38))","v":0}]
[null,null,"Referencia de recien nacidos con ROP",null,null,null,null,null,"Número",{"$f":"SUM(K25:O25)","v":0},{"$f":"SUM(GETPIVOTDATA(\"Suma de O_Dx_retinoPrema_r_0_29d\",TD!$A$38))","v":0},{"$f":"SUM(GETPIVOTDATA(\"Suma de O_Dx_retinoPrema_r_6m\",TD!$A$38))","v":0},{"$f":"SUM(GETPIVOTDATA(\"Suma de O_Dx_retinoPrema_r_7m11m\",TD!$A$38))","v":0},{"$f":"SUM(GETPIVOTDATA(\"Suma de O_Dx_retinoPrema_r_1_3a\",TD!$A$38))","v":0}]
[null,null,"Teleinterconsulta",null,null,null,null,null,"Número",{"$f":"SUM(K26:O26)","v":0},{"$f":"SUM(GETPIVOTDATA(\"Suma de O_Dx_retinoPrema_t_0_29d\",TD!$A$38))","v":0},{"$f":"SUM(GETPIVOTDATA(\"Suma de O_Dx_retinoPrema_t_6m\",TD!$A$38))","v":0},{"$f":"SUM(GETPIVOTDATA(\"Suma de O_Dx_retinoPrema_t_7m11m\",TD!$A$38))","v":0},{"$f":"SUM(GETPIVOTDATA(\"Suma de O_Dx_retinoPrema_t_1_3a\",TD!$A$38))","v":0}]
[]
[null,null,"Tratamiento de RN con ROP"]
[null,null,"Tratamiento con Laser",null,null,null,null,null,"Caso Tratado",{"$f":"SUM(K29:O29)","v":0},{"$f":"SUM(GETPIVOTDATA(\"Suma de O_tto_retinoPrema_CT_l_0_29d\",TD!$A$38))","v":0},{"$f":"SUM(GETPIVOTDATA(\"Suma de O_tto_retinoPrema_CT_l_6m\",TD!$A$38))","v":0},{"$f":"SUM(GETPIVOTDATA(\"Suma de O_tto_retinoPrema_CT_l_7m11m\",TD!$A$38))","v":0},{"$f":"SUM(GETPIVOTDATA(\"Suma de O_tto_retinoPrema_CT_l_1_3a\",TD!$A$38))","v":0}]
[null,null,"Tratamiento con antiangiogénico",null,null,null,null,null,"Caso Tratado",{"$f":"SUM(K30:O30)","v":0},{"$f":"SUM(GETPIVOTDATA(\"Suma de O_tto_retinoPrema_CT_a_0_29d\",TD!$A$38))","v":0},{"$f":"SUM(GETPIVOTDATA(\"Suma de O_tto_retinoPrema_CT_a_6m\",TD!$A$38))","v":0},{"$f":"SUM(GETPIVOTDATA(\"Suma de O_tto_retinoPrema_CT_a_7m11m\",TD!$A$38))","v":0},{"$f":"SUM(GETPIVOTDATA(\"Suma de O_tto_retinoPrema_CT_a_1_3a\",TD!$A$38))","v":0}]
[null,null,"Tratamiento con Laser mas antiangiogénico",null,null,null,null,null,"Caso Tratado",{"$f":"SUM(K31:O31)","v":0},{"$f":"SUM(GETPIVOTDATA(\"Suma de O_tto_retinoPrema_CT_la_0_29d\",TD!$A$38))","v":0},{"$f":"SUM(GETPIVOTDATA(\"Suma de O_tto_retinoPrema_CT_la_6m\",TD!$A$38))","v":0},{"$f":"SUM(GETPIVOTDATA(\"Suma de O_tto_retinoPrema_CT_la_7m11m\",TD!$A$38))","v":0},{"$f":"SUM(GETPIVOTDATA(\"Suma de O_tto_retinoPrema_CT_la_1_3a\",TD!$A$38))","v":0}]
[null,null,"Tratamiento intravitreo",null,null,null,null,null,"Caso Tratado",{"$f":"SUM(K32:O32)","v":0},{"$f":"SUM(GETPIVOTDATA(\"Suma de O_tto_retinoPrema_CT_i_0_29d\",TD!$A$38))","v":0},{"$f":"SUM(GETPIVOTDATA(\"Suma de O_tto_retinoPrema_CT_i_6m\",TD!$A$38))","v":0},{"$f":"SUM(GETPIVOTDATA(\"Suma de O_tto_retinoPrema_CT_i_7m11m\",TD!$A$38))","v":0},{"$f":"SUM(GETPIVOTDATA(\"Suma de O_tto_retinoPrema_CT_i_1_3a\",TD!$A$38))","v":0}]
[null,null,"Referencia de ROP",null,null,null,null,null,"Número",{"$f":"SUM(K33:O33)","v":0},{"$f":"SUM(GETPIVOTDATA(\"Suma de O_tto_retinoPrema_CT_r_0_29d\",TD!$A$38))","v":0},{"$f":"SUM(GETPIVOTDATA(\"Suma de O_tto_retinoPrema_CT_r_6m\",TD!$A$38))","v":0},{"$f":"SUM(GETPIVOTDATA(\"Suma de O_tto_retinoPrema_CT_r_7m11m\",TD!$A$38))","v":0},{"$f":"SUM(GETPIVOTDATA(\"Suma de O_tto_retinoPrema_CT_r_1_3a\",TD!$A$38))","v":0}]
[]
[null,null,"Control Post Operatorio de RN con ROP"]
[null,null,"Atención de Control Post Operatorio de recién nacidos",null,null,null,null,null,"Control",{"$f":"SUM(K36:O36)","v":0},{"$f":"SUM(GETPIVOTDATA(\"Suma de O_ctrl_PosOpe_0_29d\",TD!$A$38))","v":0},{"$f":"SUM(GETPIVOTDATA(\"Suma de O_ctrl_PosOpe_6m\",TD!$A$38))","v":0},{"$f":"SUM(GETPIVOTDATA(\"Suma de O_ctrl_PosOpe_7m11m\",TD!$A$38))","v":0},{"$f":"SUM(GETPIVOTDATA(\"Suma de O_ctrl_PosOpe_1_3a\",TD!$A$38))","v":0}]
[]
[null,null,"Complicaciones secundarias al tratamiento de ROP"]
[null,null,"Errores de refracción secundario al tratamiento de ROP",null,null,null,null,null,"Caso",{"$f":"SUM(K39:O39)","v":0},{"$f":"SUM(GETPIVOTDATA(\"Suma de O_ctto_RP_ER_C_0_29d\",TD!$A$38))","v":0},{"$f":"SUM(GETPIVOTDATA(\"Suma de O_ctto_RP_ER_C_6m\",TD!$A$38))","v":0},{"$f":"SUM(GETPIVOTDATA(\"Suma de O_ctto_RP_ER_C_7m11m\",TD!$A$38))","v":0},{"$f":"SUM(GETPIVOTDATA(\"Suma de O_ctto_RP_ER_C_1_3a\",TD!$A$38))","v":0}]
[null,null,"Nistagmo secundario al tratamiento de ROP",null,null,null,null,null,"Caso",{"$f":"SUM(K40:O40)","v":0},{"$f":"SUM(GETPIVOTDATA(\"Suma de O_ctto_RP_NI_C_0_29d\",TD!$A$38))","v":0},{"$f":"SUM(GETPIVOTDATA(\"Suma de O_ctto_RP_NI_C_6m\",TD!$A$38))","v":0},{"$f":"SUM(GETPIVOTDATA(\"Suma de O_ctto_RP_NI_C_7m11m\",TD!$A$38))","v":0},{"$f":"SUM(GETPIVOTDATA(\"Suma de O_ctto_RP_NI_C_1_3a\",TD!$A$38))","v":0}]
[null,null,"Estrabismo secundario al tratamiento de ROP",null,null,null,null,null,"Caso",0,{"$f":"SUM(GETPIVOTDATA(\"Suma de O_ctto_RP_ES_C_0_29d\",TD!$A$38))","v":0},{"$f":"SUM(GETPIVOTDATA(\"Suma de O_ctto_RP_ES_C_6m\",TD!$A$38))","v":0},{"$f":"SUM(GETPIVOTDATA(\"Suma de O_ctto_RP_ES_C_7m11m\",TD!$A$38))","v":0},{"$f":"SUM(GETPIVOTDATA(\"Suma de O_ctto_RP_ES_C_1_3a\",TD!$A$38))","v":0}]
[null,null,"Glaucoma secundario al tratamiento de ROP",null,null,null,null,null,"Caso",0,{"$f":"SUM(GETPIVOTDATA(\"Suma de O_ctto_RP_GL_C_0_29d\",TD!$A$38))","v":0},{"$f":"SUM(GETPIVOTDATA(\"Suma de O_ctto_RP_GL_C_6m\",TD!$A$38))","v":0},{"$f":"SUM(GETPIVOTDATA(\"Suma de O_ctto_RP_GL_C_7m11m\",TD!$A$38))","v":0},{"$f":"SUM(GETPIVOTDATA(\"Suma de O_ctto_RP_GL_C_1_3a\",TD!$A$38))","v":0}]
[null,null,"Catarata secundaria al tratamiento de ROP",null,null,null,null,null,"Caso",0,{"$f":"SUM(GETPIVOTDATA(\"Suma de O_ctto_RP_CA_C_0_29d\",TD!$A$38))","v":0},{"$f":"SUM(GETPIVOTDATA(\"Suma de O_ctto_RP_CA_C_6m\",TD!$A$38))","v":0},{"$f":"SUM(GETPIVOTDATA(\"Suma de O_ctto_RP_CA_C_7m11m\",TD!$A$38))","v":0},{"$f":"SUM(GETPIVOTDATA(\"Suma de O_ctto_RP_CA_C_1_3a\",TD!$A$38))","v":0}]
[null,null,"Rehabilitación visual de ceguera y baja visión secundaria a ROP",null,null,null,null,null,"Caso",0,{"$f":"SUM(GETPIVOTDATA(\"Suma de O_ctto_RP_RE_C_0_29d\",TD!$A$38))","v":0},{"$f":"SUM(GETPIVOTDATA(\"Suma de O_ctto_RP_RE_C_6m\",TD!$A$38))","v":0},{"$f":"SUM(GETPIVOTDATA(\"Suma de O_ctto_RP_RE_C_7m11m\",TD!$A$38))","v":0},{"$f":"SUM(GETPIVOTDATA(\"Suma de O_ctto_RP_RE_C_1_3a\",TD!$A$38))","v":0}]
[]
[]
[]
[null,null,"ATENCIÓN DE SALUD OCULAR EN NIÑOS MENORES 3 AÑOS"]
[null,null,"Todos los EESS que realizan CRED"]
[]
[]
[null,null,"Actividad",null,null,null,null,null,"UM","TOTAL","< 1a","1a","2a"]
[null,null,"Tamizaje en niños menores de 3 años"]
[null,null,"Examen de los Ojos y de la Visión",null,null,null,null,null,"Normal",{"$f":"SUM(K54:M54)","v":0},{"$f":"SUM(GETPIVOTDATA(\"Suma de O_Ex_Ojo_Vis_N_0_11m\",TD!$A$38))","v":0},{"$f":"SUM(GETPIVOTDATA(\"Suma de O_Ex_Ojo_Vis_N_1a\",TD!$A$38))","v":0},{"$f":"SUM(GETPIVOTDATA(\"Suma de O_Ex_Ojo_Vis_N_2a\",TD!$A$38))","v":0}]
[null,null,null,null,null,null,null,null,"Anormal",{"$f":"SUM(K55:M55)","v":0},{"$f":"SUM(GETPIVOTDATA(\"Suma de O_Ex_Ojo_Vis_A_0_11m\",TD!$A$38))","v":0},{"$f":"SUM(GETPIVOTDATA(\"Suma de O_Ex_Ojo_Vis_A_1a\",TD!$A$38))","v":0},{"$f":"SUM(GETPIVOTDATA(\"Suma de O_Ex_Ojo_Vis_A_2a\",TD!$A$38))","v":0}]
[]
[null,null,"Evaluación de niños menores de 3 años"]
[null,null,"Evaluación de sospecha de alteraciones oculares",null,null,null,null,null,"Número",{"$f":"SUM(K58:M58)","v":0},{"$f":"SUM(GETPIVOTDATA(\"Suma de O_Eva_Ojo_Vis_N_0_11m\",TD!$A$38))","v":0},{"$f":"SUM(GETPIVOTDATA(\"Suma de O_Eva_Ojo_Vis_N_1a\",TD!$A$38))","v":0},{"$f":"SUM(GETPIVOTDATA(\"Suma de O_Eva_Ojo_Vis_N_2a\",TD!$A$38))","v":0}]
[null,null,"Referencia de alteraciones oculares",null,null,null,null,null,"Número",{"$f":"SUM(K59:M59)","v":0},{"$f":"SUM(GETPIVOTDATA(\"Suma de O_Ex_Ojo_Vis_RF_0_11m\",TD!$A$38))","v":0},{"$f":"SUM(GETPIVOTDATA(\"Suma de O_Ex_Ojo_Vis_RF_1a\",TD!$A$38))","v":0},{"$f":"SUM(GETPIVOTDATA(\"Suma de O_Ex_Ojo_Vis_RF_2a\",TD!$A$38))","v":0}]
[]
[]
[null,null,"ERRORES DE REFRACCIÓN EN NIÑOS DE 3 A 11 AÑOS - ER"]
[]
[]
[null,null,"Actividad",null,null,null,null,null,"UM","TOTAL","3 - 4a","5 - 7a","8 - 11a"]
[null,null,"Tamizaje de ER"]
[null,null,"Detección de la Agudeza Visual",null,null,null,null,null,"Número",{"$f":"SUM(K67:M67)","v":0},{"$f":"SUM(GETPIVOTDATA(\"Suma de O_Determ_Agudeza_Visual_3a\",TD!$A$38))","v":0},{"$f":"SUM(GETPIVOTDATA(\"Suma de O_Determ_Agudeza_Visual_4a\",TD!$A$38))","v":0},{"$f":"SUM(GETPIVOTDATA(\"Suma de O_Determ_Agudeza_Visual_5_11a\",TD!$A$38))","v":0}]
[]
[null,null,"Evaluacion de ER"]
[null,null,"Evaluacion Errores Refractivos",null,null,null,null,null,"Evaluación",{"$f":"SUM(K70:M70)","v":0},{"$f":"SUM(GETPIVOTDATA(\"Suma de O_Determ_Agudeza_Visual_EVA_3a\",TD!$A$38))","v":0},{"$f":"SUM(GETPIVOTDATA(\"Suma de O_Determ_Agudeza_Visual_EVA_4a\",TD!$A$38))","v":0},{"$f":"SUM(GETPIVOTDATA(\"Suma de O_Determ_Agudeza_Visual_EVA_5_11a\",TD!$A$38))","v":0}]
[null,null,"Referencias  Errores Refractivos",null,null,null,null,null,"Número",{"$f":"SUM(K71:M71)","v":0},{"$f":"SUM(GETPIVOTDATA(\"Suma de O_Determ_Agudeza_Visual_ref_3a\",TD!$A$38))","v":0},{"$f":"SUM(GETPIVOTDATA(\"Suma de O_Determ_Agudeza_Visual_ref_4a\",TD!$A$38))","v":0},{"$f":"SUM(GETPIVOTDATA(\"Suma de O_Determ_Agudeza_Visual_ref_5_11a\",TD!$A$38))","v":0}]
[null,null,"Consejeria en Salud Ocular",null,null,null,null,null,"Número",{"$f":"SUM(K72:M72)","v":0},{"$f":"SUM(GETPIVOTDATA(\"Suma de O_Determ_Agudeza_Visual_consej_3a\",TD!$A$38))","v":0},{"$f":"SUM(GETPIVOTDATA(\"Suma de O_Determ_Agudeza_Visual_consej_4a\",TD!$A$38))","v":0},{"$f":"SUM(GETPIVOTDATA(\"Suma de O_Determ_Agudeza_Visual_consej_5_11a\",TD!$A$38))","v":0}]
[]
[null,null,"Diagnostico de ER"]
[null,null,"Hipermetropía",null,null,null,null,null,"Caso",{"$f":"SUM(K75:M75)","v":0},{"$f":"SUM(GETPIVOTDATA(\"Suma de O_Dx_ErrR_Hip_3a\",TD!$A$38))","v":0},{"$f":"SUM(GETPIVOTDATA(\"Suma de O_Dx_ErrR_Hip_4a\",TD!$A$38))","v":0},{"$f":"SUM(GETPIVOTDATA(\"Suma de O_Dx_ErrR_Hip_5_11a\",TD!$A$38))","v":0}]
[null,null,"Miopía",null,null,null,null,null,"Caso",{"$f":"SUM(K76:M76)","v":0},{"$f":"SUM(GETPIVOTDATA(\"Suma de O_Dx_ErrR_Mio_3a\",TD!$A$38))","v":0},{"$f":"SUM(GETPIVOTDATA(\"Suma de O_Dx_ErrR_Mio_4a\",TD!$A$38))","v":0},{"$f":"SUM(GETPIVOTDATA(\"Suma de O_Dx_ErrR_Mio_5_11a\",TD!$A$38))","v":0}]
[null,null,"Astigmatismo",null,null,null,null,null,"Caso",{"$f":"SUM(K77:M77)","v":0},{"$f":"SUM(GETPIVOTDATA(\"Suma de O_Dx_ErrR_Ast_3a\",TD!$A$38))","v":0},{"$f":"SUM(GETPIVOTDATA(\"Suma de O_Dx_ErrR_Ast_4a\",TD!$A$38))","v":0},{"$f":"SUM(GETPIVOTDATA(\"Suma de O_Dx_ErrR_Ast_5_11a\",TD!$A$38))","v":0}]
[null,null,"Anisometropía",null,null,null,null,null,"Caso",{"$f":"SUM(K78:M78)","v":0},{"$f":"SUM(GETPIVOTDATA(\"Suma de O_Dx_ErrR_ani_3a\",TD!$A$38))","v":0},{"$f":"SUM(GETPIVOTDATA(\"Suma de O_Dx_ErrR_ani_4a\",TD!$A$38))","v":0},{"$f":"SUM(GETPIVOTDATA(\"Suma de O_Dx_ErrR_ani_5_11a\",TD!$A$38))","v":0}]
[]
[null,null,"Tratamiento de Errores Refractivos"]
[null,null,"Provisión de Anteojos",null,null,null,null,null,"Caso",{"$f":"SUM(K81:M81)","v":0},{"$f":"SUM(GETPIVOTDATA(\"Suma de O_tto_Prov_anteo_3a\",TD!$A$38))","v":0},{"$f":"SUM(GETPIVOTDATA(\"Suma de O_tto_Prov_anteo_4a\",TD!$A$38))","v":0},{"$f":"SUM(GETPIVOTDATA(\"Suma de O_tto_Prov_anteo_5_11a\",TD!$A$38))","v":0}]
[null,null,"Consejería en salud ocular",null,null,null,null,null,"Número",{"$f":"SUM(K82:M82)","v":0},{"$f":"SUM(GETPIVOTDATA(\"Suma de O_tto_Prov_anteo_cons_3a\",TD!$A$38))","v":0},{"$f":"SUM(GETPIVOTDATA(\"Suma de O_tto_Prov_anteo_cons_4a\",TD!$A$38))","v":0},{"$f":"SUM(GETPIVOTDATA(\"Suma de O_tto_Prov_anteo_cons_5_11a\",TD!$A$38))","v":0}]
[]
[null,null,"Control de Pacientes con Errores Refractivos"]
[null,null,"Prueba y ajuste de anteojos",null,null,null,null,null,"Control",{"$f":"SUM(K85:M85)","v":0},{"$f":"SUM(GETPIVOTDATA(\"Suma de O_Prueb_aju_anteo_3a\",TD!$A$38))","v":0},{"$f":"SUM(GETPIVOTDATA(\"Suma de O_Prueb_aju_anteo_4a\",TD!$A$38))","v":0},{"$f":"SUM(GETPIVOTDATA(\"Suma de O_Prueb_aju_anteo_5_11a\",TD!$A$38))","v":0}]
[null,null,"Consejería en salud ocular",null,null,null,null,null,"Número",{"$f":"SUM(K86:M86)","v":0},{"$f":"SUM(GETPIVOTDATA(\"Suma de O_Prueb_aju_anteo_cons_3a\",TD!$A$38))","v":0},{"$f":"SUM(GETPIVOTDATA(\"Suma de O_Prueb_aju_anteo_cons_4a\",TD!$A$38))","v":0},{"$f":"SUM(GETPIVOTDATA(\"Suma de O_Prueb_aju_anteo_cons_5_11a\",TD!$A$38))","v":0}]
[]
[]
[]
[]
[]
[]
[]
[]
[]
[]
[]
[null,null,"GLAUCOMA "]
[]
[]
[null,null,"Actividad",null,null,null,null,null,"UM","Total","Niños","40 - 49a","50-+ 59a","60a y más"]
[null,null,"Tamizaje de Glaucoma"]
[null,null,"Determinación de la Presión Intraocular",null,null,null,null,null,"Número",{"$f":"SUM(K103:O103)","v":0},{"$f":"SUM(GETPIVOTDATA(\"Suma de O_Det_Pres_Into_N_Niño\",TD!$A$38))","v":0},{"$f":"SUM(GETPIVOTDATA(\"Suma de O_Det_Pres_Into_N_40_49a\",TD!$A$38))","v":0},{"$f":"SUM(GETPIVOTDATA(\"Suma de O_Det_Pres_Into_N_50_59a\",TD!$A$38))","v":0},{"$f":"SUM(GETPIVOTDATA(\"Suma de O_Det_Pres_Into_N_60a\",TD!$A$38))","v":0}]
[]
[null,null,"Evaluación de sospecha de Glaucoma"]
[null,null,"Evaluación de Glaucoma",null,null,null,null,null,"Evaluación",{"$f":"SUM(K106:O106)","v":0},{"$f":"SUM(GETPIVOTDATA(\"Suma de O_Eva_glaucoma_Niño\",TD!$A$38))","v":0},{"$f":"SUM(GETPIVOTDATA(\"Suma de O_Eva_glaucoma_40_49a\",TD!$A$38))","v":0},{"$f":"SUM(GETPIVOTDATA(\"Suma de O_Eva_glaucoma_50_59a\",TD!$A$38))","v":0},{"$f":"SUM(GETPIVOTDATA(\"Suma de O_Eva_glaucoma_60a\",TD!$A$38))","v":0}]
[null,null,"Referencias de sospecha de glaucoma",null,null,null,null,null,"Número",{"$f":"SUM(K107:O107)","v":0},{"$f":"SUM(GETPIVOTDATA(\"Suma de O_Eva_glaucoma_rf_Niño\",TD!$A$38))","v":0},{"$f":"SUM(GETPIVOTDATA(\"Suma de O_Eva_glaucoma_rf_40_49a\",TD!$A$38))","v":0},{"$f":"SUM(GETPIVOTDATA(\"Suma de O_Eva_glaucoma_rf_50_59a\",TD!$A$38))","v":0},{"$f":"SUM(GETPIVOTDATA(\"Suma de O_Eva_glaucoma_rf_60a\",TD!$A$38))","v":0}]
[null,null,"Consejeria en glaucoma",null,null,null,null,null,"Número",{"$f":"SUM(K108:O108)","v":0},{"$f":"SUM(GETPIVOTDATA(\"Suma de O_Eva_glaucoma_consej_Niño\",TD!$A$38))","v":0},{"$f":"SUM(GETPIVOTDATA(\"Suma de O_Eva_glaucoma_consej_40_49a\",TD!$A$38))","v":0},{"$f":"SUM(GETPIVOTDATA(\"Suma de O_Eva_glaucoma_consej_50_59a\",TD!$A$38))","v":0},{"$f":"SUM(GETPIVOTDATA(\"Suma de O_Eva_glaucoma_consej_60a\",TD!$A$38))","v":0}]
[]
[null,null,"Diagnóstico de glaucoma"]
[null,null,"Caso de Glaucoma",null,null,null,null,null,"Caso",{"$f":"SUM(K111:O111)","v":0},{"$f":"SUM(GETPIVOTDATA(\"Suma de O_Dx_glaucoma_Niño\",TD!$A$38))","v":0},{"$f":"SUM(GETPIVOTDATA(\"Suma de O_Dx_glaucoma_40_49a\",TD!$A$38))","v":0},{"$f":"SUM(GETPIVOTDATA(\"Suma de O_Dx_glaucoma_50_59a\",TD!$A$38))","v":0},{"$f":"SUM(GETPIVOTDATA(\"Suma de O_Dx_glaucoma_60a\",TD!$A$38))","v":0}]
[null,null,"Caso de Glaucoma congénito",null,null,null,null,null,"Caso",{"$f":"SUM(K112:O112)","v":0},{"$f":"SUM(GETPIVOTDATA(\"Suma de O_Dx_glaucoma_c_Niño\",TD!$A$38))","v":0},{"$f":"SUM(GETPIVOTDATA(\"Suma de O_Dx_glaucoma_c_40_49a\",TD!$A$38))","v":0},{"$f":"SUM(GETPIVOTDATA(\"Suma de O_Dx_glaucoma_c_50_59a\",TD!$A$38))","v":0},{"$f":"SUM(GETPIVOTDATA(\"Suma de O_Dx_glaucoma_c_60a\",TD!$A$38))","v":0}]
[null,null,"Referencia de caso de Glaucoma",null,null,null,null,null,"Número",{"$f":"SUM(K113:O113)","v":0},{"$f":"SUM(GETPIVOTDATA(\"Suma de O_Dx_glaucoma_r_Niño\",TD!$A$38))","v":0},{"$f":"SUM(GETPIVOTDATA(\"Suma de O_Dx_glaucoma_r_40_49a\",TD!$A$38))","v":0},{"$f":"SUM(GETPIVOTDATA(\"Suma de O_Dx_glaucoma_r_50_59a\",TD!$A$38))","v":0},{"$f":"SUM(GETPIVOTDATA(\"Suma de O_Dx_glaucoma_r_60a\",TD!$A$38))","v":0}]
[]
[null,null,"Tratamiento de caso de glaucoma"]
[null,null,"Tratamiento farmacológico",null,null,null,null,null,"Caso",{"$f":"SUM(K116:O116)","v":0},{"$f":"SUM(GETPIVOTDATA(\"Suma de O_R_tto_far_niño\",TD!$A$38))","v":0},{"$f":"SUM(GETPIVOTDATA(\"Suma de O_R_tto_far_40_49a\",TD!$A$38))","v":0},{"$f":"SUM(GETPIVOTDATA(\"Suma de O_R_tto_far_50_59a\",TD!$A$38))","v":0},{"$f":"SUM(GETPIVOTDATA(\"Suma de O_R_tto_far_60a\",TD!$A$38))","v":0}]
[null,null,"Tratamiento Laser ",null,null,null,null,null,"Caso",{"$f":"SUM(K117:O117)","v":0},{"$f":"SUM(GETPIVOTDATA(\"Suma de O_R_tto_laser_niño\",TD!$A$38))","v":0},{"$f":"SUM(GETPIVOTDATA(\"Suma de O_R_tto_laser_40_49a\",TD!$A$38))","v":0},{"$f":"SUM(GETPIVOTDATA(\"Suma de O_R_tto_laser_50_59a\",TD!$A$38))","v":0},{"$f":"SUM(GETPIVOTDATA(\"Suma de O_R_tto_laser_60a\",TD!$A$38))","v":0}]
[null,null,"Tratamiento Quirúrgico - cirugía filtrante",null,null,null,null,null,"Caso",{"$f":"SUM(K118:O118)","v":0},{"$f":"SUM(GETPIVOTDATA(\"Suma de O_R_tto_quiru_niño\",TD!$A$38))","v":0},{"$f":"SUM(GETPIVOTDATA(\"Suma de O_R_tto_quiru_40_49a\",TD!$A$38))","v":0},{"$f":"SUM(GETPIVOTDATA(\"Suma de O_R_tto_quiru_50_59a\",TD!$A$38))","v":0},{"$f":"SUM(GETPIVOTDATA(\"Suma de O_R_tto_quiru_60a\",TD!$A$38))","v":0}]
[null,null,"Tratamiento quirúrgico – ciclodestructivo",null,null,null,null,null,"Caso",{"$f":"SUM(K119:O119)","v":0},{"$f":"SUM(GETPIVOTDATA(\"Suma de O_R_tto_quiru_ci_niño\",TD!$A$38))","v":0},{"$f":"SUM(GETPIVOTDATA(\"Suma de O_R_tto_quiru_ci_40_49a\",TD!$A$38))","v":0},{"$f":"SUM(GETPIVOTDATA(\"Suma de O_R_tto_quiru_ci_50_59a\",TD!$A$38))","v":0},{"$f":"SUM(GETPIVOTDATA(\"Suma de O_R_tto_quiru_ci_60a\",TD!$A$38))","v":0}]
[]
[null,null,"Control de glaucoma"]
[null,null,"Control farmacológico",null,null,null,null,null,"Control",{"$f":"SUM(K122:O122)","v":0},{"$f":"SUM(GETPIVOTDATA(\"Suma de O_atc_ctrl_Niño\",TD!$A$38))","v":0},{"$f":"SUM(GETPIVOTDATA(\"Suma de O_atc_ctrl_40_49a\",TD!$A$38))","v":0},{"$f":"SUM(GETPIVOTDATA(\"Suma de O_atc_ctrl_50_59a\",TD!$A$38))","v":0},{"$f":"SUM(GETPIVOTDATA(\"Suma de O_atc_ctrl_60a\",TD!$A$38))","v":0}]
[null,null,"Control Post quirúrgico",null,null,null,null,null,"Control",{"$f":"SUM(K123:O123)","v":0},{"$f":"SUM(GETPIVOTDATA(\"Suma de O_atc_ctrl_post_Niño\",TD!$A$38))","v":0},{"$f":"SUM(GETPIVOTDATA(\"Suma de O_atc_ctrl_post_40_49a\",TD!$A$38))","v":0},{"$f":"SUM(GETPIVOTDATA(\"Suma de O_atc_ctrl_post_50_59a\",TD!$A$38))","v":0},{"$f":"SUM(GETPIVOTDATA(\"Suma de O_atc_ctrl_post_60a\",TD!$A$38))","v":0}]
[]
[]
[]
[null,null,"CATARATA"]
[]
[]
[null,null,"Actividad",null,null,null,null,null,"UM","TOTAL","Niños","50-+ 59a",null,"60a y más"]
[null,null,"Tamizaje de Catarata"]
[null,null,"Tamizaje Determinación de la Agudeza Visual",null,null,null,null,null,"Número",{"$f":"SUM(K132:O132)","v":0},{"$f":"SUM(GETPIVOTDATA(\"Suma de O_Det_Agud_Visual_Cat_niño\",TD!$A$38))","v":0},{"$f":"SUM(GETPIVOTDATA(\"Suma de O_Det_Agud_Visual_Cat_50_59a\",TD!$A$38))","v":0},null,{"$f":"SUM(GETPIVOTDATA(\"Suma de O_Det_Agud_Visual_Cat_60a\",TD!$A$38))","v":0}]
[]
[null,null,"Evaluación de Catarata"]
[null,null,"Evaluacion de catarata",null,null,null,null,null,"Evaluación",{"$f":"SUM(K135:O135)","v":0},{"$f":"SUM(GETPIVOTDATA(\"Suma de O_Evalua_Cat_niño\",TD!$A$38))","v":0},{"$f":"SUM(GETPIVOTDATA(\"Suma de O_Evalua_Cat_50_59a\",TD!$A$38))","v":0},null,{"$f":"SUM(GETPIVOTDATA(\"Suma de O_Evalua_Cat_60a\",TD!$A$38))","v":0}]
[null,null,"Referencia de catarata",null,null,null,null,null,"Número",{"$f":"SUM(K136:O136)","v":0},{"$f":"SUM(GETPIVOTDATA(\"Suma de O_Evalua_Cat_rf_niño\",TD!$A$38))","v":0},{"$f":"SUM(GETPIVOTDATA(\"Suma de O_Evalua_Cat_rf_50_59a\",TD!$A$38))","v":0},null,{"$f":"SUM(GETPIVOTDATA(\"Suma de O_Evalua_Cat_rf_60a\",TD!$A$38))","v":0}]
[null,null,"Consejeria por catarata",null,null,null,null,null,"Número",0,{"$f":"SUM(GETPIVOTDATA(\"Suma de O_Evalua_Cat_consej_niño\",TD!$A$38))","v":0},{"$f":"SUM(GETPIVOTDATA(\"Suma de O_Evalua_Cat_consej_50_59a\",TD!$A$38))","v":0},null,{"$f":"SUM(GETPIVOTDATA(\"Suma de O_Evalua_Cat_consej_60a\",TD!$A$38))","v":0}]
[]
[null,null,"Diagnóstico de Catarata"]
[null,null,"Diagnostico de casos de Catarata Senil",null,null,null,null,null,"Caso",{"$f":"SUM(K140:O140)","v":0},{"$f":"SUM(GETPIVOTDATA(\"Suma de O_dx_c_catarata_niño\",TD!$A$38))","v":0},{"$f":"SUM(GETPIVOTDATA(\"Suma de O_dx_c_catarata_50_59a\",TD!$A$38))","v":0},null,{"$f":"SUM(GETPIVOTDATA(\"Suma de O_dx_c_catarata_60a\",TD!$A$38))","v":0}]
[null,null,"Diagnostico de casos de Catarata Congénita",null,null,null,null,null,"Caso",{"$f":"SUM(K141:O141)","v":0},{"$f":"SUM(GETPIVOTDATA(\"Suma de O_dx_c_catarata_conge_niño\",TD!$A$62))","v":0},{"$f":"SUM(GETPIVOTDATA(\"Suma de O_dx_c_catarata_conge_50_59a\",TD!$A$62))","v":0},null,{"$f":"SUM(GETPIVOTDATA(\"Suma de O_dx_c_catarata_conge_60a\",TD!$A$62))","v":0}]
[null,null,"Diagnostico de casos de Otras Cataratas",null,null,null,null,null,"Caso",{"$f":"SUM(K142:O142)","v":0},{"$f":"SUM(GETPIVOTDATA(\"Suma de O_dx_c_o_catarata_niño\",TD!$A$62))","v":0},{"$f":"SUM(GETPIVOTDATA(\"Suma de O_dx_c_o_catarata_50_59a\",TD!$A$62))","v":0},null,{"$f":"SUM(GETPIVOTDATA(\"Suma de O_dx_c_o_catarata_60a\",TD!$A$62))","v":0}]
[null,null,"Referencia en caso de catarata",null,null,null,null,null,"Número",{"$f":"SUM(K143:O143)","v":0},{"$f":"SUM(GETPIVOTDATA(\"Suma de O_dx_c_catarata_ref_niño\",TD!$A$62))","v":0},{"$f":"SUM(GETPIVOTDATA(\"Suma de O_dx_c_catarata_ref_50_59a\",TD!$A$62))","v":0},null,{"$f":"SUM(GETPIVOTDATA(\"Suma de O_dx_c_catarata_ref_60a\",TD!$A$62))","v":0}]
[]
[null,null,"Tratamiento de casos de Catarata"]
[null,null,"Tratamiento de Facofragmentación (facoemulsificación) con aspiración",null,null,null,null,null,"Procedimiento",{"$f":"SUM(K146:O146)","v":0},{"$f":"SUM(GETPIVOTDATA(\"Suma de O_tto_cata_faco_niño\",TD!$A$62))","v":0},{"$f":"SUM(GETPIVOTDATA(\"Suma de O_tto_cata_faco_50_59a\",TD!$A$62))","v":0},null,{"$f":"SUM(GETPIVOTDATA(\"Suma de O_tto_cata_faco_60a\",TD!$A$62))","v":0}]
[null,null,"Tratamiento de Extracción extracapsular de Catarata con implente de lente intraocular",null,null,null,null,null,"Procedimiento",{"$f":"SUM(K147:O147)","v":0},{"$f":"SUM(GETPIVOTDATA(\"Suma de O_tto_cata_extra_il_niño\",TD!$A$62))","v":0},{"$f":"SUM(GETPIVOTDATA(\"Suma de O_tto_cata_extra_il_50_59a\",TD!$A$62))","v":0},null,{"$f":"SUM(GETPIVOTDATA(\"Suma de O_tto_cata_extra_il_60a\",TD!$A$62))","v":0}]
[null,null,"Tratamiento de Mininuc con implante de lente intraocular (LIO)",null,null,null,null,null,"Procedimiento",{"$f":"SUM(K148:O148)","v":0},{"$f":"SUM(GETPIVOTDATA(\"Suma de O_tto_cata_mininuc_niño\",TD!$A$62))","v":0},{"$f":"SUM(GETPIVOTDATA(\"Suma de O_tto_cata_mininuc_50_59a\",TD!$A$62))","v":0},null,{"$f":"SUM(GETPIVOTDATA(\"Suma de O_tto_cata_mininuc_60a\",TD!$A$62))","v":0}]
[]
[null,null,"Control post operatorio"]
[null,null,"Paciente con 1º Control Post Operatorio",null,null,null,null,null,"Control",{"$f":"SUM(K151:O151)","v":0},{"$f":"SUM(GETPIVOTDATA(\"Suma de O_ctrl_cata_pp1_Niño\",TD!$A$62))","v":0},{"$f":"SUM(GETPIVOTDATA(\"Suma de O_ctrl_cata_pp1_50_59a\",TD!$A$62))","v":0},null,{"$f":"SUM(GETPIVOTDATA(\"Suma de O_ctrl_cata_pp1_60a\",TD!$A$62))","v":0}]
[null,null,"Paciente con 2º Control Post Operatorio",null,null,null,null,null,"Control",{"$f":"SUM(K152:O152)","v":0},{"$f":"SUM(GETPIVOTDATA(\"Suma de O_ctrl_cata_pp2_Niño\",TD!$A$62))","v":0},{"$f":"SUM(GETPIVOTDATA(\"Suma de O_ctrl_cata_pp2_50_59a\",TD!$A$62))","v":0},null,{"$f":"SUM(GETPIVOTDATA(\"Suma de O_ctrl_cata_pp2_60a\",TD!$A$62))","v":0}]
[null,null,"Paciente con 3º Control Post Operatorio",null,null,null,null,null,"Control",{"$f":"SUM(K153:O153)","v":0},{"$f":"SUM(GETPIVOTDATA(\"Suma de O_ctrl_cata_pp3_niño\",TD!$A$62))","v":0},{"$f":"SUM(GETPIVOTDATA(\"Suma de O_ctrl_cata_pp3_50_59a\",TD!$A$62))","v":0},null,{"$f":"SUM(GETPIVOTDATA(\"Suma de O_ctrl_cata_pp3_60a\",TD!$A$62))","v":0}]
[null,null,"Paciente con 4º Control Post Operatorio",null,null,null,null,null,"Control",{"$f":"SUM(K154:O154)","v":0},{"$f":"SUM(GETPIVOTDATA(\"Suma de O_ctrl_cata_pp4_niño\",TD!$A$62))","v":0},{"$f":"SUM(GETPIVOTDATA(\"Suma de O_ctrl_cata_pp4_50_59a\",TD!$A$62))","v":0},null,{"$f":"SUM(GETPIVOTDATA(\"Suma de O_ctrl_cata_pp4_60a\",TD!$A$62))","v":0}]
[]
[null,null,"Control y tratamiento especializado de complicaciones post quirúrgicas"]
[null,null,"Complicaciones post quirúrgicas de Catarata",null,null,null,null,null,"Caso",{"$f":"SUM(K157:O157)","v":0},{"$f":"SUM(GETPIVOTDATA(\"Suma de O_comp_cata_pp_niño\",TD!$A$62))","v":0},{"$f":"SUM(GETPIVOTDATA(\"Suma de O_comp_cata_pp_50_59a\",TD!$A$62))","v":0},null,{"$f":"SUM(GETPIVOTDATA(\"Suma de O_comp_cata_pp_60a\",TD!$A$62))","v":0}]
[]
[]
[]
[null,null,"RETINOPATÍA DIABÉTICA - RD"]
[]
[]
[null,null,"Actividad",null,null,null,null,null,"UM","TOTAL","18 - 29a","30 - 59a","60a y más"]
[null,null,"Detección de personas con DM con sospecha de RD"]
[null,null,"Detección de Retinopatía Diabética",null,null,null,null,null,"Número",{"$f":"SUM(K166:M166)","v":0},{"$f":"SUM(GETPIVOTDATA(\"Suma de O_Det_AgudVisual_Diab_18_29a\",TD!$A$62))","v":0},{"$f":"SUM(GETPIVOTDATA(\"Suma de O_Det_AgudVisual_Diab_30_59a\",TD!$A$62))","v":0},{"$f":"SUM(GETPIVOTDATA(\"Suma de O_Det_AgudVisual_Diab_60a\",TD!$A$62))","v":0}]
[]
[null,null,"Evaluación de sospecha de RD"]
[null,null,"Evaluación de Retinopatía Diabética",null,null,null,null,null,"Evaluación",{"$f":"SUM(K169:M169)","v":0},{"$f":"SUM(GETPIVOTDATA(\"Suma de O_Evaluacion_RD_18_29a\",TD!$A$62))","v":0},{"$f":"SUM(GETPIVOTDATA(\"Suma de O_Evaluacion_RD_30_59a\",TD!$A$62))","v":0},{"$f":"SUM(GETPIVOTDATA(\"Suma de O_Evaluacion_RD_60a\",TD!$A$62))","v":0}]
[null,null,"Retinografia",null,null,null,null,null,"Normal",{"$f":"SUM(K170:M170)","v":0},{"$f":"SUM(GETPIVOTDATA(\"Suma de O_Retinografia_N_18_29a\",TD!$A$62))","v":0},{"$f":"SUM(GETPIVOTDATA(\"Suma de O_Retinografia_N_30_59a\",TD!$A$62))","v":0},{"$f":"SUM(GETPIVOTDATA(\"Suma de O_Retinografia_N_60a\",TD!$A$62))","v":0}]
[null,null,null,null,null,null,null,null,"Anormal",{"$f":"SUM(K171:M171)","v":0},{"$f":"SUM(GETPIVOTDATA(\"Suma de O_Retinografia_A_18_29a\",TD!$A$62))","v":0},{"$f":"SUM(GETPIVOTDATA(\"Suma de O_Retinografia_A_30_59a\",TD!$A$62))","v":0},{"$f":"SUM(GETPIVOTDATA(\"Suma de O_Retinografia_A_60a\",TD!$A$62))","v":0}]
[null,null,"Referencias de Retinopaia Diabetica",null,null,null,null,null,"Número",{"$f":"SUM(K172:M172)","v":0},{"$f":"SUM(GETPIVOTDATA(\"Suma de O_ref_AgudVisual_Diab_18_29a\",TD!$A$62))","v":0},{"$f":"SUM(GETPIVOTDATA(\"Suma de O_ref_AgudVisual_Diab_30_59a\",TD!$A$62))","v":0},{"$f":"SUM(GETPIVOTDATA(\"Suma de O_ref_AgudVisual_Diab_60a\",TD!$A$62))","v":0}]
[null,null,"Teleinterconsulta ",null,null,null,null,null,"Número",{"$f":"SUM(K173:M173)","v":0},{"$f":"SUM(GETPIVOTDATA(\"Suma de O_telein_AgudVisual_Diab_18_29a\",TD!$A$62))","v":0},{"$f":"SUM(GETPIVOTDATA(\"Suma de O_telein_AgudVisual_Diab_30_59a\",TD!$A$62))","v":0},{"$f":"SUM(GETPIVOTDATA(\"Suma de O_telein_AgudVisual_Diab_60a\",TD!$A$62))","v":0}]
[]
[null,null,"Diagnóstico de casos de RD"]
[null,null,"Diagnostico de Casos de retinopatía diabética",null,null,null,null,null,"Caso",{"$f":"SUM(K176:M176)","v":0},{"$f":"SUM(GETPIVOTDATA(\"O_c_retinopatiaD_18_29a\",TD!$A$62))","v":0},{"$f":"SUM(GETPIVOTDATA(\"O_c_retinopatiaD_30_59a\",TD!$A$62))","v":0},{"$f":"SUM(GETPIVOTDATA(\"O_c_retinopatiaD_60a\",TD!$A$62))","v":0}]
[]
[null,null,"Tratamiento de casos"]
[null,null,"Tratamiento Terapia Laser",null,null,null,null,null,"Procedimiento",{"$f":"SUM(K179:M179)","v":0},{"$f":"SUM(GETPIVOTDATA(\"Suma de O_tto_Terap_LaserD_18_29a\",TD!$A$62))","v":0},{"$f":"SUM(GETPIVOTDATA(\"Suma de O_tto_Terap_LaserD_30_59a\",TD!$A$62))","v":0},{"$f":"SUM(GETPIVOTDATA(\"Suma de O_tto_Terap_LaserD_60a\",TD!$A$62))","v":0}]
[null,null,"TratamientoTerapia intravítrea",null,null,null,null,null,"Procedimiento",{"$f":"SUM(K180:M180)","v":0},{"$f":"SUM(GETPIVOTDATA(\"Suma de O_tto_Terap_intravD_18_29a\",TD!$A$62))","v":0},{"$f":"SUM(GETPIVOTDATA(\"Suma de O_tto_Terap_intravD_30_59a\",TD!$A$62))","v":0},{"$f":"SUM(GETPIVOTDATA(\"Suma de O_tto_Terap_intravD_60a\",TD!$A$62))","v":0}]
[null,null,"Tratamiento Cirugía vítrea",null,null,null,null,null,"Procedimiento",{"$f":"SUM(K181:M181)","v":0},{"$f":"SUM(GETPIVOTDATA(\"Suma de O_tto_Cirugia_vitreaD_18_29a\",TD!$A$62))","v":0},{"$f":"SUM(GETPIVOTDATA(\"Suma de O_tto_Cirugia_vitreaD_30_59a\",TD!$A$62))","v":0},{"$f":"SUM(GETPIVOTDATA(\"Suma de O_tto_Cirugia_vitreaD_60a\",TD!$A$62))","v":0}]
[]
[null,null,"Control de Pacientes"]
[null,null,"Atenciones de Control",null,null,null,null,null,"Atención",{"$f":"SUM(GETPIVOTDATA(\"Suma de O_ctrl_atc_diab_Total\",TD!$A$62))","v":0},{"$f":"SUM(GETPIVOTDATA(\"Suma de O_ctrl_atc_diab_18_29a\",TD!$A$62))","v":0},{"$f":"SUM(GETPIVOTDATA(\"Suma de O_ctrl_atc_diab_30_59a\",TD!$A$62))","v":0},{"$f":"SUM(GETPIVOTDATA(\"Suma de O_ctrl_atc_diab_60a\",TD!$A$62))","v":0}]
[]
[]
[]
[null,null,"TRACOMA"]
[]
[]
[null,null,"Actividad",null,null,null,null,null,"UM","TOTAL","0 - 11a","12 - 17a","18 - 29a","30 - 59a",null,"60a y más"]
[null,null,"Evaluación de sospecha de tracoma"]
[null,null,"Evaluación de personas con sospecha de tracoma",null,null,null,null,null,"Examen",{"$f":"SUM(K193:Q193)","v":0},{"$f":"SUM(GETPIVOTDATA(\"Suma de O_Eva_tracoma_1_11a\",TD!$A$62))","v":0},{"$f":"SUM(GETPIVOTDATA(\"Suma de O_Eva_tracoma_12_17a\",TD!$A$62))","v":0},{"$f":"SUM(GETPIVOTDATA(\"Suma de O_Eva_tracoma_18_29a\",TD!$A$62))","v":0},{"$f":"SUM(GETPIVOTDATA(\"Suma de O_Eva_tracoma_30_59a\",TD!$A$62))","v":0},null,{"$f":"SUM(GETPIVOTDATA(\"Suma de O_Eva_tracoma_60a\",TD!$A$62))","v":0}]
[null,null,"Referencia de personas con sospecha de tracoma",null,null,null,null,null,"Número",{"$f":"SUM(K194:Q194)","v":0},{"$f":"SUM(GETPIVOTDATA(\"Suma de O_ref_tracoma_1_11a\",TD!$A$62))","v":0},{"$f":"SUM(GETPIVOTDATA(\"Suma de O_ref_tracoma_12_17a\",TD!$A$62))","v":0},{"$f":"SUM(GETPIVOTDATA(\"Suma de O_ref_tracoma_18_29a\",TD!$A$62))","v":0},{"$f":"SUM(GETPIVOTDATA(\"Suma de O_ref_tracoma_30_59a\",TD!$A$62))","v":0},null,{"$f":"SUM(GETPIVOTDATA(\"Suma de O_ref_tracoma_60a\",TD!$A$62))","v":0}]
[null,null,"Consejeria en sospecha de tracoma",null,null,null,null,null,"Número",{"$f":"SUM(K195:Q195)","v":0},{"$f":"SUM(GETPIVOTDATA(\"Suma de O_Consej_tracoma_s_1_11a\",TD!$A$62))","v":0},{"$f":"SUM(GETPIVOTDATA(\"Suma de O_Consej_tracoma_s_12_17a\",TD!$A$62))","v":0},{"$f":"SUM(GETPIVOTDATA(\"Suma de O_Consej_tracoma_s_18_29a\",TD!$A$62))","v":0},{"$f":"SUM(GETPIVOTDATA(\"Suma de O_Consej_tracoma_s_30_59a\",TD!$A$62))","v":0},null,{"$f":"SUM(GETPIVOTDATA(\"Suma de O_Consej_tracoma_s_60a\",TD!$A$62))","v":0}]
[]
[null,null,"Diagnóstico de casos de tracoma"]
[null,null,"Diagnóstico Casos de Tracoma",null,null,null,null,null,"Caso",{"$f":"SUM(K198:Q198)","v":0},{"$f":"SUM(GETPIVOTDATA(\"O_c_tracoma_1_11a\",TD!$A$62))","v":0},{"$f":"SUM(GETPIVOTDATA(\"O_c_tracoma_12_17a\",TD!$A$62))","v":0},{"$f":"SUM(GETPIVOTDATA(\"O_c_tracoma_18_29a\",TD!$A$62))","v":0},{"$f":"SUM(GETPIVOTDATA(\"O_c_tracoma_30_59a\",TD!$A$62))","v":0},null,{"$f":"SUM(GETPIVOTDATA(\"O_c_tracoma_60a\",TD!$A$62))","v":0}]
[null,null,"Consejeria en tracoma",null,null,null,null,null,"Número",{"$f":"SUM(K199:Q199)","v":0},{"$f":"SUM(GETPIVOTDATA(\"O_consejeria_tracoma_1_11a\",TD!$A$62))","v":0},{"$f":"SUM(GETPIVOTDATA(\"O_consejeria_tracoma_12_17a\",TD!$A$62))","v":0},{"$f":"SUM(GETPIVOTDATA(\"O_consejeria_tracoma_18_29a\",TD!$A$62))","v":0},{"$f":"SUM(GETPIVOTDATA(\"O_consejeria_tracoma_30_59a\",TD!$A$62))","v":0},null,{"$f":"SUM(GETPIVOTDATA(\"O_consejeria_tracoma_60a\",TD!$A$62))","v":0}]
[]
[null,null,"Tratamiento de casos"]
[null,null,"Tratamiento farmacológico",null,null,null,null,null,"Caso Tratado",{"$f":"SUM(K202:Q202)","v":0},{"$f":"SUM(GETPIVOTDATA(\"Suma de O_f_tracoma_1_11a\",TD!$A$62))","v":0},{"$f":"SUM(GETPIVOTDATA(\"Suma de O_f_tracoma_12_17a\",TD!$A$62))","v":0},{"$f":"SUM(GETPIVOTDATA(\"Suma de O_f_tracoma_18_29a\",TD!$A$62))","v":0},{"$f":"SUM(GETPIVOTDATA(\"Suma de O_f_tracoma_30_59a\",TD!$A$62))","v":0},null,{"$f":"SUM(GETPIVOTDATA(\"Suma de O_f_tracoma_60a\",TD!$A$62))","v":0}]
[null,null,"Tratamiento quirúrgico",null,null,null,null,null,"Caso Tratado",{"$f":"SUM(K203:Q203)","v":0},{"$f":"SUM(GETPIVOTDATA(\"Suma de O_tto_quiru_tracoma_1_11a\",TD!$A$62))","v":0},{"$f":"SUM(GETPIVOTDATA(\"Suma de O_tto_quiru_tracoma_12_17a\",TD!$A$62))","v":0},{"$f":"SUM(GETPIVOTDATA(\"Suma de O_tto_quiru_tracoma_18_29a\",TD!$A$62))","v":0},{"$f":"SUM(GETPIVOTDATA(\"Suma de O_tto_quiru_tracoma_30_59a\",TD!$A$62))","v":0},null,{"$f":"SUM(GETPIVOTDATA(\"Suma de O_tto_quiru_tracoma_60a\",TD!$A$62))","v":0}]
[]
[null,null,"Control de Pacientes"]
[null,null,"Atenciones de Control",null,null,null,null,null,"Atención",{"$f":"SUM(K206:Q206)","v":0},{"$f":"SUM(GETPIVOTDATA(\"Suma de O_atc_c_tracoma_1_11a\",TD!$A$62))","v":0},{"$f":"SUM(GETPIVOTDATA(\"Suma de O_atc_c_tracoma_12_17a\",TD!$A$62))","v":0},{"$f":"SUM(GETPIVOTDATA(\"Suma de O_atc_c_tracoma_18_29a\",TD!$A$62))","v":0},{"$f":"SUM(GETPIVOTDATA(\"Suma de O_atc_c_tracoma_30_59a\",TD!$A$62))","v":0},null,{"$f":"SUM(GETPIVOTDATA(\"Suma de O_atc_c_tracoma_60a\",TD!$A$62))","v":0}]
[]
[]
[]
[null,null,"ENFERMEDADES EXTERNAS DEL OJO - EEO"]
[]
[]
[null,null,"Actividad",null,null,null,null,null,"UM","TOTAL","0 - 11a","12 - 17a","18 - 29a","30 - 59a",null,"60a y más"]
[null,null,"Diagnóstico de EEO"]
[null,null,"Trastornos del parpado, aparato lagrimal y orbita",null,null,null,null,null,"Caso",{"$f":"SUM(K215:Q215)","v":0},{"$f":"SUM(GETPIVOTDATA(\"Suma de O_ee_orzuelo_1_11a\",TD!$A$62))","v":0},{"$f":"SUM(GETPIVOTDATA(\"Suma de O_ee_orzuelo_12_17a\",TD!$A$62))","v":0},{"$f":"SUM(GETPIVOTDATA(\"Suma de O_ee_orzuelo_18_29a\",TD!$A$62))","v":0},{"$f":"SUM(GETPIVOTDATA(\"Suma de O_ee_orzuelo_30_59a\",TD!$A$62))","v":0},null,{"$f":"SUM(GETPIVOTDATA(\"Suma de O_ee_orzuelo_60a\",TD!$A$62))","v":0}]
[null,null,"Trastornos de la conjuntiva",null,null,null,null,null,"Caso",{"$f":"SUM(K216:Q216)","v":0},{"$f":"SUM(GETPIVOTDATA(\"Suma de O_ee_Conjuntivitis_1_11a\",TD!$A$62))","v":0},{"$f":"SUM(GETPIVOTDATA(\"Suma de O_ee_Conjuntivitis_12_17a\",TD!$A$62))","v":0},{"$f":"SUM(GETPIVOTDATA(\"Suma de O_ee_Conjuntivitis_18_29a\",TD!$A$62))","v":0},{"$f":"SUM(GETPIVOTDATA(\"Suma de O_ee_Conjuntivitis_30_59a\",TD!$A$62))","v":0},null,{"$f":"SUM(GETPIVOTDATA(\"Suma de O_ee_Conjuntivitis_60a\",TD!$A$62))","v":0}]
[null,null,"Trastornos de la esclerótica cornea",null,null,null,null,null,"Caso",{"$f":"SUM(K217:Q217)","v":0},{"$f":"SUM(GETPIVOTDATA(\"Suma de O_ee_cornea_1_11a\",TD!$A$62))","v":0},{"$f":"SUM(GETPIVOTDATA(\"Suma de O_ee_cornea_12_17a\",TD!$A$62))","v":0},{"$f":"SUM(GETPIVOTDATA(\"Suma de O_ee_cornea_18_29a\",TD!$A$62))","v":0},{"$f":"SUM(GETPIVOTDATA(\"Suma de O_ee_cornea_30_59a\",TD!$A$62))","v":0},null,{"$f":"SUM(GETPIVOTDATA(\"Suma de O_ee_cornea_60a\",TD!$A$62))","v":0}]
[null,null,"Referencia de EEO",null,null,null,null,null,"Número",{"$f":"SUM(K218:Q218)","v":0},{"$f":"SUM(GETPIVOTDATA(\"Suma de O_ee_ref_1_11a\",TD!$A$62))","v":0},{"$f":"SUM(GETPIVOTDATA(\"Suma de O_ee_ref_12_17a\",TD!$A$62))","v":0},{"$f":"SUM(GETPIVOTDATA(\"Suma de O_ee_ref_18_29a\",TD!$A$62))","v":0},{"$f":"SUM(GETPIVOTDATA(\"Suma de O_ee_ref_30_59a\",TD!$A$62))","v":0},null,{"$f":"SUM(GETPIVOTDATA(\"Suma de O_ee_ref_60a\",TD!$A$62))","v":0}]
[null,null,"Consejería en enfermedades externas del ojo",null,null,null,null,null,"Caso Tratado",{"$f":"SUM(K219:Q219)","v":0},{"$f":"SUM(GETPIVOTDATA(\"Suma de O_ee_Consejeria_tto_1_11a\",TD!$A$62))","v":0},{"$f":"SUM(GETPIVOTDATA(\"Suma de O_ee_Consejeria_tto_12_17a\",TD!$A$62))","v":0},{"$f":"SUM(GETPIVOTDATA(\"Suma de O_ee_Consejeria_tto_18_29a\",TD!$A$62))","v":0},{"$f":"SUM(GETPIVOTDATA(\"Suma de O_ee_Consejeria_tto_30_59a\",TD!$A$62))","v":0},null,{"$f":"SUM(GETPIVOTDATA(\"Suma de O_ee_Consejeria_tto_60a\",TD!$A$62))","v":0}]
[]
[null,null,"Tratamiento de EEO"]
[null,null,"Tratamiento farmacológico",null,null,null,null,null,"Caso Tratado",{"$f":"SUM(K222:Q222)","v":0},{"$f":"SUM(GETPIVOTDATA(\"Suma de O_ee_tto_farma_1_11a\",TD!$A$62))","v":0},{"$f":"SUM(GETPIVOTDATA(\"Suma de O_ee_tto_farma_12_17a\",TD!$A$62))","v":0},{"$f":"SUM(GETPIVOTDATA(\"Suma de O_ee_tto_farma_18_29a\",TD!$A$62))","v":0},{"$f":"SUM(GETPIVOTDATA(\"Suma de O_ee_tto_farma_30_59a\",TD!$A$62))","v":0},null,{"$f":"SUM(GETPIVOTDATA(\"Suma de O_ee_tto_farma_60a\",TD!$A$62))","v":0}]
[null,null,"Tratamiento quirúrgico",null,null,null,null,null,"Caso Tratado",{"$f":"SUM(K223:Q223)","v":0},{"$f":"SUM(GETPIVOTDATA(\"Suma de O_ee_tto_quiru_1_11a\",TD!$A$62))","v":0},{"$f":"SUM(GETPIVOTDATA(\"Suma de O_ee_tto_quiru_12_17a\",TD!$A$62))","v":0},{"$f":"SUM(GETPIVOTDATA(\"Suma de O_ee_tto_quiru_18_29a\",TD!$A$62))","v":0},{"$f":"SUM(GETPIVOTDATA(\"Suma de O_ee_tto_quiru_30_59a\",TD!$A$62))","v":0},null,{"$f":"SUM(GETPIVOTDATA(\"Suma de O_ee_tto_quiru_60a\",TD!$A$62))","v":0}]
[]
[null,null,"Control de EEO"]
[null,null,"Control farmacológico",null,null,null,null,null,"Control",{"$f":"SUM(K226:Q226)","v":0},{"$f":"SUM(GETPIVOTDATA(\"Suma de O_ee_ctrl_farma_1_11a\",TD!$A$62))","v":0},{"$f":"SUM(GETPIVOTDATA(\"Suma de O_ee_ctrl_farma_12_17a\",TD!$A$62))","v":0},{"$f":"SUM(GETPIVOTDATA(\"Suma de O_ee_ctrl_farma_18_29a\",TD!$A$62))","v":0},{"$f":"SUM(GETPIVOTDATA(\"Suma de O_ee_ctrl_farma_30_59a\",TD!$A$62))","v":0},null,{"$f":"SUM(GETPIVOTDATA(\"Suma de O_ee_ctrl_farma_60a\",TD!$A$62))","v":0}]
[null,null,"Control pot quirúrgico",null,null,null,null,null,"Control",{"$f":"SUM(K227:Q227)","v":0},{"$f":"SUM(GETPIVOTDATA(\"Suma de O_ee_ctrl_pquiru_1_11a\",TD!$A$62))","v":0},{"$f":"SUM(GETPIVOTDATA(\"Suma de O_ee_ctrl_pquiru_12_17a\",TD!$A$62))","v":0},{"$f":"SUM(GETPIVOTDATA(\"Suma de O_ee_ctrl_pquiru_18_29a\",TD!$A$62))","v":0},{"$f":"SUM(GETPIVOTDATA(\"Suma de O_ee_ctrl_pquiru_30_59a\",TD!$A$62))","v":0},null,{"$f":"SUM(GETPIVOTDATA(\"Suma de O_ee_ctrl_pquiru_60a\",TD!$A$62))","v":0}]